Creditor Name,Voucher Number,Date,Amount,CIPFA Subjective,CIPFA Sub group,Directorate,Section
2Upfront Design,4176574,05/11/2010,1791,Supplies and Services,Miscellaneous Expenses,"Housing, Culture & Capital",Tourism & Venues
3663 BFS Group Ltd,4164405,03/11/2010,519.8,Supplies and Services,Catering,Chilren & Young People's Trust,Area Integrated Working
64 Church Road Limited,41388,05/11/2010,715,Premises Related,Rents Payable,"Housing, Culture & Capital",Housing Strategy
64 Church Road Limited,41389,05/11/2010,715,Premises Related,Rents Payable,"Housing, Culture & Capital",Housing Strategy
64 Church Road Limited,42007,26/11/2010,550,Premises Related,Rents Payable,"Housing, Culture & Capital",Housing Strategy
Abbey Care Group Ltd-Saxon Court,CF01507298,05/11/2010,-71.15,Customer and Client Receipts,Fees and Charges,Section 75 Adult Social Care,Contrib to S31 Partnership
Abbey Care Group Ltd-Saxon Court,CF01507298,05/11/2010,765.44,Third Party Payments,Other Establishments,Section 75 Adult Social Care,Contrib to S31 Partnership
Abbey Care Group Ltd-Saxon Court,CF01507299,05/11/2010,-71.15,Customer and Client Receipts,Fees and Charges,Section 75 Adult Social Care,Contrib to S31 Partnership
Abbey Care Group Ltd-Saxon Court,CF01507299,05/11/2010,765.44,Third Party Payments,Other Establishments,Section 75 Adult Social Care,Contrib to S31 Partnership
Abbey Care Group Ltd-Saxon Court,CF01507300,05/11/2010,-71.15,Customer and Client Receipts,Fees and Charges,Section 75 Adult Social Care,Contrib to S31 Partnership
Abbey Care Group Ltd-Saxon Court,CF01507300,05/11/2010,765.44,Third Party Payments,Other Establishments,Section 75 Adult Social Care,Contrib to S31 Partnership
Abbey Care Group Ltd-Saxon Court,CF01507301,05/11/2010,-71.15,Customer and Client Receipts,Fees and Charges,Section 75 Adult Social Care,Contrib to S31 Partnership
Abbey Care Group Ltd-Saxon Court,CF01507301,05/11/2010,765.44,Third Party Payments,Other Establishments,Section 75 Adult Social Care,Contrib to S31 Partnership
Abbey Care Group Ltd-Saxon Court,CF01507302,05/11/2010,-71.15,Customer and Client Receipts,Fees and Charges,Section 75 Adult Social Care,Contrib to S31 Partnership
Abbey Care Group Ltd-Saxon Court,CF01507302,05/11/2010,808.71,Third Party Payments,Other Establishments,Section 75 Adult Social Care,Contrib to S31 Partnership
Abbey Care Group Ltd-Saxon Court,CF01507303,05/11/2010,-71.15,Customer and Client Receipts,Fees and Charges,Section 75 Adult Social Care,Contrib to S31 Partnership
Abbey Care Group Ltd-Saxon Court,CF01507303,05/11/2010,808.71,Third Party Payments,Other Establishments,Section 75 Adult Social Care,Contrib to S31 Partnership
Abbey Care Group Ltd-Saxon Court,CF01507304,05/11/2010,-71.15,Customer and Client Receipts,Fees and Charges,Section 75 Adult Social Care,Contrib to S31 Partnership
Abbey Care Group Ltd-Saxon Court,CF01507304,05/11/2010,808.71,Third Party Payments,Other Establishments,Section 75 Adult Social Care,Contrib to S31 Partnership
Abbey Care Group Ltd-Saxon Court,CF01507305,05/11/2010,-71.15,Customer and Client Receipts,Fees and Charges,Section 75 Adult Social Care,Contrib to S31 Partnership
Abbey Care Group Ltd-Saxon Court,CF01507305,05/11/2010,808.71,Third Party Payments,Other Establishments,Section 75 Adult Social Care,Contrib to S31 Partnership
Abi House,CF01528060,26/11/2010,-69.1,Customer and Client Receipts,Fees and Charges,Adult Social Care,Adult Social Care
Abi House,CF01528060,26/11/2010,1769.8,Third Party Payments,Other Establishments,Adult Social Care,Adult Social Care
Abi House,CF01528061,26/11/2010,-69.1,Customer and Client Receipts,Fees and Charges,Adult Social Care,Adult Social Care
Abi House,CF01528061,26/11/2010,1769.8,Third Party Payments,Other Establishments,Adult Social Care,Adult Social Care
Abi House,CF01528062,26/11/2010,-69.1,Customer and Client Receipts,Fees and Charges,Adult Social Care,Adult Social Care
Abi House,CF01528062,26/11/2010,1769.8,Third Party Payments,Other Establishments,Adult Social Care,Adult Social Care
ABIR Architects Ltd,4219648,24/11/2010,10950,New Construction and Conversion,,"Housing, Culture & Capital",Housing Strategy
ABIR Architects Ltd,4219923,24/11/2010,7044.75,New Construction and Conversion,,"Housing, Culture & Capital",Housing Strategy
Accurate Roofing Ltd,4183509,10/11/2010,2233.92,New Construction and Conversion,,Chilren & Young People's Trust,Director Childrens Services
Accurate Roofing Ltd,4210375,19/11/2010,50001.9,New Construction and Conversion,,Chilren & Young People's Trust,Director Childrens Services
Ace Travel Ltd,4185824,10/11/2010,1408.05,Transport Related,Other Transport Costs,Chilren & Young People's Trust,Learning Schools & Skills
Ace Travel Ltd,4186014,10/11/2010,2032,Transport Related,Other Transport Costs,Chilren & Young People's Trust,Learning Schools & Skills
Ace Travel Ltd,4186072,10/11/2010,1350,Transport Related,Other Transport Costs,Chilren & Young People's Trust,Learning Schools & Skills
Ace Travel Ltd,4226547,26/11/2010,6678.6,Transport Related,Other Transport Costs,Chilren & Young People's Trust,Learning Schools & Skills
Acorn Web Offset Ltd,4184702,19/11/2010,6604.2,Supplies and Services,Miscellaneous Expenses,Strategy & Governance,Communications
Acoustiguide Limited,4192532,12/11/2010,1650,Supplies and Services,Equipment Furniture and Materials,"Housing, Culture & Capital",Royal Pavilion & Museums
Acoustiguide Limited,4192545,12/11/2010,6930,Supplies and Services,Equipment Furniture and Materials,"Housing, Culture & Capital",Royal Pavilion & Museums
ACPH Ltd T/a Hopscotch Nursery,4168249,03/11/2010,2500,Third Party Payments,Other Establishments,Chilren & Young People's Trust,Area Integrated Working
ACPH Ltd T/a Hopscotch Nursery,4194103,12/11/2010,775,Supplies and Services,Services,Chilren & Young People's Trust,Learning Schools & Skills
ACPH Ltd T/a Hopscotch Nursery,4228671,26/11/2010,646.8,Supplies and Services,Services,Chilren & Young People's Trust,Learning Schools & Skills
ACPH Ltd T/a Hopscotch Nursery,UL01504940,03/11/2010,2215,Supplies and Services,Grants and Subscriptions,Chilren & Young People's Trust,Area Integrated Working
ACPH Ltd T/a Hopscotch Nursery,UL01504941,03/11/2010,4069,Supplies and Services,Grants and Subscriptions,Chilren & Young People's Trust,Area Integrated Working
ACPH Ltd T/a Hopscotch Nursery,UL01504942,03/11/2010,5800,Supplies and Services,Grants and Subscriptions,Chilren & Young People's Trust,Area Integrated Working
ACPH Ltd T/a Hopscotch Nursery,UL01512625,10/11/2010,1020,Third Party Payments,Other Establishments,Chilren & Young People's Trust,Learning Schools & Skills
ACPH Ltd T/a Hopscotch Nursery,UL01512626,10/11/2010,2380,Third Party Payments,Other Establishments,Chilren & Young People's Trust,Learning Schools & Skills
ACPH Ltd T/a Hopscotch Nursery,UL01512627,10/11/2010,3264,Third Party Payments,Other Establishments,Chilren & Young People's Trust,Learning Schools & Skills
Action For Children,4210414,19/11/2010,20640,Third Party Payments,Other Establishments,Chilren & Young People's Trust,Area Integrated Working
Payment to Individual,CF01515440,12/11/2010,979.2,Third Party Payments,Other Establishments,Section 75 Adult Social Care,Contrib to S31 Partnership
Payment to Individual,CF01515441,12/11/2010,979.2,Third Party Payments,Other Establishments,Section 75 Adult Social Care,Contrib to S31 Partnership
Payment to Individual,CF01515442,12/11/2010,979.2,Third Party Payments,Other Establishments,Section 75 Adult Social Care,Contrib to S31 Partnership
Payment to Individual,CF01515443,12/11/2010,979.2,Third Party Payments,Other Establishments,Section 75 Adult Social Care,Contrib to S31 Partnership
Payment to Individual,CF01515448,12/11/2010,556.8,Third Party Payments,Other Establishments,Section 75 Adult Social Care,Contrib to S31 Partnership
Payment to Individual,CF01515449,12/11/2010,556.8,Third Party Payments,Other Establishments,Section 75 Adult Social Care,Contrib to S31 Partnership
Payment to Individual,CF01515450,12/11/2010,556.8,Third Party Payments,Other Establishments,Section 75 Adult Social Care,Contrib to S31 Partnership
Payment to Individual,CF01515451,12/11/2010,556.8,Third Party Payments,Other Establishments,Section 75 Adult Social Care,Contrib to S31 Partnership
Adapt Mobility,4205254,18/11/2010,4148,New Construction and Conversion,,"Housing, Culture & Capital",Housing Management
Oak House RH,CF01507273,03/11/2010,-71.15,Customer and Client Receipts,Fees and Charges,Section 75 Adult Social Care,Contrib to S31 Partnership
Oak House RH,CF01507273,03/11/2010,628.22,Third Party Payments,Other Establishments,Section 75 Adult Social Care,Contrib to S31 Partnership
Oak House RH,CF01507274,03/11/2010,-71.15,Customer and Client Receipts,Fees and Charges,Section 75 Adult Social Care,Contrib to S31 Partnership
Oak House RH,CF01507274,03/11/2010,628.22,Third Party Payments,Other Establishments,Section 75 Adult Social Care,Contrib to S31 Partnership
Oak House RH,CF01507275,03/11/2010,-71.15,Customer and Client Receipts,Fees and Charges,Section 75 Adult Social Care,Contrib to S31 Partnership
Oak House RH,CF01507275,03/11/2010,628.22,Third Party Payments,Other Establishments,Section 75 Adult Social Care,Contrib to S31 Partnership
Oak House RH,CF01507276,03/11/2010,-71.15,Customer and Client Receipts,Fees and Charges,Section 75 Adult Social Care,Contrib to S31 Partnership
Oak House RH,CF01507276,03/11/2010,628.22,Third Party Payments,Other Establishments,Section 75 Adult Social Care,Contrib to S31 Partnership
Oak House RH,CF01507277,03/11/2010,-71.15,Customer and Client Receipts,Fees and Charges,Section 75 Adult Social Care,Contrib to S31 Partnership
Oak House RH,CF01507277,03/11/2010,720.41,Third Party Payments,Other Establishments,Section 75 Adult Social Care,Contrib to S31 Partnership
Oak House RH,CF01507278,03/11/2010,-71.15,Customer and Client Receipts,Fees and Charges,Section 75 Adult Social Care,Contrib to S31 Partnership
Oak House RH,CF01507278,03/11/2010,720.41,Third Party Payments,Other Establishments,Section 75 Adult Social Care,Contrib to S31 Partnership
Oak House RH,CF01507283,03/11/2010,620,Third Party Payments,Other Establishments,Section 75 Adult Social Care,Contrib to S31 Partnership
Oak House RH,CF01507284,03/11/2010,620,Third Party Payments,Other Establishments,Section 75 Adult Social Care,Contrib to S31 Partnership
Oak House RH,CF01507285,03/11/2010,620,Third Party Payments,Other Establishments,Section 75 Adult Social Care,Contrib to S31 Partnership
Oak House RH,CF01507286,03/11/2010,620,Third Party Payments,Other Establishments,Section 75 Adult Social Care,Contrib to S31 Partnership
Oak House RH,CF01507287,03/11/2010,620,Third Party Payments,Other Establishments,Section 75 Adult Social Care,Contrib to S31 Partnership
Oak House RH,CF01507288,03/11/2010,620,Third Party Payments,Other Establishments,Section 75 Adult Social Care,Contrib to S31 Partnership
Oak House RH,CF01507289,03/11/2010,620,Third Party Payments,Other Establishments,Section 75 Adult Social Care,Contrib to S31 Partnership
Oak House RH,CF01507290,03/11/2010,620,Third Party Payments,Other Establishments,Section 75 Adult Social Care,Contrib to S31 Partnership
Oak House RH,CF01507291,03/11/2010,620,Third Party Payments,Other Establishments,Section 75 Adult Social Care,Contrib to S31 Partnership
Oak House RH,CF01507292,03/11/2010,620,Third Party Payments,Other Establishments,Section 75 Adult Social Care,Contrib to S31 Partnership
Oak House RH,CF01507293,03/11/2010,620,Third Party Payments,Other Establishments,Section 75 Adult Social Care,Contrib to S31 Partnership
Oak House RH,CF01507294,03/11/2010,620,Third Party Payments,Other Establishments,Section 75 Adult Social Care,Contrib to S31 Partnership
Oak House RH,CF01513930,12/11/2010,-71.15,Customer and Client Receipts,Fees and Charges,Section 75 Adult Social Care,Contrib to S31 Partnership
Oak House RH,CF01513930,12/11/2010,628.22,Third Party Payments,Other Establishments,Section 75 Adult Social Care,Contrib to S31 Partnership
Oak House RH,CF01513931,12/11/2010,-71.15,Customer and Client Receipts,Fees and Charges,Section 75 Adult Social Care,Contrib to S31 Partnership
Oak House RH,CF01513931,12/11/2010,628.22,Third Party Payments,Other Establishments,Section 75 Adult Social Care,Contrib to S31 Partnership
Oak House RH,CF01513932,12/11/2010,-71.15,Customer and Client Receipts,Fees and Charges,Section 75 Adult Social Care,Contrib to S31 Partnership
Oak House RH,CF01513932,12/11/2010,628.22,Third Party Payments,Other Establishments,Section 75 Adult Social Care,Contrib to S31 Partnership
Oak House RH,CF01513933,12/11/2010,-71.15,Customer and Client Receipts,Fees and Charges,Section 75 Adult Social Care,Contrib to S31 Partnership
Oak House RH,CF01513933,12/11/2010,628.22,Third Party Payments,Other Establishments,Section 75 Adult Social Care,Contrib to S31 Partnership
Oak House RH,CF01513934,12/11/2010,-71.15,Customer and Client Receipts,Fees and Charges,Section 75 Adult Social Care,Contrib to S31 Partnership
Oak House RH,CF01513934,12/11/2010,720.41,Third Party Payments,Other Establishments,Section 75 Adult Social Care,Contrib to S31 Partnership
Oak House RH,CF01513935,12/11/2010,-71.15,Customer and Client Receipts,Fees and Charges,Section 75 Adult Social Care,Contrib to S31 Partnership
Oak House RH,CF01513935,12/11/2010,720.41,Third Party Payments,Other Establishments,Section 75 Adult Social Care,Contrib to S31 Partnership
Oak House RH,CF01513936,12/11/2010,-71.15,Customer and Client Receipts,Fees and Charges,Section 75 Adult Social Care,Contrib to S31 Partnership
Oak House RH,CF01513936,12/11/2010,720.41,Third Party Payments,Other Establishments,Section 75 Adult Social Care,Contrib to S31 Partnership
Oak House RH,CF01513937,12/11/2010,-71.15,Customer and Client Receipts,Fees and Charges,Section 75 Adult Social Care,Contrib to S31 Partnership
Oak House RH,CF01513937,12/11/2010,720.41,Third Party Payments,Other Establishments,Section 75 Adult Social Care,Contrib to S31 Partnership
Oak House RH,CF01513942,12/11/2010,620,Third Party Payments,Other Establishments,Section 75 Adult Social Care,Contrib to S31 Partnership
Oak House RH,CF01513943,12/11/2010,620,Third Party Payments,Other Establishments,Section 75 Adult Social Care,Contrib to S31 Partnership
Oak House RH,CF01513944,12/11/2010,620,Third Party Payments,Other Establishments,Section 75 Adult Social Care,Contrib to S31 Partnership
Adelaide Nursing Home,CF01524191,19/11/2010,-125.55,Customer and Client Receipts,Fees and Charges,Adult Social Care,Adult Social Care
Adelaide Nursing Home,CF01524191,19/11/2010,644.4,Third Party Payments,Other Establishments,Adult Social Care,Adult Social Care
Adelaide Nursing Home,CF01524192,19/11/2010,-125.55,Customer and Client Receipts,Fees and Charges,Adult Social Care,Adult Social Care
Adelaide Nursing Home,CF01524192,19/11/2010,644.4,Third Party Payments,Other Establishments,Adult Social Care,Adult Social Care
Adelaide Nursing Home,CF01524193,19/11/2010,-125.55,Customer and Client Receipts,Fees and Charges,Adult Social Care,Adult Social Care
Adelaide Nursing Home,CF01524193,19/11/2010,644.4,Third Party Payments,Other Establishments,Adult Social Care,Adult Social Care
Adelaide Nursing Home,CF01524194,19/11/2010,-125.55,Customer and Client Receipts,Fees and Charges,Adult Social Care,Adult Social Care
Adelaide Nursing Home,CF01524194,19/11/2010,644.4,Third Party Payments,Other Establishments,Adult Social Care,Adult Social Care
Adelaide Nursing Home,CF01524195,19/11/2010,546.3,Third Party Payments,Other Establishments,Adult Social Care,Adult Social Care
Adelaide Nursing Home,CF01524196,19/11/2010,546.3,Third Party Payments,Other Establishments,Adult Social Care,Adult Social Care
Adelaide Nursing Home,CF01524197,19/11/2010,546.3,Third Party Payments,Other Establishments,Adult Social Care,Adult Social Care
Adelaide Nursing Home,CF01524198,19/11/2010,546.3,Third Party Payments,Other Establishments,Adult Social Care,Adult Social Care
Adelaide Nursing Home,CF01524220,19/11/2010,539.4,Third Party Payments,Other Establishments,Adult Social Care,Adult Social Care
Adelaide Nursing Home,CF01524221,19/11/2010,539.4,Third Party Payments,Other Establishments,Adult Social Care,Adult Social Care
Adelaide Nursing Home,CF01524222,19/11/2010,539.4,Third Party Payments,Other Establishments,Adult Social Care,Adult Social Care
Adelaide Nursing Home,CF01524223,19/11/2010,539.4,Third Party Payments,Other Establishments,Adult Social Care,Adult Social Care
Adelaide Nursing Home,CF01524228,19/11/2010,551.3,Third Party Payments,Other Establishments,Adult Social Care,Adult Social Care
Adelaide Nursing Home,CF01524229,19/11/2010,551.3,Third Party Payments,Other Establishments,Adult Social Care,Adult Social Care
Adelaide Nursing Home,CF01524230,19/11/2010,551.3,Third Party Payments,Other Establishments,Adult Social Care,Adult Social Care
Adelaide Nursing Home,CF01524231,19/11/2010,551.3,Third Party Payments,Other Establishments,Adult Social Care,Adult Social Care
Adelaide Nursing Home,CF01524277,19/11/2010,539.4,Third Party Payments,Other Establishments,Adult Social Care,Adult Social Care
Adelaide Nursing Home,CF01524278,19/11/2010,539.4,Third Party Payments,Other Establishments,Adult Social Care,Adult Social Care
Adelaide Nursing Home,CF01524279,19/11/2010,539.4,Third Party Payments,Other Establishments,Adult Social Care,Adult Social Care
Adelaide Nursing Home,CF01524280,19/11/2010,539.4,Third Party Payments,Other Establishments,Adult Social Care,Adult Social Care
Adelaide Nursing Home,CF01524281,19/11/2010,539.4,Third Party Payments,Other Establishments,Adult Social Care,Adult Social Care
Adelaide Nursing Home,CF01524282,19/11/2010,539.4,Third Party Payments,Other Establishments,Adult Social Care,Adult Social Care
Adelphi Court Services Limited,41508,10/11/2010,2619.1,Premises Related,Rents Payable,"Housing, Culture & Capital",Housing Strategy
ADT Fire & Security Plc,4193463,12/11/2010,550,Premises Related,Repair Maintenance and Alterations,"Housing, Culture & Capital",Royal Pavilion & Museums
ADT Fire & Security Plc,4208523,19/11/2010,705.65,Premises Related,Repair Maintenance and Alterations,Finance & Resources,Property & Design
ADT Fire & Security Plc,4212111,19/11/2010,587.73,Supplies and Services,Services,Adult Social Care,Housing Management
ADT Fire & Security Plc,4212140,19/11/2010,662.69,Supplies and Services,Services,Adult Social Care,Housing Management
ADT Fire & Security Plc,4219046,24/11/2010,1477.44,Premises Related,Repair Maintenance and Alterations,Finance & Resources,Property & Design
ADT Fire & Security Plc,4225564,26/11/2010,1022.89,Premises Related,Repair Maintenance and Alterations,Environment,Leisure
Adur District Council,4175494,05/11/2010,738.48,Premises Related,Rents Payable,"Housing, Culture & Capital",Housing Strategy
Advanced Connections Ltd,4171061,19/11/2010,1140,Plant Machinery and Equipment,,Chilren & Young People's Trust,Director Childrens Services
Adventure Unlimited,4170172,03/11/2010,816,Supplies and Services,Miscellaneous Expenses,"Housing, Culture & Capital",Culture & Economy
Beachside Rest Home,CF01522084,19/11/2010,575,Third Party Payments,Other Establishments,Section 75 Sussex Partnership,Contrib to S31 Partnership
Beachside Rest Home,CF01522085,19/11/2010,575,Third Party Payments,Other Establishments,Section 75 Sussex Partnership,Contrib to S31 Partnership
Beachside Rest Home,CF01522086,19/11/2010,575,Third Party Payments,Other Establishments,Section 75 Sussex Partnership,Contrib to S31 Partnership
Beachside Rest Home,CF01522087,19/11/2010,575,Third Party Payments,Other Establishments,Section 75 Sussex Partnership,Contrib to S31 Partnership
A & F Pilbeam Ltd,4171537,03/11/2010,568.75,New Construction and Conversion,,Environment,Leisure
A & F Pilbeam Ltd,4182940,10/11/2010,1929.85,New Construction and Conversion,,Chilren & Young People's Trust,Director Childrens Services
A & F Pilbeam Ltd,4221241,24/11/2010,42275,New Construction and Conversion,,"Housing, Culture & Capital",Housing Strategy
Agincare UK Ltd,CF01507843,03/11/2010,-68,Customer and Client Receipts,Fees and Charges,Adult Social Care,Adult Social Care
Agincare UK Ltd,CF01507843,03/11/2010,816.87,Third Party Payments,Other Establishments,Adult Social Care,Adult Social Care
Agincare UK Ltd,CF01507844,03/11/2010,-68,Customer and Client Receipts,Fees and Charges,Adult Social Care,Adult Social Care
Agincare UK Ltd,CF01507844,03/11/2010,734.13,Third Party Payments,Other Establishments,Adult Social Care,Adult Social Care
Agincare UK Ltd,CF01507891,03/11/2010,-75,Customer and Client Receipts,Fees and Charges,Adult Social Care,Adult Social Care
Agincare UK Ltd,CF01507891,03/11/2010,678.23,Third Party Payments,Other Establishments,Adult Social Care,Adult Social Care
Agincare UK Ltd,CF01519418,17/11/2010,-68,Customer and Client Receipts,Fees and Charges,Adult Social Care,Adult Social Care
Agincare UK Ltd,CF01519418,17/11/2010,816.87,Third Party Payments,Other Establishments,Adult Social Care,Adult Social Care
Agincare UK Ltd,CF01519419,17/11/2010,-68,Customer and Client Receipts,Fees and Charges,Adult Social Care,Adult Social Care
Agincare UK Ltd,CF01519419,17/11/2010,655.53,Third Party Payments,Other Establishments,Adult Social Care,Adult Social Care
Agincare UK Ltd,CF01519450,17/11/2010,-75,Customer and Client Receipts,Fees and Charges,Adult Social Care,Adult Social Care
Agincare UK Ltd,CF01519450,17/11/2010,678.23,Third Party Payments,Other Establishments,Adult Social Care,Adult Social Care
Agincare UK Ltd,CF01530382,26/11/2010,-68,Customer and Client Receipts,Fees and Charges,Adult Social Care,Adult Social Care
Agincare UK Ltd,CF01530382,26/11/2010,816.87,Third Party Payments,Other Establishments,Adult Social Care,Adult Social Care
Agincare UK Ltd,CF01530383,26/11/2010,-68,Customer and Client Receipts,Fees and Charges,Adult Social Care,Adult Social Care
Agincare UK Ltd,CF01530383,26/11/2010,734.13,Third Party Payments,Other Establishments,Adult Social Care,Adult Social Care
Agincare UK Ltd,CF01530418,26/11/2010,-75,Customer and Client Receipts,Fees and Charges,Adult Social Care,Adult Social Care
Agincare UK Ltd,CF01530418,26/11/2010,678.23,Third Party Payments,Other Establishments,Adult Social Care,Adult Social Care
A G M Floors Ltd,4201821,17/11/2010,2816,Premises Related,Repair Maintenance and Alterations,"Housing, Culture & Capital",Tourism & Venues
Payment to Individual,41889,24/11/2010,700,Premises Related,Rents Payable,"Housing, Culture & Capital",Housing Strategy
Aidapt T/A Aidapt Bathrooms Ltd,4189150,12/11/2010,861.75,Supplies and Services,Equipment Furniture and Materials,Section 75 South Downs Health,Contrib to S31 Partnership
Aidapt T/A Aidapt Bathrooms Ltd,4214601,24/11/2010,981.75,Supplies and Services,Equipment Furniture and Materials,Section 75 South Downs Health,Contrib to S31 Partnership
Aidapt T/A Aidapt Bathrooms Ltd,4226165,26/11/2010,988.9,Supplies and Services,Equipment Furniture and Materials,Section 75 South Downs Health,Contrib to S31 Partnership
Airconaire Ltd,4160328,03/11/2010,2795,Premises Related,Repair Maintenance and Alterations,Adult Social Care,Housing Management
Airconaire Ltd,4160331,03/11/2010,2795,Premises Related,Repair Maintenance and Alterations,Adult Social Care,Housing Management
Airconaire Ltd,4199315,17/11/2010,1149,New Construction and Conversion,,"Housing, Culture & Capital",Housing Management
Airconaire Ltd,4199360,17/11/2010,2795,Premises Related,Repair Maintenance and Alterations,Adult Social Care,Housing Management
AJA Registrars Ltd,4171896,03/11/2010,600,Supplies and Services,Services,"Housing, Culture & Capital",Tourism & Venues
A J Taylor Electrical Contractors Ltd,4199632,17/11/2010,711,Third Party Payments,Private Contractors,Environment,Quality of Life & Green Spaces
A J Taylor Electrical Contractors Ltd,4215668,24/11/2010,2945,Premises Related,Repair Maintenance and Alterations,Chilren & Young People's Trust,Area Integrated Working
Alan Bedford Consulting,4179364,10/11/2010,4994.65,Indirect Employees,Miscellaneous Employee Costs,Chilren & Young People's Trust,Commissioning & Governance
Payment to Individual,41841,19/11/2010,740,Premises Related,Rents Payable,"Housing, Culture & Capital",Housing Strategy
Aldrington Press Ltd,4211798,19/11/2010,809.4,Supplies and Services,Printing Stationery & General Office Expenses,Adult Social Care,Housing Management
Alexander Advertising(International)Ltd,4200246,17/11/2010,1682.04,Supplies and Services,Miscellaneous Expenses,Environment,City Planning
Alexander Advertising(International)Ltd,4200848,17/11/2010,1682.04,Supplies and Services,Miscellaneous Expenses,Environment,City Planning
Alexander Advertising(International)Ltd,4202118,17/11/2010,1794.18,Supplies and Services,Miscellaneous Expenses,Environment,City Planning
Alexander Advertising(International)Ltd,4202150,17/11/2010,1794.18,Supplies and Services,Miscellaneous Expenses,Environment,City Planning
Payment to Individual,41418,05/11/2010,775,Premises Related,Rents Payable,"Housing, Culture & Capital",Housing Strategy
Payment to Individual,41998,26/11/2010,875,Premises Related,Rents Payable,"Housing, Culture & Capital",Housing Strategy
Payment to Individual,41999,26/11/2010,875,Premises Related,Rents Payable,"Housing, Culture & Capital",Housing Strategy
Alfred Cox & Sons (Brighton) Ltd,4161327,03/11/2010,16000,New Construction and Conversion,,Adult Social Care,Housing Strategy
Payment to Individual,4163613,03/11/2010,885.9,Indirect Employees,Training,Finance & Resources,ICT
A-List Properties Limited,41605,12/11/2010,850,Premises Related,Rents Payable,"Housing, Culture & Capital",Housing Strategy
Allied Estates (South Eastern) Ltd,41542,12/11/2010,600,Premises Related,Rents Payable,"Housing, Culture & Capital",Housing Strategy
Allied Estates (South Eastern) Ltd,41688,17/11/2010,619,Premises Related,Rents Payable,"Housing, Culture & Capital",Housing Strategy
Allied Healthcare Brighton Domicillary,CF01513215,10/11/2010,-35,Customer and Client Receipts,Fees and Charges,Adult Social Care,Adult Social Care
Allied Healthcare Brighton Domicillary,CF01513215,10/11/2010,557.21,Third Party Payments,Other Establishments,Adult Social Care,Adult Social Care
Allied Healthcare Brighton Domicillary,CF01519573,17/11/2010,-35,Customer and Client Receipts,Fees and Charges,Adult Social Care,Adult Social Care
Allied Healthcare Brighton Domicillary,CF01519573,17/11/2010,540.56,Third Party Payments,Other Establishments,Adult Social Care,Adult Social Care
Allied Healthcare Brighton Domicillary,CF01530223,26/11/2010,-35,Customer and Client Receipts,Fees and Charges,Adult Social Care,Adult Social Care
Allied Healthcare Brighton Domicillary,CF01530223,26/11/2010,538.77,Third Party Payments,Other Establishments,Adult Social Care,Adult Social Care
Allsop Residential Investment Management (ARIM),41585,12/11/2010,715,Premises Related,Rents Payable,"Housing, Culture & Capital",Housing Strategy
Alphaguard K9 Ltd,4229997,26/11/2010,3010,Supplies and Services,Services,Environment,Public Safety
Alsford Timber Ltd,4144849,05/11/2010,545.12,Supplies and Services,Equipment Furniture and Materials,Section 75 South Downs Health,Contrib to S31 Partnership
Alvin Industrial Limted,4215697,24/11/2010,1056.1,New Construction and Conversion,,Environment,Leisure
Amaze Brighton & Hove,4168964,03/11/2010,44015.55,Third Party Payments,Other Establishments,Chilren & Young People's Trust,Learning Schools & Skills
Amaze Brighton & Hove,4188070,12/11/2010,2000,Third Party Payments,Other Establishments,Chilren & Young People's Trust,Learning Schools & Skills
Amaze Brighton & Hove,4207126,17/11/2010,7132,Third Party Payments,Other Establishments,Adult Social Care,Adult Social Care
Amey OW Limited,4155870,03/11/2010,20846.57,New Construction and Conversion,,Environment,Sustainable Transport&Planning
Amey OW Limited,4164395,10/11/2010,348,New Construction and Conversion,,Environment,Sustainable Transport&Planning
Amey OW Limited,4164395,10/11/2010,750,Premises Related,Repair Maintenance and Alterations,Environment,Sustainable Transport&Planning
Amey OW Limited,4192134,12/11/2010,1577.41,New Construction and Conversion,,Environment,Sustainable Transport&Planning
Amigos Pre-School Playgroup,UL01504943,03/11/2010,1529,Supplies and Services,Grants and Subscriptions,Chilren & Young People's Trust,Area Integrated Working
Amigos Pre-School Playgroup,UL01512628,10/11/2010,1092,Third Party Payments,Other Establishments,Chilren & Young People's Trust,Learning Schools & Skills
AMP Services,4182885,10/11/2010,595.88,Supplies and Services,Equipment Furniture and Materials,Environment,Quality of Life & Green Spaces
AM Security Ltd t/a AM Fire & Security Group,4216670,24/11/2010,975,Supplies and Services,Services,Environment,Waste
Amstech Contracts Ltd,4174932,05/11/2010,1500,Premises Related,Repair Maintenance and Alterations,Environment,Leisure
Amstech Contracts Ltd,4191494,12/11/2010,628,New Construction and Conversion,,Finance & Resources,Property & Design
Amwick Floors Ltd,4222415,24/11/2010,5634.05,Premises Related,Rents Payable,Finance & Resources,Property & Design
ANA Treatment Centres Ltd,CF01518180,17/11/2010,-43.15,Customer and Client Receipts,Fees and Charges,Section 75 Sussex Partnership,Contrib to S31 Partnership
ANA Treatment Centres Ltd,CF01518180,17/11/2010,610,Third Party Payments,Other Establishments,Section 75 Sussex Partnership,Contrib to S31 Partnership
ANA Treatment Centres Ltd,CF01521327,17/11/2010,610,Third Party Payments,Other Establishments,Section 75 Sussex Partnership,Contrib to S31 Partnership
Anchor Trust,4161385,03/11/2010,881.1,Capital Grants,,"Housing, Culture & Capital",Housing Strategy
Anchor Trust,4161424,03/11/2010,3889.71,Capital Grants,,"Housing, Culture & Capital",Housing Strategy
Anchor Trust,4162038,03/11/2010,6568.24,Capital Grants,,"Housing, Culture & Capital",Housing Strategy
Anchor Trust,CS01508004,03/11/2010,2451.54,Transfer Payments,Supporting People,"Housing, Culture & Capital",Housing Strategy
Anchor Trust,CS01508005,03/11/2010,2451.54,Transfer Payments,Supporting People,"Housing, Culture & Capital",Housing Strategy
Anchor Trust,CS01508006,03/11/2010,2451.54,Transfer Payments,Supporting People,"Housing, Culture & Capital",Housing Strategy
Anchor Trust,CS01508007,03/11/2010,2451.54,Transfer Payments,Supporting People,"Housing, Culture & Capital",Housing Strategy
Anchor Trust Homes (Partridge House),CF01523268,19/11/2010,28553.2,Third Party Payments,Other Establishments,Section 75 Sussex Partnership,Contrib to S31 Partnership
Anchor Trust Homes (Partridge House),CF01523269,19/11/2010,28553.2,Third Party Payments,Other Establishments,Section 75 Sussex Partnership,Contrib to S31 Partnership
Anchor Trust Homes (Partridge House),CF01523270,19/11/2010,28553.2,Third Party Payments,Other Establishments,Section 75 Sussex Partnership,Contrib to S31 Partnership
Anchor Trust Homes (Partridge House),CF01523271,19/11/2010,28553.2,Third Party Payments,Other Establishments,Section 75 Sussex Partnership,Contrib to S31 Partnership
Anchor Trust Homes (Sycamore Court),CF01523874,19/11/2010,4172.4,Third Party Payments,Other Establishments,Adult Social Care,Adult Social Care
Anchor Trust Homes (Sycamore Court),CF01523875,19/11/2010,4172.4,Third Party Payments,Other Establishments,Adult Social Care,Adult Social Care
Anchor Trust Homes (Sycamore Court),CF01523876,19/11/2010,4172.4,Third Party Payments,Other Establishments,Adult Social Care,Adult Social Care
Anchor Trust Homes (Sycamore Court),CF01523877,19/11/2010,4172.4,Third Party Payments,Other Establishments,Adult Social Care,Adult Social Care
Anchor Trust Homes (Sycamore Court),CF01523985,19/11/2010,21420.8,Third Party Payments,Other Establishments,Adult Social Care,Adult Social Care
Anchor Trust Homes (Sycamore Court),CF01523986,19/11/2010,21420.8,Third Party Payments,Other Establishments,Adult Social Care,Adult Social Care
Anchor Trust Homes (Sycamore Court),CF01523987,19/11/2010,21420.8,Third Party Payments,Other Establishments,Adult Social Care,Adult Social Care
Anchor Trust Homes (Sycamore Court),CF01523988,19/11/2010,21420.8,Third Party Payments,Other Establishments,Adult Social Care,Adult Social Care
Anderida Adolescent Care Ltd,CF01517826,17/11/2010,4435.58,Third Party Payments,Other Establishments,Chilren & Young People's Trust,Commissioning & Governance
Anderida Adolescent Care Ltd,CF01517827,17/11/2010,4435.58,Third Party Payments,Other Establishments,Chilren & Young People's Trust,Commissioning & Governance
Anderida Adolescent Care Ltd,CF01517828,17/11/2010,4435.58,Third Party Payments,Other Establishments,Chilren & Young People's Trust,Commissioning & Governance
Anderida Adolescent Care Ltd,CF01517829,17/11/2010,4435.58,Third Party Payments,Other Establishments,Chilren & Young People's Trust,Commissioning & Governance
Payment to Individual,41856,24/11/2010,850,Premises Related,Rents Payable,"Housing, Culture & Capital",Housing Strategy
Payment to Individual,CF01513612,10/11/2010,2525.48,Third Party Payments,Other Establishments,Section 75 Adult Social Care,Contrib to S31 Partnership
Payment to Individual,41591,12/11/2010,550,Premises Related,Rents Payable,"Housing, Culture & Capital",Housing Strategy
Andus Print Limited,4165640,03/11/2010,1390,Supplies and Services,Printing Stationery & General Office Expenses,Strategy & Governance,Communications
Andus Print Limited,4165653,03/11/2010,7495,Supplies and Services,Printing Stationery & General Office Expenses,Strategy & Governance,Communications
Andus Print Limited,4166856,03/11/2010,1150,Supplies and Services,Printing Stationery & General Office Expenses,Strategy & Governance,Communications
Andus Print Limited,4184809,10/11/2010,830,Supplies and Services,Services,Strategy & Governance,Communications
Andus Print Limited,4200521,17/11/2010,1325,Supplies and Services,Services,Strategy & Governance,Communications
Angmering Day Nurseries Ltd,UL01505031,03/11/2010,1747,Supplies and Services,Grants and Subscriptions,Chilren & Young People's Trust,Area Integrated Working
Angmering Day Nurseries Ltd,UL01512715,10/11/2010,1960,Third Party Payments,Other Establishments,Chilren & Young People's Trust,Learning Schools & Skills
Payment to Individual,4185170,10/11/2010,1397.5,Supplies and Services,Services,Chilren & Young People's Trust,Area Integrated Working
Payment to Individual,41849,24/11/2010,700,Premises Related,Rents Payable,"Housing, Culture & Capital",Housing Strategy
Payment to Individual,41316,03/11/2010,740,Premises Related,Rents Payable,"Housing, Culture & Capital",Housing Strategy
Payment to Individual,4184906,10/11/2010,1333.33,Supplies and Services,Services,Chilren & Young People's Trust,Area Integrated Working
Payment to Individual,41711,19/11/2010,750,Premises Related,Rents Payable,"Housing, Culture & Capital",Housing Strategy
Payment to Individual,41919,24/11/2010,750,Premises Related,Rents Payable,"Housing, Culture & Capital",Housing Strategy
APCYMRU Ltd,4213466,19/11/2010,10080,Third Party Payments,Other Establishments,Chilren & Young People's Trust,Learning Schools & Skills
Apex Digital Graphics Limited,4227041,26/11/2010,648.16,Supplies and Services,Equipment Furniture and Materials,Strategy & Governance,Communications
Applegate Properties Ltd,41486,10/11/2010,765,Premises Related,Rents Payable,"Housing, Culture & Capital",Housing Strategy
Applegate Properties Ltd,41584,12/11/2010,1200,Premises Related,Rents Payable,"Housing, Culture & Capital",Housing Strategy
Apple Retail UK LTD,4196732,19/11/2010,1016.17,Supplies and Services,Equipment Furniture and Materials,"Housing, Culture & Capital",Royal Pavilion & Museums
APT Skidata Ltd,4165776,03/11/2010,694.25,Premises Related,Repair Maintenance and Alterations,Environment,Sustainable Transport&Planning
APT Skidata Ltd,4168511,03/11/2010,4078,Supplies and Services,Equipment Furniture and Materials,Environment,Sustainable Transport&Planning
APT Skidata Ltd,4168524,03/11/2010,3788,Supplies and Services,Equipment Furniture and Materials,Environment,Sustainable Transport&Planning
APT Skidata Ltd,4181857,10/11/2010,2570.13,Supplies and Services,Equipment Furniture and Materials,Environment,Sustainable Transport&Planning
Arcool Ltd,4218047,24/11/2010,885,Supplies and Services,Equipment Furniture and Materials,Chilren & Young People's Trust,Learning Schools & Skills
Argos Business Solutions Ltd,4180612,19/11/2010,744.59,Transfer Payments,Other Transfer Payments,Chilren & Young People's Trust,Area Integrated Working
Ark Housing Consultancy LLP,4227559,26/11/2010,12600,Supplies and Services,Services,Adult Social Care,Housing Management
Arundel Domiciliary Care Services,CF01519177,17/11/2010,1050,Third Party Payments,Other Establishments,Section 75 Adult Social Care,Contrib to S31 Partnership
Arundel Domiciliary Care Services,CF01519178,17/11/2010,1050,Third Party Payments,Other Establishments,Section 75 Adult Social Care,Contrib to S31 Partnership
Arundel Domiciliary Care Services,CF01519179,17/11/2010,1050,Third Party Payments,Other Establishments,Section 75 Adult Social Care,Contrib to S31 Partnership
Arundel Domiciliary Care Services,CF01519180,17/11/2010,1050,Third Party Payments,Other Establishments,Section 75 Adult Social Care,Contrib to S31 Partnership
Arundel Domiciliary Care Services,CF01519181,17/11/2010,634.68,Third Party Payments,Other Establishments,Section 75 Adult Social Care,Contrib to S31 Partnership
Arundel Domiciliary Care Services,CF01519182,17/11/2010,635.44,Third Party Payments,Other Establishments,Section 75 Adult Social Care,Contrib to S31 Partnership
Arundel Domiciliary Care Services,CF01519183,17/11/2010,635.44,Third Party Payments,Other Establishments,Section 75 Adult Social Care,Contrib to S31 Partnership
Arundel Domiciliary Care Services,CF01519184,17/11/2010,635.44,Third Party Payments,Other Establishments,Section 75 Adult Social Care,Contrib to S31 Partnership
Arundel Domiciliary Care Services,CF01529695,26/11/2010,910,Third Party Payments,Other Establishments,Section 75 Adult Social Care,Contrib to S31 Partnership
Arundel Domiciliary Care Services,CF01529696,26/11/2010,910,Third Party Payments,Other Establishments,Section 75 Adult Social Care,Contrib to S31 Partnership
Arundel Domiciliary Care Services,CF01529697,26/11/2010,910,Third Party Payments,Other Establishments,Section 75 Adult Social Care,Contrib to S31 Partnership
Arundel Domiciliary Care Services,CF01529698,26/11/2010,910,Third Party Payments,Other Establishments,Section 75 Adult Social Care,Contrib to S31 Partnership
Arundel Domiciliary Care Services,CF01529699,26/11/2010,910,Third Party Payments,Other Establishments,Section 75 Adult Social Care,Contrib to S31 Partnership
Arundel Domiciliary Care Services,CF01529700,26/11/2010,910,Third Party Payments,Other Establishments,Section 75 Adult Social Care,Contrib to S31 Partnership
Arundel Domiciliary Care Services,CF01529701,26/11/2010,910,Third Party Payments,Other Establishments,Section 75 Adult Social Care,Contrib to S31 Partnership
ARVAL PHH,4181239,10/11/2010,2166.66,Transport Related,Direct Transport Costs,Environment,Quality of Life & Green Spaces
ARVAL PHH,4191630,12/11/2010,606.84,Transport Related,Direct Transport Costs,Adult Social Care,Housing Management
ARVAL PHH,4216188,24/11/2010,650.97,Transport Related,Direct Transport Costs,Adult Social Care,Housing Management
Ascendit Lifts Ltd,4162177,03/11/2010,1550,Capital Grants,,"Housing, Culture & Capital",Housing Strategy
Ascendit Lifts Ltd,4205267,17/11/2010,4444,New Construction and Conversion,,"Housing, Culture & Capital",Housing Management
ASDA Business Rewards,4220970,24/11/2010,1023.75,Supplies and Services,Grants and Subscriptions,Finance & Resources,To Be Advised
Ashacre Scaffolding Ltd,4221500,24/11/2010,595,Premises Related,Repair Maintenance and Alterations,Finance & Resources,Property & Design
Ashacre Scaffolding Ltd,4221526,24/11/2010,1100,Premises Related,Repair Maintenance and Alterations,Finance & Resources,Property & Design
Ashbourne Homes Ltd,CF01513692,12/11/2010,555.4,Third Party Payments,Other Establishments,Adult Social Care,Adult Social Care
Ashbourne Homes Ltd,CF01513693,12/11/2010,555.4,Third Party Payments,Other Establishments,Adult Social Care,Adult Social Care
Ashbourne Homes Ltd,CF01513694,12/11/2010,555.4,Third Party Payments,Other Establishments,Adult Social Care,Adult Social Care
Ashbourne Homes Ltd,CF01513695,12/11/2010,555.4,Third Party Payments,Other Establishments,Adult Social Care,Adult Social Care
Ashdown NH - Newcare Homes Ltd,CF01521900,19/11/2010,644.4,Third Party Payments,Other Establishments,Adult Social Care,Adult Social Care
Ashdown NH - Newcare Homes Ltd,CF01521901,19/11/2010,644.4,Third Party Payments,Other Establishments,Adult Social Care,Adult Social Care
Ashdown NH - Newcare Homes Ltd,CF01521902,19/11/2010,644.4,Third Party Payments,Other Establishments,Adult Social Care,Adult Social Care
Ashdown NH - Newcare Homes Ltd,CF01521903,19/11/2010,644.4,Third Party Payments,Other Establishments,Adult Social Care,Adult Social Care
Ashdown NH - Newcare Homes Ltd,CF01521904,19/11/2010,-124.05,Customer and Client Receipts,Fees and Charges,Section 75 Sussex Partnership,Contrib to S31 Partnership
Ashdown NH - Newcare Homes Ltd,CF01521904,19/11/2010,629.4,Third Party Payments,Other Establishments,Section 75 Sussex Partnership,Contrib to S31 Partnership
Ashdown NH - Newcare Homes Ltd,CF01521905,19/11/2010,-124.05,Customer and Client Receipts,Fees and Charges,Section 75 Sussex Partnership,Contrib to S31 Partnership
Ashdown NH - Newcare Homes Ltd,CF01521905,19/11/2010,629.4,Third Party Payments,Other Establishments,Section 75 Sussex Partnership,Contrib to S31 Partnership
Ashdown NH - Newcare Homes Ltd,CF01521906,19/11/2010,-124.05,Customer and Client Receipts,Fees and Charges,Section 75 Sussex Partnership,Contrib to S31 Partnership
Ashdown NH - Newcare Homes Ltd,CF01521906,19/11/2010,629.4,Third Party Payments,Other Establishments,Section 75 Sussex Partnership,Contrib to S31 Partnership
Ashdown NH - Newcare Homes Ltd,CF01521907,19/11/2010,-124.05,Customer and Client Receipts,Fees and Charges,Section 75 Sussex Partnership,Contrib to S31 Partnership
Ashdown NH - Newcare Homes Ltd,CF01521907,19/11/2010,629.4,Third Party Payments,Other Establishments,Section 75 Sussex Partnership,Contrib to S31 Partnership
Ashdown NH - Newcare Homes Ltd,CF01521908,19/11/2010,668.4,Third Party Payments,Other Establishments,Section 75 Sussex Partnership,Contrib to S31 Partnership
Ashdown NH - Newcare Homes Ltd,CF01521909,19/11/2010,668.4,Third Party Payments,Other Establishments,Section 75 Sussex Partnership,Contrib to S31 Partnership
Ashdown NH - Newcare Homes Ltd,CF01521910,19/11/2010,668.4,Third Party Payments,Other Establishments,Section 75 Sussex Partnership,Contrib to S31 Partnership
Ashdown NH - Newcare Homes Ltd,CF01521911,19/11/2010,668.4,Third Party Payments,Other Establishments,Section 75 Sussex Partnership,Contrib to S31 Partnership
Ashdown NH - Newcare Homes Ltd,CF01521912,19/11/2010,617.4,Third Party Payments,Other Establishments,Adult Social Care,Adult Social Care
Ashdown NH - Newcare Homes Ltd,CF01521913,19/11/2010,617.4,Third Party Payments,Other Establishments,Adult Social Care,Adult Social Care
Ashdown NH - Newcare Homes Ltd,CF01521914,19/11/2010,617.4,Third Party Payments,Other Establishments,Adult Social Care,Adult Social Care
Ashdown NH - Newcare Homes Ltd,CF01521915,19/11/2010,617.4,Third Party Payments,Other Establishments,Adult Social Care,Adult Social Care
Ashdown NH - Newcare Homes Ltd,CF01521916,19/11/2010,553.2,Third Party Payments,Other Establishments,Adult Social Care,Adult Social Care
Ashdown NH - Newcare Homes Ltd,CF01521917,19/11/2010,553.2,Third Party Payments,Other Establishments,Adult Social Care,Adult Social Care
Ashdown NH - Newcare Homes Ltd,CF01521918,19/11/2010,553.2,Third Party Payments,Other Establishments,Adult Social Care,Adult Social Care
Ashdown NH - Newcare Homes Ltd,CF01521919,19/11/2010,553.2,Third Party Payments,Other Establishments,Adult Social Care,Adult Social Care
Ashdown NH - Newcare Homes Ltd,CF01521920,19/11/2010,553.2,Third Party Payments,Other Establishments,Section 75 Sussex Partnership,Contrib to S31 Partnership
Ashdown NH - Newcare Homes Ltd,CF01521921,19/11/2010,553.2,Third Party Payments,Other Establishments,Section 75 Sussex Partnership,Contrib to S31 Partnership
Ashdown NH - Newcare Homes Ltd,CF01521922,19/11/2010,553.2,Third Party Payments,Other Establishments,Section 75 Sussex Partnership,Contrib to S31 Partnership
Ashdown NH - Newcare Homes Ltd,CF01521923,19/11/2010,553.2,Third Party Payments,Other Establishments,Section 75 Sussex Partnership,Contrib to S31 Partnership
Payment to Individual,42008,26/11/2010,925,Premises Related,Rents Payable,"Housing, Culture & Capital",Housing Strategy
Ashmeadows House Ltd,CF01526100,19/11/2010,734.67,Third Party Payments,Other Establishments,Section 75 Adult Social Care,Contrib to S31 Partnership
Ashmeadows House Ltd,CF01526101,19/11/2010,734.67,Third Party Payments,Other Establishments,Section 75 Adult Social Care,Contrib to S31 Partnership
Ashmeadows House Ltd,CF01526102,19/11/2010,734.67,Third Party Payments,Other Establishments,Section 75 Adult Social Care,Contrib to S31 Partnership
Ashmeadows House Ltd,CF01526103,19/11/2010,734.67,Third Party Payments,Other Establishments,Section 75 Adult Social Care,Contrib to S31 Partnership
Ashridge,4183651,24/11/2010,4950,Indirect Employees,Training,Adult Social Care,Housing Management
Ashton House,CF01521483,19/11/2010,-110.3,Customer and Client Receipts,Fees and Charges,Section 75 Sussex Partnership,Contrib to S31 Partnership
Ashton House,CF01521483,19/11/2010,748.4,Third Party Payments,Other Establishments,Section 75 Sussex Partnership,Contrib to S31 Partnership
Ashton House,CF01521484,19/11/2010,-110.3,Customer and Client Receipts,Fees and Charges,Section 75 Sussex Partnership,Contrib to S31 Partnership
Ashton House,CF01521484,19/11/2010,748.4,Third Party Payments,Other Establishments,Section 75 Sussex Partnership,Contrib to S31 Partnership
Ashton House,CF01521485,19/11/2010,-110.3,Customer and Client Receipts,Fees and Charges,Section 75 Sussex Partnership,Contrib to S31 Partnership
Ashton House,CF01521485,19/11/2010,748.4,Third Party Payments,Other Establishments,Section 75 Sussex Partnership,Contrib to S31 Partnership
Ashton House,CF01521486,19/11/2010,-110.3,Customer and Client Receipts,Fees and Charges,Section 75 Sussex Partnership,Contrib to S31 Partnership
Ashton House,CF01521486,19/11/2010,748.4,Third Party Payments,Other Establishments,Section 75 Sussex Partnership,Contrib to S31 Partnership
Ashton House,CF01521487,19/11/2010,-121.09,Customer and Client Receipts,Fees and Charges,Section 75 Sussex Partnership,Contrib to S31 Partnership
Ashton House,CF01521487,19/11/2010,748.4,Third Party Payments,Other Establishments,Section 75 Sussex Partnership,Contrib to S31 Partnership
Ashton House,CF01521488,19/11/2010,-121.09,Customer and Client Receipts,Fees and Charges,Section 75 Sussex Partnership,Contrib to S31 Partnership
Ashton House,CF01521488,19/11/2010,748.4,Third Party Payments,Other Establishments,Section 75 Sussex Partnership,Contrib to S31 Partnership
Ashton House,CF01521489,19/11/2010,-121.09,Customer and Client Receipts,Fees and Charges,Section 75 Sussex Partnership,Contrib to S31 Partnership
Ashton House,CF01521489,19/11/2010,748.4,Third Party Payments,Other Establishments,Section 75 Sussex Partnership,Contrib to S31 Partnership
Ashton House,CF01521490,19/11/2010,-121.09,Customer and Client Receipts,Fees and Charges,Section 75 Sussex Partnership,Contrib to S31 Partnership
Ashton House,CF01521490,19/11/2010,748.4,Third Party Payments,Other Establishments,Section 75 Sussex Partnership,Contrib to S31 Partnership
Ashton House,CF01521499,19/11/2010,-136.48,Customer and Client Receipts,Fees and Charges,Section 75 Sussex Partnership,Contrib to S31 Partnership
Ashton House,CF01521499,19/11/2010,802.4,Third Party Payments,Other Establishments,Section 75 Sussex Partnership,Contrib to S31 Partnership
Ashton House,CF01521500,19/11/2010,-136.48,Customer and Client Receipts,Fees and Charges,Section 75 Sussex Partnership,Contrib to S31 Partnership
Ashton House,CF01521500,19/11/2010,802.4,Third Party Payments,Other Establishments,Section 75 Sussex Partnership,Contrib to S31 Partnership
Ashton House,CF01521501,19/11/2010,-136.48,Customer and Client Receipts,Fees and Charges,Section 75 Sussex Partnership,Contrib to S31 Partnership
Ashton House,CF01521501,19/11/2010,802.4,Third Party Payments,Other Establishments,Section 75 Sussex Partnership,Contrib to S31 Partnership
Ashton House,CF01521502,19/11/2010,-136.48,Customer and Client Receipts,Fees and Charges,Section 75 Sussex Partnership,Contrib to S31 Partnership
Ashton House,CF01521502,19/11/2010,802.4,Third Party Payments,Other Establishments,Section 75 Sussex Partnership,Contrib to S31 Partnership
Ashton House,CF01521503,19/11/2010,626.4,Third Party Payments,Other Establishments,Section 75 Sussex Partnership,Contrib to S31 Partnership
Ashton House,CF01521504,19/11/2010,626.4,Third Party Payments,Other Establishments,Section 75 Sussex Partnership,Contrib to S31 Partnership
Ashton House,CF01521505,19/11/2010,626.4,Third Party Payments,Other Establishments,Section 75 Sussex Partnership,Contrib to S31 Partnership
Ashton House,CF01521506,19/11/2010,626.4,Third Party Payments,Other Establishments,Section 75 Sussex Partnership,Contrib to S31 Partnership
Aspect,4199357,19/11/2010,1750,Indirect Employees,Training,Chilren & Young People's Trust,Learning Schools & Skills
Asphaleia Ltd,CF01507089,03/11/2010,669.35,Third Party Payments,Other Establishments,Chilren & Young People's Trust,Commissioning & Governance
Asphaleia Ltd,CF01507090,03/11/2010,669.35,Third Party Payments,Other Establishments,Chilren & Young People's Trust,Commissioning & Governance
Asphaleia Ltd,CF01507091,03/11/2010,669.35,Third Party Payments,Other Establishments,Chilren & Young People's Trust,Commissioning & Governance
Asphaleia Ltd,CF01507092,03/11/2010,637.22,Third Party Payments,Other Establishments,Chilren & Young People's Trust,Commissioning & Governance
Asphaleia Ltd,CF01507093,03/11/2010,637.22,Third Party Payments,Other Establishments,Chilren & Young People's Trust,Commissioning & Governance
Asphaleia Ltd,CF01507094,03/11/2010,637.22,Third Party Payments,Other Establishments,Chilren & Young People's Trust,Commissioning & Governance
Asphaleia Ltd,CF01507095,03/11/2010,1747.6,Third Party Payments,Other Establishments,Chilren & Young People's Trust,Commissioning & Governance
Asphaleia Ltd,CF01507096,03/11/2010,637.22,Third Party Payments,Other Establishments,Chilren & Young People's Trust,Commissioning & Governance
Asphaleia Ltd,CF01507097,03/11/2010,637.22,Third Party Payments,Other Establishments,Chilren & Young People's Trust,Commissioning & Governance
Asphaleia Ltd,CF01526620,24/11/2010,669.35,Third Party Payments,Other Establishments,Chilren & Young People's Trust,Commissioning & Governance
Asphaleia Ltd,CF01526622,24/11/2010,637.22,Third Party Payments,Other Establishments,Chilren & Young People's Trust,Commissioning & Governance
Asphaleia Ltd,CF01526624,24/11/2010,637.22,Third Party Payments,Other Establishments,Chilren & Young People's Trust,Commissioning & Governance
Aspirations Active,4192024,12/11/2010,630.96,Third Party Payments,Other Establishments,Section 75 Adult Social Care,Contrib to S31 Partnership
Aspirations Active,4217925,24/11/2010,2117.64,Third Party Payments,Other Establishments,Section 75 Adult Social Care,Contrib to S31 Partnership
Aspirations Active,CF01507183,03/11/2010,538.15,Third Party Payments,Other Establishments,Section 75 Adult Social Care,Contrib to S31 Partnership
Aspirations Active,CF01507184,03/11/2010,538.15,Third Party Payments,Other Establishments,Section 75 Adult Social Care,Contrib to S31 Partnership
Aspirations Active,CF01507185,03/11/2010,538.15,Third Party Payments,Other Establishments,Section 75 Adult Social Care,Contrib to S31 Partnership
Aspirations Active,CF01507186,03/11/2010,538.15,Third Party Payments,Other Establishments,Section 75 Adult Social Care,Contrib to S31 Partnership
Aspirations Active,CF01507203,03/11/2010,559.9,Third Party Payments,Other Establishments,Section 75 Adult Social Care,Contrib to S31 Partnership
Aspirations Active,CF01507204,03/11/2010,559.9,Third Party Payments,Other Establishments,Section 75 Adult Social Care,Contrib to S31 Partnership
Aspirations Active,CF01507205,03/11/2010,559.9,Third Party Payments,Other Establishments,Section 75 Adult Social Care,Contrib to S31 Partnership
Aspirations Active,CF01507206,03/11/2010,559.9,Third Party Payments,Other Establishments,Section 75 Adult Social Care,Contrib to S31 Partnership
Aspirations Active,CF01507218,03/11/2010,582.6,Third Party Payments,Other Establishments,Section 75 Adult Social Care,Contrib to S31 Partnership
Aspirations Active,CF01507219,03/11/2010,582.6,Third Party Payments,Other Establishments,Section 75 Adult Social Care,Contrib to S31 Partnership
Aspirations Active,CF01507220,03/11/2010,582.6,Third Party Payments,Other Establishments,Section 75 Adult Social Care,Contrib to S31 Partnership
Aspirations Active,CF01507221,03/11/2010,582.6,Third Party Payments,Other Establishments,Section 75 Adult Social Care,Contrib to S31 Partnership
Aspirations Active,CF01507223,03/11/2010,548.9,Third Party Payments,Other Establishments,Section 75 Adult Social Care,Contrib to S31 Partnership
Aspirations Active,CF01507224,03/11/2010,548.9,Third Party Payments,Other Establishments,Section 75 Adult Social Care,Contrib to S31 Partnership
Aspirations Active,CF01507225,03/11/2010,548.9,Third Party Payments,Other Establishments,Section 75 Adult Social Care,Contrib to S31 Partnership
Aspirations Active,CF01507226,03/11/2010,548.9,Third Party Payments,Other Establishments,Section 75 Adult Social Care,Contrib to S31 Partnership
Asset Advantage Limited,4174851,05/11/2010,800,Capital Financing Costs,Capital Financing Costs,Finance & Resources,Financing Costs
AssetCo Rental No2 Ltd,4178792,10/11/2010,512.49,Capital Financing Costs,Capital Financing Costs,Finance & Resources,Financing Costs
AssetCo Rental No2 Ltd,4178828,10/11/2010,512.49,Capital Financing Costs,Capital Financing Costs,Finance & Resources,Financing Costs
Associated Taxis Southwick T/A Taxilink,4185581,10/11/2010,1946,Transport Related,Other Transport Costs,Chilren & Young People's Trust,Learning Schools & Skills
A TAD Ltd t/a Carewatch (Brighton & Hove),CF01509654,05/11/2010,510.61,Third Party Payments,Other Establishments,Adult Social Care,Adult Social Care
A TAD Ltd t/a Carewatch (Brighton & Hove),CF01509655,05/11/2010,637.84,Third Party Payments,Other Establishments,Adult Social Care,Adult Social Care
A TAD Ltd t/a Carewatch (Brighton & Hove),CF01509685,05/11/2010,-26,Customer and Client Receipts,Fees and Charges,Adult Social Care,Adult Social Care
A TAD Ltd t/a Carewatch (Brighton & Hove),CF01509685,05/11/2010,637.84,Third Party Payments,Other Establishments,Adult Social Care,Adult Social Care
A TAD Ltd t/a Carewatch (Brighton & Hove),CF01509693,05/11/2010,725.26,Third Party Payments,Other Establishments,Adult Social Care,Adult Social Care
A TAD Ltd t/a Carewatch (Brighton & Hove),CF01509694,05/11/2010,759,Third Party Payments,Other Establishments,Adult Social Care,Adult Social Care
A TAD Ltd t/a Carewatch (Brighton & Hove),CF01509711,05/11/2010,578.98,Third Party Payments,Other Establishments,Adult Social Care,Adult Social Care
A TAD Ltd t/a Carewatch (Brighton & Hove),CF01509712,05/11/2010,678.23,Third Party Payments,Other Establishments,Adult Social Care,Adult Social Care
A TAD Ltd t/a Carewatch (Brighton & Hove),CF01509787,05/11/2010,837.2,Third Party Payments,Other Establishments,Adult Social Care,Adult Social Care
A TAD Ltd t/a Carewatch (Brighton & Hove),CF01509788,05/11/2010,842.8,Third Party Payments,Other Establishments,Adult Social Care,Adult Social Care
A TAD Ltd t/a Carewatch (Brighton & Hove),CF01509838,05/11/2010,714.47,Third Party Payments,Other Establishments,Section 75 Sussex Partnership,Contrib to S31 Partnership
A TAD Ltd t/a Carewatch (Brighton & Hove),CF01509839,05/11/2010,842.8,Third Party Payments,Other Establishments,Section 75 Sussex Partnership,Contrib to S31 Partnership
A TAD Ltd t/a Carewatch (Brighton & Hove),CF01511411,05/11/2010,-51,Customer and Client Receipts,Fees and Charges,Adult Social Care,Adult Social Care
A TAD Ltd t/a Carewatch (Brighton & Hove),CF01511411,05/11/2010,707.44,Third Party Payments,Other Establishments,Adult Social Care,Adult Social Care
A TAD Ltd t/a Carewatch (Brighton & Hove),CF01511412,05/11/2010,-51,Customer and Client Receipts,Fees and Charges,Adult Social Care,Adult Social Care
A TAD Ltd t/a Carewatch (Brighton & Hove),CF01511412,05/11/2010,718.61,Third Party Payments,Other Establishments,Adult Social Care,Adult Social Care
A TAD Ltd t/a Carewatch (Brighton & Hove),CF01516108,12/11/2010,-38,Customer and Client Receipts,Fees and Charges,Adult Social Care,Adult Social Care
A TAD Ltd t/a Carewatch (Brighton & Hove),CF01516108,12/11/2010,539.59,Third Party Payments,Other Establishments,Adult Social Care,Adult Social Care
A TAD Ltd t/a Carewatch (Brighton & Hove),CF01516181,12/11/2010,-58,Customer and Client Receipts,Fees and Charges,Section 75 Sussex Partnership,Contrib to S31 Partnership
A TAD Ltd t/a Carewatch (Brighton & Hove),CF01516181,12/11/2010,637.84,Third Party Payments,Other Establishments,Section 75 Sussex Partnership,Contrib to S31 Partnership
A TAD Ltd t/a Carewatch (Brighton & Hove),CF01516256,12/11/2010,1025.64,Third Party Payments,Other Establishments,Section 75 Adult Social Care,Contrib to S31 Partnership
A TAD Ltd t/a Carewatch (Brighton & Hove),CF01516257,12/11/2010,793.32,Third Party Payments,Other Establishments,Section 75 Adult Social Care,Contrib to S31 Partnership
A TAD Ltd t/a Carewatch (Brighton & Hove),CF01516276,12/11/2010,-30,Customer and Client Receipts,Fees and Charges,Adult Social Care,Adult Social Care
A TAD Ltd t/a Carewatch (Brighton & Hove),CF01516276,12/11/2010,637.84,Third Party Payments,Other Establishments,Adult Social Care,Adult Social Care
A TAD Ltd t/a Carewatch (Brighton & Hove),CF01526254,19/11/2010,637.84,Third Party Payments,Other Establishments,Adult Social Care,Adult Social Care
A TAD Ltd t/a Carewatch (Brighton & Hove),CF01526277,19/11/2010,-26,Customer and Client Receipts,Fees and Charges,Adult Social Care,Adult Social Care
A TAD Ltd t/a Carewatch (Brighton & Hove),CF01526277,19/11/2010,637.84,Third Party Payments,Other Establishments,Adult Social Care,Adult Social Care
A TAD Ltd t/a Carewatch (Brighton & Hove),CF01526287,19/11/2010,658.28,Third Party Payments,Other Establishments,Adult Social Care,Adult Social Care
A TAD Ltd t/a Carewatch (Brighton & Hove),CF01526288,19/11/2010,759,Third Party Payments,Other Establishments,Adult Social Care,Adult Social Care
A TAD Ltd t/a Carewatch (Brighton & Hove),CF01526307,19/11/2010,658.45,Third Party Payments,Other Establishments,Adult Social Care,Adult Social Care
A TAD Ltd t/a Carewatch (Brighton & Hove),CF01526308,19/11/2010,678.23,Third Party Payments,Other Establishments,Adult Social Care,Adult Social Care
A TAD Ltd t/a Carewatch (Brighton & Hove),CF01526387,19/11/2010,842.8,Third Party Payments,Other Establishments,Adult Social Care,Adult Social Care
A TAD Ltd t/a Carewatch (Brighton & Hove),CF01526441,19/11/2010,763.34,Third Party Payments,Other Establishments,Section 75 Sussex Partnership,Contrib to S31 Partnership
A TAD Ltd t/a Carewatch (Brighton & Hove),CF01526442,19/11/2010,842.8,Third Party Payments,Other Establishments,Section 75 Sussex Partnership,Contrib to S31 Partnership
A TAD Ltd t/a Carewatch (Brighton & Hove),CF01526504,19/11/2010,-51,Customer and Client Receipts,Fees and Charges,Adult Social Care,Adult Social Care
A TAD Ltd t/a Carewatch (Brighton & Hove),CF01526504,19/11/2010,639.83,Third Party Payments,Other Establishments,Adult Social Care,Adult Social Care
A TAD Ltd t/a Carewatch (Brighton & Hove),CF01526505,19/11/2010,-51,Customer and Client Receipts,Fees and Charges,Adult Social Care,Adult Social Care
A TAD Ltd t/a Carewatch (Brighton & Hove),CF01526505,19/11/2010,718.61,Third Party Payments,Other Establishments,Adult Social Care,Adult Social Care
A TAD Ltd t/a Carewatch (Brighton & Hove),CF01527150,24/11/2010,1025.64,Third Party Payments,Other Establishments,Section 75 Adult Social Care,Contrib to S31 Partnership
A TAD Ltd t/a Carewatch (Brighton & Hove),CF01527151,24/11/2010,793.32,Third Party Payments,Other Establishments,Section 75 Adult Social Care,Contrib to S31 Partnership
A TAD Ltd t/a Carewatch (Brighton & Hove),CF01527438,24/11/2010,-30,Customer and Client Receipts,Fees and Charges,Adult Social Care,Adult Social Care
A TAD Ltd t/a Carewatch (Brighton & Hove),CF01527438,24/11/2010,637.84,Third Party Payments,Other Establishments,Adult Social Care,Adult Social Care
A TAD Ltd t/a Carewatch (Brighton & Hove),CF01527439,24/11/2010,-30,Customer and Client Receipts,Fees and Charges,Adult Social Care,Adult Social Care
A TAD Ltd t/a Carewatch (Brighton & Hove),CF01527439,24/11/2010,559.69,Third Party Payments,Other Establishments,Adult Social Care,Adult Social Care
A TAD Ltd t/a Carewatch (Brighton & Hove),CF01527501,24/11/2010,-58,Customer and Client Receipts,Fees and Charges,Section 75 Sussex Partnership,Contrib to S31 Partnership
A TAD Ltd t/a Carewatch (Brighton & Hove),CF01527501,24/11/2010,637.84,Third Party Payments,Other Establishments,Section 75 Sussex Partnership,Contrib to S31 Partnership
A TAD Ltd t/a Carewatch (Brighton & Hove),CF01527538,24/11/2010,-38,Customer and Client Receipts,Fees and Charges,Adult Social Care,Adult Social Care
A TAD Ltd t/a Carewatch (Brighton & Hove),CF01527538,24/11/2010,539.59,Third Party Payments,Other Establishments,Adult Social Care,Adult Social Care
Atkins Ltd/Faithful & Gould Ltd,4192011,24/11/2010,2370,New Construction and Conversion,,"Housing, Culture & Capital",Major Projects & Regeneration
ATS Euromaster Ltd,4215480,26/11/2010,67.72,Transport Related,Contract Hire and Operating Leas,Environment,Waste
ATS Euromaster Ltd,4215480,26/11/2010,706.64,Transport Related,Direct Transport Costs,Environment,Quality of Life & Green Spaces
ATS Euromaster Ltd,4215480,26/11/2010,3822.61,Transport Related,Direct Transport Costs,Environment,Waste
Audit Commission,4185073,24/11/2010,50103,Supplies and Services,Services,Finance & Resources,Financial Services
Aviation Projects Ltd,4203803,17/11/2010,1500,Plant Machinery and Equipment,,Finance & Resources,ICT
AVK/SEG (UK) Ltd,4181640,10/11/2010,636.87,Premises Related,Repair Maintenance and Alterations,Finance & Resources,Property & Design
Avon Estates (London) Ltd,41543,12/11/2010,550,Premises Related,Rents Payable,"Housing, Culture & Capital",Housing Strategy
AWCFA Limited,4186506,10/11/2010,2886,Plant Machinery and Equipment,,Finance & Resources,ICT
DS Home Solutions,4188203,12/11/2010,800,Customer and Client Receipts,Fees and Charges,Environment,Public Safety
Aztec Chemicals Limited,4200330,26/11/2010,881.7,Premises Related,Repair Maintenance and Alterations,Environment,Leisure
Baby Ducks Playgroup,UL01505021,03/11/2010,2933,Supplies and Services,Grants and Subscriptions,Chilren & Young People's Trust,Area Integrated Working
Baby Ducks Playgroup,UL01512706,10/11/2010,2016,Third Party Payments,Other Establishments,Chilren & Young People's Trust,Learning Schools & Skills
Bailey Partnership,4222376,24/11/2010,6392.8,New Construction and Conversion,,Finance & Resources,Property & Design
Ballater House,CF01527703,24/11/2010,-71.15,Customer and Client Receipts,Fees and Charges,Section 75 Adult Social Care,Contrib to S31 Partnership
Ballater House,CF01527703,24/11/2010,1995,Third Party Payments,Other Establishments,Section 75 Adult Social Care,Contrib to S31 Partnership
Ballater House,CF01527704,24/11/2010,-71.15,Customer and Client Receipts,Fees and Charges,Section 75 Adult Social Care,Contrib to S31 Partnership
Ballater House,CF01527704,24/11/2010,1995,Third Party Payments,Other Establishments,Section 75 Adult Social Care,Contrib to S31 Partnership
Ballater House,CF01527705,24/11/2010,-71.15,Customer and Client Receipts,Fees and Charges,Section 75 Adult Social Care,Contrib to S31 Partnership
Ballater House,CF01527705,24/11/2010,1995,Third Party Payments,Other Establishments,Section 75 Adult Social Care,Contrib to S31 Partnership
Ballater House,CF01527706,24/11/2010,-71.15,Customer and Client Receipts,Fees and Charges,Section 75 Adult Social Care,Contrib to S31 Partnership
Ballater House,CF01527706,24/11/2010,1995,Third Party Payments,Other Establishments,Section 75 Adult Social Care,Contrib to S31 Partnership
BandBazi,4221199,24/11/2010,750,Supplies and Services,Miscellaneous Expenses,"Housing, Culture & Capital",Culture & Economy
BandBazi,4224219,24/11/2010,1250,Supplies and Services,Miscellaneous Expenses,"Housing, Culture & Capital",Culture & Economy
Payment to Individual,41569,12/11/2010,560,Premises Related,Rents Payable,"Housing, Culture & Capital",Housing Strategy
Payment to Individual,41859,24/11/2010,765,Premises Related,Rents Payable,"Housing, Culture & Capital",Housing Strategy
Payment to Individual,41860,24/11/2010,615,Premises Related,Rents Payable,"Housing, Culture & Capital",Housing Strategy
Payment to Individual,41861,24/11/2010,915,Premises Related,Rents Payable,"Housing, Culture & Capital",Housing Strategy
Payment to Individual,41862,24/11/2010,615,Premises Related,Rents Payable,"Housing, Culture & Capital",Housing Strategy
Barchester Healthcare Homes Ltd,CF01513973,12/11/2010,-141.43,Customer and Client Receipts,Fees and Charges,Adult Social Care,Adult Social Care
Barchester Healthcare Homes Ltd,CF01513973,12/11/2010,1078.92,Third Party Payments,Other Establishments,Adult Social Care,Adult Social Care
Barchester Healthcare Homes Ltd,CF01513974,12/11/2010,-141.43,Customer and Client Receipts,Fees and Charges,Adult Social Care,Adult Social Care
Barchester Healthcare Homes Ltd,CF01513974,12/11/2010,1078.92,Third Party Payments,Other Establishments,Adult Social Care,Adult Social Care
Barchester Healthcare Homes Ltd,CF01513975,12/11/2010,-141.43,Customer and Client Receipts,Fees and Charges,Adult Social Care,Adult Social Care
Barchester Healthcare Homes Ltd,CF01513975,12/11/2010,1078.92,Third Party Payments,Other Establishments,Adult Social Care,Adult Social Care
Barchester Healthcare Homes Ltd,CF01513976,12/11/2010,-141.43,Customer and Client Receipts,Fees and Charges,Adult Social Care,Adult Social Care
Barchester Healthcare Homes Ltd,CF01513976,12/11/2010,1078.92,Third Party Payments,Other Establishments,Adult Social Care,Adult Social Care
Barnardos,CF01505056,12/11/2010,803.67,Third Party Payments,Other Establishments,Chilren & Young People's Trust,Commissioning & Governance
Barnardos,CF01505057,12/11/2010,803.67,Third Party Payments,Other Establishments,Chilren & Young People's Trust,Commissioning & Governance
Barnardos,CF01505058,12/11/2010,803.67,Third Party Payments,Other Establishments,Chilren & Young People's Trust,Commissioning & Governance
Barnardos,CF01505059,12/11/2010,803.67,Third Party Payments,Other Establishments,Chilren & Young People's Trust,Commissioning & Governance
Bartlett Mechanical Services Ltd,4194446,17/11/2010,2100,Direct Employees,Salaries,Finance & Resources,Property & Design
Bates Wells & Braithwaite London LLP,4171883,03/11/2010,500,New Construction and Conversion,,"Housing, Culture & Capital",Culture & Economy
Bay Media Ltd,4165705,17/11/2010,1200,Supplies and Services,Miscellaneous Expenses,"Housing, Culture & Capital",Tourism & Venues
Beacon Fencing Ltd,4195827,17/11/2010,780,Supplies and Services,Equipment Furniture and Materials,Environment,Quality of Life & Green Spaces
BeCCA Playgroup,4165297,03/11/2010,523.8,Supplies and Services,Miscellaneous Expenses,Chilren & Young People's Trust,Area Integrated Working
BeCCA Playgroup,UL01504998,03/11/2010,674,Supplies and Services,Grants and Subscriptions,Chilren & Young People's Trust,Area Integrated Working
Beech Lodge,CF01514013,12/11/2010,-84.1,Customer and Client Receipts,Fees and Charges,Section 75 Adult Social Care,Contrib to S31 Partnership
Beech Lodge,CF01514013,12/11/2010,1594.93,Third Party Payments,Other Establishments,Section 75 Adult Social Care,Contrib to S31 Partnership
Beech Lodge,CF01514014,12/11/2010,-84.1,Customer and Client Receipts,Fees and Charges,Section 75 Adult Social Care,Contrib to S31 Partnership
Beech Lodge,CF01514014,12/11/2010,1594.93,Third Party Payments,Other Establishments,Section 75 Adult Social Care,Contrib to S31 Partnership
Beech Lodge,CF01514015,12/11/2010,-84.1,Customer and Client Receipts,Fees and Charges,Section 75 Adult Social Care,Contrib to S31 Partnership
Beech Lodge,CF01514015,12/11/2010,1594.93,Third Party Payments,Other Establishments,Section 75 Adult Social Care,Contrib to S31 Partnership
Beech Lodge,CF01514016,12/11/2010,-84.1,Customer and Client Receipts,Fees and Charges,Section 75 Adult Social Care,Contrib to S31 Partnership
Beech Lodge,CF01514016,12/11/2010,1594.93,Third Party Payments,Other Establishments,Section 75 Adult Social Care,Contrib to S31 Partnership
BemroseBooth Ltd,4167075,17/11/2010,716.5,Supplies and Services,Printing Stationery & General Office Expenses,Environment,Sustainable Transport&Planning
Bevendean Local Action Team,4179283,10/11/2010,1000,Supplies and Services,Miscellaneous Expenses,Strategy & Governance,Communities & Equality
BHAFC Albion in the Community,4169413,03/11/2010,544,Supplies and Services,Miscellaneous Expenses,"Housing, Culture & Capital",Culture & Economy
BHAFC Albion in the Community,4169439,03/11/2010,3970,Supplies and Services,Miscellaneous Expenses,"Housing, Culture & Capital",Culture & Economy
BHAFC Albion in the Community,4194679,17/11/2010,1500,Supplies and Services,Contributions to Provisions,Environment,Leisure
B & H Business Community Partnership,4177599,05/11/2010,870,Indirect Employees,Training,Strategy & Governance,Communities & Equality
B & H Business Community Partnership,4177625,05/11/2010,1037.83,Supplies and Services,Miscellaneous Expenses,Strategy & Governance,Communities & Equality
BHTA Ltd,4201245,17/11/2010,2410.3,Indirect Employees,Training,Strategy & Governance,Human Resources
Birchgrove Healthcare (Sussex) Ltd,CF01524807,19/11/2010,591.2,Third Party Payments,Other Establishments,Section 75 Sussex Partnership,Contrib to S31 Partnership
Birchgrove Healthcare (Sussex) Ltd,CF01524808,19/11/2010,591.2,Third Party Payments,Other Establishments,Section 75 Sussex Partnership,Contrib to S31 Partnership
Birchgrove Healthcare (Sussex) Ltd,CF01524809,19/11/2010,591.2,Third Party Payments,Other Establishments,Section 75 Sussex Partnership,Contrib to S31 Partnership
Birchgrove Healthcare (Sussex) Ltd,CF01524810,19/11/2010,591.2,Third Party Payments,Other Establishments,Section 75 Sussex Partnership,Contrib to S31 Partnership
Birchgrove Healthcare (Sussex) Ltd,CF01524815,19/11/2010,516.3,Third Party Payments,Other Establishments,Adult Social Care,Adult Social Care
Birchgrove Healthcare (Sussex) Ltd,CF01524816,19/11/2010,516.3,Third Party Payments,Other Establishments,Adult Social Care,Adult Social Care
Birchgrove Healthcare (Sussex) Ltd,CF01524817,19/11/2010,516.3,Third Party Payments,Other Establishments,Adult Social Care,Adult Social Care
Birchgrove Healthcare (Sussex) Ltd,CF01524818,19/11/2010,516.3,Third Party Payments,Other Establishments,Adult Social Care,Adult Social Care
Birchgrove Healthcare (Sussex) Ltd,CF01524823,19/11/2010,594.3,Third Party Payments,Other Establishments,Section 75 Sussex Partnership,Contrib to S31 Partnership
Birchgrove Healthcare (Sussex) Ltd,CF01524824,19/11/2010,594.3,Third Party Payments,Other Establishments,Section 75 Sussex Partnership,Contrib to S31 Partnership
Birchgrove Healthcare (Sussex) Ltd,CF01524825,19/11/2010,594.3,Third Party Payments,Other Establishments,Section 75 Sussex Partnership,Contrib to S31 Partnership
Birchgrove Healthcare (Sussex) Ltd,CF01524826,19/11/2010,594.3,Third Party Payments,Other Establishments,Section 75 Sussex Partnership,Contrib to S31 Partnership
Birchgrove Healthcare (Sussex) Ltd,CF01524831,19/11/2010,720.4,Third Party Payments,Other Establishments,Adult Social Care,Adult Social Care
Birchgrove Healthcare (Sussex) Ltd,CF01524832,19/11/2010,720.4,Third Party Payments,Other Establishments,Adult Social Care,Adult Social Care
Birchgrove Healthcare (Sussex) Ltd,CF01524833,19/11/2010,720.4,Third Party Payments,Other Establishments,Adult Social Care,Adult Social Care
Birchgrove Healthcare (Sussex) Ltd,CF01524834,19/11/2010,720.4,Third Party Payments,Other Establishments,Adult Social Care,Adult Social Care
Birchgrove Healthcare (Sussex) Ltd,CF01524843,19/11/2010,552.4,Third Party Payments,Other Establishments,Section 75 Sussex Partnership,Contrib to S31 Partnership
Birchgrove Healthcare (Sussex) Ltd,CF01524844,19/11/2010,552.4,Third Party Payments,Other Establishments,Section 75 Sussex Partnership,Contrib to S31 Partnership
Birchgrove Healthcare (Sussex) Ltd,CF01524845,19/11/2010,552.4,Third Party Payments,Other Establishments,Section 75 Sussex Partnership,Contrib to S31 Partnership
Birchgrove Healthcare (Sussex) Ltd,CF01524846,19/11/2010,552.4,Third Party Payments,Other Establishments,Section 75 Sussex Partnership,Contrib to S31 Partnership
Birchgrove Healthcare (Sussex) Ltd,CF01524847,19/11/2010,559.3,Third Party Payments,Other Establishments,Section 75 Sussex Partnership,Contrib to S31 Partnership
Birchgrove Healthcare (Sussex) Ltd,CF01524848,19/11/2010,559.3,Third Party Payments,Other Establishments,Section 75 Sussex Partnership,Contrib to S31 Partnership
Birchgrove Healthcare (Sussex) Ltd,CF01524849,19/11/2010,559.3,Third Party Payments,Other Establishments,Section 75 Sussex Partnership,Contrib to S31 Partnership
Birchgrove Healthcare (Sussex) Ltd,CF01524850,19/11/2010,559.3,Third Party Payments,Other Establishments,Section 75 Sussex Partnership,Contrib to S31 Partnership
Birchgrove Healthcare (Sussex) Ltd,CF01524860,19/11/2010,897,Third Party Payments,Other Establishments,Section 75 Adult Social Care,Contrib to S31 Partnership
Birchgrove Healthcare (Sussex) Ltd,CF01524861,19/11/2010,897,Third Party Payments,Other Establishments,Section 75 Adult Social Care,Contrib to S31 Partnership
Birchgrove Healthcare (Sussex) Ltd,CF01524862,19/11/2010,897,Third Party Payments,Other Establishments,Section 75 Adult Social Care,Contrib to S31 Partnership
Birchgrove Healthcare (Sussex) Ltd,CF01524863,19/11/2010,897,Third Party Payments,Other Establishments,Section 75 Adult Social Care,Contrib to S31 Partnership
Birchgrove Healthcare (Sussex) Ltd,CF01524864,19/11/2010,1045,Third Party Payments,Other Establishments,Section 75 Adult Social Care,Contrib to S31 Partnership
Birchgrove Healthcare (Sussex) Ltd,CF01524865,19/11/2010,1045,Third Party Payments,Other Establishments,Section 75 Adult Social Care,Contrib to S31 Partnership
Birchgrove Healthcare (Sussex) Ltd,CF01524866,19/11/2010,1045,Third Party Payments,Other Establishments,Section 75 Adult Social Care,Contrib to S31 Partnership
Birchgrove Healthcare (Sussex) Ltd,CF01524867,19/11/2010,1045,Third Party Payments,Other Establishments,Section 75 Adult Social Care,Contrib to S31 Partnership
Birchgrove Healthcare (Sussex) Ltd,CF01524888,19/11/2010,559.3,Third Party Payments,Other Establishments,Section 75 Sussex Partnership,Contrib to S31 Partnership
Birchgrove Healthcare (Sussex) Ltd,CF01524889,19/11/2010,559.3,Third Party Payments,Other Establishments,Section 75 Sussex Partnership,Contrib to S31 Partnership
Birchgrove Healthcare (Sussex) Ltd,CF01524890,19/11/2010,559.3,Third Party Payments,Other Establishments,Section 75 Sussex Partnership,Contrib to S31 Partnership
Birchgrove Healthcare (Sussex) Ltd,CF01524891,19/11/2010,559.3,Third Party Payments,Other Establishments,Section 75 Sussex Partnership,Contrib to S31 Partnership
Birchgrove Healthcare (Sussex) Ltd,CF01524910,19/11/2010,-89.5,Customer and Client Receipts,Fees and Charges,Adult Social Care,Adult Social Care
Birchgrove Healthcare (Sussex) Ltd,CF01524910,19/11/2010,597.06,Third Party Payments,Other Establishments,Adult Social Care,Adult Social Care
Birchgrove Healthcare (Sussex) Ltd,CF01524911,19/11/2010,-89.5,Customer and Client Receipts,Fees and Charges,Adult Social Care,Adult Social Care
Birchgrove Healthcare (Sussex) Ltd,CF01524911,19/11/2010,597.06,Third Party Payments,Other Establishments,Adult Social Care,Adult Social Care
Birchgrove Healthcare (Sussex) Ltd,CF01524912,19/11/2010,-89.5,Customer and Client Receipts,Fees and Charges,Adult Social Care,Adult Social Care
Birchgrove Healthcare (Sussex) Ltd,CF01524912,19/11/2010,597.06,Third Party Payments,Other Establishments,Adult Social Care,Adult Social Care
Birchgrove Healthcare (Sussex) Ltd,CF01524913,19/11/2010,-89.5,Customer and Client Receipts,Fees and Charges,Adult Social Care,Adult Social Care
Birchgrove Healthcare (Sussex) Ltd,CF01524913,19/11/2010,597.06,Third Party Payments,Other Establishments,Adult Social Care,Adult Social Care
Birchwood Grove Nursing Home,CF01507609,03/11/2010,571.4,Third Party Payments,Other Establishments,Section 75 Sussex Partnership,Contrib to S31 Partnership
Birchwood Grove Nursing Home,CF01507610,03/11/2010,571.4,Third Party Payments,Other Establishments,Section 75 Sussex Partnership,Contrib to S31 Partnership
Birchwood Grove Nursing Home,CF01507611,03/11/2010,571.4,Third Party Payments,Other Establishments,Section 75 Sussex Partnership,Contrib to S31 Partnership
Birchwood Grove Nursing Home,CF01507612,03/11/2010,571.4,Third Party Payments,Other Establishments,Section 75 Sussex Partnership,Contrib to S31 Partnership
Birchwood Grove Nursing Home,CF01507616,03/11/2010,574.4,Third Party Payments,Other Establishments,Section 75 Sussex Partnership,Contrib to S31 Partnership
Birchwood Grove Nursing Home,CF01507629,03/11/2010,707.3,Third Party Payments,Other Establishments,Section 75 Sussex Partnership,Contrib to S31 Partnership
Birchwood Grove Nursing Home,CF01507630,03/11/2010,707.3,Third Party Payments,Other Establishments,Section 75 Sussex Partnership,Contrib to S31 Partnership
Birchwood Grove Nursing Home,CF01507631,03/11/2010,707.3,Third Party Payments,Other Establishments,Section 75 Sussex Partnership,Contrib to S31 Partnership
Birchwood Grove Nursing Home,CF01507632,03/11/2010,707.3,Third Party Payments,Other Establishments,Section 75 Sussex Partnership,Contrib to S31 Partnership
Birchwood Grove Nursing Home,CF01521520,19/11/2010,571.4,Third Party Payments,Other Establishments,Section 75 Sussex Partnership,Contrib to S31 Partnership
Birchwood Grove Nursing Home,CF01521521,19/11/2010,571.4,Third Party Payments,Other Establishments,Section 75 Sussex Partnership,Contrib to S31 Partnership
Birchwood Grove Nursing Home,CF01521522,19/11/2010,571.4,Third Party Payments,Other Establishments,Section 75 Sussex Partnership,Contrib to S31 Partnership
Birchwood Grove Nursing Home,CF01521523,19/11/2010,571.4,Third Party Payments,Other Establishments,Section 75 Sussex Partnership,Contrib to S31 Partnership
Birchwood Grove Nursing Home,CF01521540,19/11/2010,707.3,Third Party Payments,Other Establishments,Section 75 Sussex Partnership,Contrib to S31 Partnership
Birchwood Grove Nursing Home,CF01521541,19/11/2010,707.3,Third Party Payments,Other Establishments,Section 75 Sussex Partnership,Contrib to S31 Partnership
Birchwood Grove Nursing Home,CF01521542,19/11/2010,707.3,Third Party Payments,Other Establishments,Section 75 Sussex Partnership,Contrib to S31 Partnership
Birchwood Grove Nursing Home,CF01521543,19/11/2010,707.3,Third Party Payments,Other Establishments,Section 75 Sussex Partnership,Contrib to S31 Partnership
Bishop`s Move,4177544,05/11/2010,842.8,Supplies and Services,Miscellaneous Expenses,"Housing, Culture & Capital",Housing Strategy
Bishop`s Move,4177557,05/11/2010,572,Supplies and Services,Miscellaneous Expenses,"Housing, Culture & Capital",Housing Strategy
Bishop`s Move,4177560,05/11/2010,1974.8,Supplies and Services,Miscellaneous Expenses,"Housing, Culture & Capital",Housing Strategy
Bishop`s Move,4180670,10/11/2010,1974.8,Supplies and Services,Miscellaneous Expenses,"Housing, Culture & Capital",Housing Strategy
Bishops Printers Ltd,4181556,10/11/2010,545,Supplies and Services,Miscellaneous Expenses,"Housing, Culture & Capital",Tourism & Venues
B & J G Richardson Business Account,CF01513977,12/11/2010,-1054.82,Customer and Client Receipts,Fees and Charges,Adult Social Care,Adult Social Care
B & J G Richardson Business Account,CF01513977,12/11/2010,1827.53,Third Party Payments,Other Establishments,Adult Social Care,Adult Social Care
B & J G Richardson Business Account,CF01513978,12/11/2010,-1054.82,Customer and Client Receipts,Fees and Charges,Adult Social Care,Adult Social Care
B & J G Richardson Business Account,CF01513978,12/11/2010,1827.53,Third Party Payments,Other Establishments,Adult Social Care,Adult Social Care
B & J G Richardson Business Account,CF01513979,12/11/2010,-1054.82,Customer and Client Receipts,Fees and Charges,Adult Social Care,Adult Social Care
B & J G Richardson Business Account,CF01513979,12/11/2010,1827.53,Third Party Payments,Other Establishments,Adult Social Care,Adult Social Care
B & J G Richardson Business Account,CF01513980,12/11/2010,-1054.82,Customer and Client Receipts,Fees and Charges,Adult Social Care,Adult Social Care
B & J G Richardson Business Account,CF01513980,12/11/2010,1827.53,Third Party Payments,Other Establishments,Adult Social Care,Adult Social Care
Blackburns Metals Ltd,4188122,12/11/2010,842.8,Supplies and Services,Equipment Furniture and Materials,Strategy & Governance,Communications
Blackburns Metals Ltd,4188436,12/11/2010,552.2,Supplies and Services,Equipment Furniture and Materials,Strategy & Governance,Communications
Blackburns Metals Ltd,4188517,19/11/2010,757.5,Supplies and Services,Equipment Furniture and Materials,Strategy & Governance,Communications
Blackburns Metals Ltd,4188520,19/11/2010,1081.5,Supplies and Services,Equipment Furniture and Materials,Strategy & Governance,Communications
Blaker Son & Young,4181925,04/11/2010,942,Transfer Payments,Other Transfer Payments,Chilren & Young People's Trust,Area Integrated Working
Blueberry Nursery & Early Learning Organisation Ld,UL01504964,03/11/2010,7881,Supplies and Services,Grants and Subscriptions,Chilren & Young People's Trust,Area Integrated Working
Blueberry Nursery & Early Learning Organisation Ld,UL01512649,10/11/2010,7840,Third Party Payments,Other Establishments,Chilren & Young People's Trust,Learning Schools & Skills
Blue Sky Fostering Limited,CF01521073,17/11/2010,1043.1,Third Party Payments,Other Establishments,Chilren & Young People's Trust,Commissioning & Governance
Blue Sky Fostering Limited,CF01521074,17/11/2010,811.3,Third Party Payments,Other Establishments,Chilren & Young People's Trust,Commissioning & Governance
Blue Sky Fostering Limited,CF01521075,17/11/2010,811.3,Third Party Payments,Other Establishments,Chilren & Young People's Trust,Commissioning & Governance
Blue Sky Fostering Limited,CF01521076,17/11/2010,811.3,Third Party Payments,Other Establishments,Chilren & Young People's Trust,Commissioning & Governance
Blue Sky Fostering Limited,CF01521077,17/11/2010,1043.1,Third Party Payments,Other Establishments,Chilren & Young People's Trust,Commissioning & Governance
Blue Sky Fostering Limited,CF01521078,17/11/2010,811.3,Third Party Payments,Other Establishments,Chilren & Young People's Trust,Commissioning & Governance
Blue Sky Fostering Limited,CF01521079,17/11/2010,811.3,Third Party Payments,Other Establishments,Chilren & Young People's Trust,Commissioning & Governance
Blue Sky Fostering Limited,CF01521080,17/11/2010,811.3,Third Party Payments,Other Establishments,Chilren & Young People's Trust,Commissioning & Governance
Boogie Mites UK Ltd,4182665,10/11/2010,4490,Supplies and Services,Grants and Subscriptions,Chilren & Young People's Trust,Area Integrated Working
Boomerang Kids,4228749,26/11/2010,2475,Supplies and Services,Services,Chilren & Young People's Trust,Learning Schools & Skills
Boomerang Kids,UL01504999,03/11/2010,7300,Supplies and Services,Grants and Subscriptions,Chilren & Young People's Trust,Area Integrated Working
Boomerang Kids,UL01512684,10/11/2010,4200,Third Party Payments,Other Establishments,Chilren & Young People's Trust,Learning Schools & Skills
Bourne Amenity Ltd,4161408,03/11/2010,4867.2,Supplies and Services,Equipment Furniture and Materials,Environment,Quality of Life & Green Spaces
Brackley Educational Consultancy,4176134,05/11/2010,1750,Supplies and Services,Services,Chilren & Young People's Trust,Learning Schools & Skills
Bramber Nursing Home Ltd,CF01522116,19/11/2010,676.4,Third Party Payments,Other Establishments,Section 75 Sussex Partnership,Contrib to S31 Partnership
Bramber Nursing Home Ltd,CF01522117,19/11/2010,676.4,Third Party Payments,Other Establishments,Section 75 Sussex Partnership,Contrib to S31 Partnership
Bramber Nursing Home Ltd,CF01522118,19/11/2010,676.4,Third Party Payments,Other Establishments,Section 75 Sussex Partnership,Contrib to S31 Partnership
Bramber Nursing Home Ltd,CF01522119,19/11/2010,676.4,Third Party Payments,Other Establishments,Section 75 Sussex Partnership,Contrib to S31 Partnership
Bramble Care Homes Ltd,CF01522120,19/11/2010,-118.7,Customer and Client Receipts,Fees and Charges,Adult Social Care,Adult Social Care
Bramble Care Homes Ltd,CF01522120,19/11/2010,635,Third Party Payments,Other Establishments,Adult Social Care,Adult Social Care
Bramble Care Homes Ltd,CF01522121,19/11/2010,-118.7,Customer and Client Receipts,Fees and Charges,Adult Social Care,Adult Social Care
Bramble Care Homes Ltd,CF01522121,19/11/2010,635,Third Party Payments,Other Establishments,Adult Social Care,Adult Social Care
Bramble Care Homes Ltd,CF01522122,19/11/2010,-118.7,Customer and Client Receipts,Fees and Charges,Adult Social Care,Adult Social Care
Bramble Care Homes Ltd,CF01522122,19/11/2010,635,Third Party Payments,Other Establishments,Adult Social Care,Adult Social Care
Bramble Care Homes Ltd,CF01522123,19/11/2010,-118.7,Customer and Client Receipts,Fees and Charges,Adult Social Care,Adult Social Care
Bramble Care Homes Ltd,CF01522123,19/11/2010,635,Third Party Payments,Other Establishments,Adult Social Care,Adult Social Care
Bridge Community Education Centre,4177049,05/11/2010,10000,Third Party Payments,Other Establishments,Chilren & Young People's Trust,Learning Schools & Skills
Bridge Community Education Centre,4196538,17/11/2010,7500,Third Party Payments,Other Establishments,Adult Social Care,Housing Strategy
Brighter Futures Foster Care Ltd,CF01517297,12/11/2010,620.66,Third Party Payments,Other Establishments,Chilren & Young People's Trust,Commissioning & Governance
Brighter Futures Foster Care Ltd,CF01517298,12/11/2010,620.66,Third Party Payments,Other Establishments,Chilren & Young People's Trust,Commissioning & Governance
Brighter Futures Foster Care Ltd,CF01517299,12/11/2010,620.66,Third Party Payments,Other Establishments,Chilren & Young People's Trust,Commissioning & Governance
Brighter Futures Foster Care Ltd,CF01517300,12/11/2010,620.66,Third Party Payments,Other Establishments,Chilren & Young People's Trust,Commissioning & Governance
Brighter Futures Foster Care Ltd,CF01517302,12/11/2010,620.66,Third Party Payments,Other Establishments,Chilren & Young People's Trust,Commissioning & Governance
Brighter Futures Foster Care Ltd,CF01517303,12/11/2010,620.66,Third Party Payments,Other Establishments,Chilren & Young People's Trust,Commissioning & Governance
Brighter Futures Foster Care Ltd,CF01517304,12/11/2010,620.66,Third Party Payments,Other Establishments,Chilren & Young People's Trust,Commissioning & Governance
Brighter Futures Foster Care Ltd,CF01517305,12/11/2010,620.66,Third Party Payments,Other Establishments,Chilren & Young People's Trust,Commissioning & Governance
Brighter Futures Foster Care Ltd,CF01517307,12/11/2010,620.66,Third Party Payments,Other Establishments,Chilren & Young People's Trust,Commissioning & Governance
Brighter Futures Foster Care Ltd,CF01517308,12/11/2010,620.66,Third Party Payments,Other Establishments,Chilren & Young People's Trust,Commissioning & Governance
Brighter Futures Foster Care Ltd,CF01517309,12/11/2010,620.66,Third Party Payments,Other Establishments,Chilren & Young People's Trust,Commissioning & Governance
Brighter Futures Foster Care Ltd,CF01517310,12/11/2010,620.66,Third Party Payments,Other Establishments,Chilren & Young People's Trust,Commissioning & Governance
Brighter Futures Foster Care Ltd,CF01517311,12/11/2010,700.71,Third Party Payments,Other Establishments,Chilren & Young People's Trust,Commissioning & Governance
Brighter Futures Foster Care Ltd,CF01517312,12/11/2010,860,Third Party Payments,Other Establishments,Chilren & Young People's Trust,Commissioning & Governance
Brighter Futures Foster Care Ltd,CF01517313,12/11/2010,860,Third Party Payments,Other Establishments,Chilren & Young People's Trust,Commissioning & Governance
Brighter Futures Foster Care Ltd,CF01517314,12/11/2010,860,Third Party Payments,Other Establishments,Chilren & Young People's Trust,Commissioning & Governance
Brighter Futures Foster Care Ltd,CF01517315,12/11/2010,860,Third Party Payments,Other Establishments,Chilren & Young People's Trust,Commissioning & Governance
Brighter Futures Foster Care Ltd,CF01517317,12/11/2010,860,Third Party Payments,Other Establishments,Chilren & Young People's Trust,Commissioning & Governance
Brighter Futures Foster Care Ltd,CF01517318,12/11/2010,860,Third Party Payments,Other Establishments,Chilren & Young People's Trust,Commissioning & Governance
Brighter Futures Foster Care Ltd,CF01517319,12/11/2010,860,Third Party Payments,Other Establishments,Chilren & Young People's Trust,Commissioning & Governance
Brighter Futures Foster Care Ltd,CF01517320,12/11/2010,860,Third Party Payments,Other Establishments,Chilren & Young People's Trust,Commissioning & Governance
Brighter Futures Foster Care Ltd,CF01517322,12/11/2010,760,Third Party Payments,Other Establishments,Chilren & Young People's Trust,Commissioning & Governance
Brighter Futures Foster Care Ltd,CF01517323,12/11/2010,760,Third Party Payments,Other Establishments,Chilren & Young People's Trust,Commissioning & Governance
Brighter Futures Foster Care Ltd,CF01517324,12/11/2010,760,Third Party Payments,Other Establishments,Chilren & Young People's Trust,Commissioning & Governance
Brighter Futures Foster Care Ltd,CF01517325,12/11/2010,760,Third Party Payments,Other Establishments,Chilren & Young People's Trust,Commissioning & Governance
Brighter Futures Foster Care Ltd,CF01517327,12/11/2010,760,Third Party Payments,Other Establishments,Chilren & Young People's Trust,Commissioning & Governance
Brighter Futures Foster Care Ltd,CF01517328,12/11/2010,760,Third Party Payments,Other Establishments,Chilren & Young People's Trust,Commissioning & Governance
Brighter Futures Foster Care Ltd,CF01517329,12/11/2010,760,Third Party Payments,Other Establishments,Chilren & Young People's Trust,Commissioning & Governance
Brighter Futures Foster Care Ltd,CF01517330,12/11/2010,760,Third Party Payments,Other Establishments,Chilren & Young People's Trust,Commissioning & Governance
Brighter Futures Foster Care Ltd,CF01517808,17/11/2010,620.66,Third Party Payments,Other Establishments,Chilren & Young People's Trust,Commissioning & Governance
Brighter Futures Foster Care Ltd,CF01517809,17/11/2010,620.66,Third Party Payments,Other Establishments,Chilren & Young People's Trust,Commissioning & Governance
Brighter Futures Foster Care Ltd,CF01517810,17/11/2010,620.66,Third Party Payments,Other Establishments,Chilren & Young People's Trust,Commissioning & Governance
Brighter Futures Foster Care Ltd,CF01517811,17/11/2010,620.66,Third Party Payments,Other Establishments,Chilren & Young People's Trust,Commissioning & Governance
Brighter Futures Foster Care Ltd,CF01517813,17/11/2010,620.66,Third Party Payments,Other Establishments,Chilren & Young People's Trust,Commissioning & Governance
Brighter Futures Foster Care Ltd,CF01517814,17/11/2010,620.66,Third Party Payments,Other Establishments,Chilren & Young People's Trust,Commissioning & Governance
Brighter Futures Foster Care Ltd,CF01517815,17/11/2010,620.66,Third Party Payments,Other Establishments,Chilren & Young People's Trust,Commissioning & Governance
Brighter Futures Foster Care Ltd,CF01517816,17/11/2010,620.66,Third Party Payments,Other Establishments,Chilren & Young People's Trust,Commissioning & Governance
Brighter Futures Foster Care Ltd,CF01517818,17/11/2010,620.66,Third Party Payments,Other Establishments,Chilren & Young People's Trust,Commissioning & Governance
Brighter Futures Foster Care Ltd,CF01517819,17/11/2010,620.66,Third Party Payments,Other Establishments,Chilren & Young People's Trust,Commissioning & Governance
Brighter Futures Foster Care Ltd,CF01517820,17/11/2010,620.66,Third Party Payments,Other Establishments,Chilren & Young People's Trust,Commissioning & Governance
Brighter Futures Foster Care Ltd,CF01517821,17/11/2010,620.66,Third Party Payments,Other Establishments,Chilren & Young People's Trust,Commissioning & Governance
Brighter Futures Foster Care Ltd,CF01519585,17/11/2010,3365.71,Third Party Payments,Other Establishments,Chilren & Young People's Trust,Commissioning & Governance
Brighter Futures Foster Care Ltd,CF01519587,17/11/2010,3365.71,Third Party Payments,Other Establishments,Chilren & Young People's Trust,Commissioning & Governance
Brighthelm Pre-School ,UL01505024,03/11/2010,849,Supplies and Services,Grants and Subscriptions,Chilren & Young People's Trust,Area Integrated Working
Brighthelm Pre-School ,UL01512709,10/11/2010,560,Third Party Payments,Other Establishments,Chilren & Young People's Trust,Learning Schools & Skills
BrightonArt Ltd,4224138,24/11/2010,639.37,Supplies and Services,Miscellaneous Expenses,"Housing, Culture & Capital",Culture & Economy
Brighton College,UL01504972,03/11/2010,5530,Supplies and Services,Grants and Subscriptions,Chilren & Young People's Trust,Area Integrated Working
Brighton College,UL01512657,10/11/2010,5200,Third Party Payments,Other Establishments,Chilren & Young People's Trust,Learning Schools & Skills
Brighton Day Nursery,UL01504995,03/11/2010,1113,Supplies and Services,Grants and Subscriptions,Chilren & Young People's Trust,Area Integrated Working
Brighton Day Nursery,UL01512680,10/11/2010,700,Third Party Payments,Other Establishments,Chilren & Young People's Trust,Learning Schools & Skills
Brighton Design Associates Ltd,4224772,24/11/2010,540,Supplies and Services,Miscellaneous Expenses,"Housing, Culture & Capital",Tourism & Venues
Brighton Dome & Festival Ltd,4179649,10/11/2010,3320.85,Premises Related,Energy Costs,"Housing, Culture & Capital",Royal Pavilion & Museums
Brighton Dome & Festival Ltd,4179649,10/11/2010,765.63,Premises Related,Water Services,"Housing, Culture & Capital",Royal Pavilion & Museums
Brighton Dome & Festival Ltd,4191928,12/11/2010,28928.25,Premises Related,Repair Maintenance and Alterations,Finance & Resources,Property & Design
Brighton Dome & Festival Ltd,4194187,12/11/2010,28928.25,Premises Related,Repair Maintenance and Alterations,Finance & Resources,Property & Design
Brighton Dome & Festival Ltd,4214614,24/11/2010,8102.79,Premises Related,Energy Costs,"Housing, Culture & Capital",Royal Pavilion & Museums
Brighton Dome & Festival (Trading) Ltd,4166830,03/11/2010,900,Supplies and Services,Miscellaneous Expenses,Strategy & Governance,Communications
Brighton Festival Fringe Limited,4218649,24/11/2010,5250,Supplies and Services,Miscellaneous Expenses,"Housing, Culture & Capital",Tourism & Venues
Brighton Goes Gospel,4169617,03/11/2010,-1452.15,Customer and Client Receipts,Fees and Charges,"Housing, Culture & Capital",Tourism & Venues
Brighton Goes Gospel,4169617,03/11/2010,4855.5,Customer and Client Receipts,Sales,"Housing, Culture & Capital",Tourism & Venues
Brighton Goes Gospel,4169617,03/11/2010,-118.71,Supplies and Services,Miscellaneous Expenses,"Housing, Culture & Capital",Tourism & Venues
Brighton Holiday Homes Ltd,4213482,19/11/2010,726,Supplies and Services,Services,Adult Social Care,Housing Management
Brighton Housing Trust,4182539,04/11/2010,5212.55,Supplies and Services,Services,Adult Social Care,Housing Management
Brighton Housing Trust,4213945,24/11/2010,787.5,Indirect Employees,Training,Adult Social Care,Housing Management
Brighton Housing Trust,4217569,24/11/2010,5982.25,Third Party Payments,Other Establishments,Section 75 Sussex Partnership,Contrib to S31 Partnership
Brighton Housing Trust,4218584,24/11/2010,5982.25,Third Party Payments,Other Establishments,Section 75 Sussex Partnership,Contrib to S31 Partnership
Brighton Housing Trust,4238166,25/11/2010,3300.63,Supplies and Services,Miscellaneous Expenses,Adult Social Care,Housing Management
Brighton Housing Trust,CS01508664,03/11/2010,2631.3,Transfer Payments,Supporting People,"Housing, Culture & Capital",Housing Strategy
Brighton Housing Trust,CS01508665,03/11/2010,2631.3,Transfer Payments,Supporting People,"Housing, Culture & Capital",Housing Strategy
Brighton Housing Trust,CS01508666,03/11/2010,2631.3,Transfer Payments,Supporting People,"Housing, Culture & Capital",Housing Strategy
Brighton Housing Trust,CS01508667,03/11/2010,2631.3,Transfer Payments,Supporting People,"Housing, Culture & Capital",Housing Strategy
Brighton Housing Trust,CS01508668,03/11/2010,3774.26,Transfer Payments,Supporting People,"Housing, Culture & Capital",Housing Strategy
Brighton Housing Trust,CS01508669,03/11/2010,3774.26,Transfer Payments,Supporting People,"Housing, Culture & Capital",Housing Strategy
Brighton Housing Trust,CS01508670,03/11/2010,3774.26,Transfer Payments,Supporting People,"Housing, Culture & Capital",Housing Strategy
Brighton Housing Trust,CS01508671,03/11/2010,3774.26,Transfer Payments,Supporting People,"Housing, Culture & Capital",Housing Strategy
Brighton Housing Trust,CS01508684,03/11/2010,2055.34,Transfer Payments,Supporting People,"Housing, Culture & Capital",Housing Strategy
Brighton Housing Trust,CS01508685,03/11/2010,2055.34,Transfer Payments,Supporting People,"Housing, Culture & Capital",Housing Strategy
Brighton Housing Trust,CS01508686,03/11/2010,2055.34,Transfer Payments,Supporting People,"Housing, Culture & Capital",Housing Strategy
Brighton Housing Trust,CS01508687,03/11/2010,2055.34,Transfer Payments,Supporting People,"Housing, Culture & Capital",Housing Strategy
Brighton Housing Trust,CS01508688,03/11/2010,10015.6,Transfer Payments,Supporting People,"Housing, Culture & Capital",Housing Strategy
Brighton Housing Trust,CS01508689,03/11/2010,10015.6,Transfer Payments,Supporting People,"Housing, Culture & Capital",Housing Strategy
Brighton Housing Trust,CS01508690,03/11/2010,10015.6,Transfer Payments,Supporting People,"Housing, Culture & Capital",Housing Strategy
Brighton Housing Trust,CS01508691,03/11/2010,10015.6,Transfer Payments,Supporting People,"Housing, Culture & Capital",Housing Strategy
Brighton Housing Trust,CS01508692,03/11/2010,1807.4,Transfer Payments,Supporting People,"Housing, Culture & Capital",Housing Strategy
Brighton Housing Trust,CS01508693,03/11/2010,1807.4,Transfer Payments,Supporting People,"Housing, Culture & Capital",Housing Strategy
Brighton Housing Trust,CS01508694,03/11/2010,1807.4,Transfer Payments,Supporting People,"Housing, Culture & Capital",Housing Strategy
Brighton Housing Trust,CS01508695,03/11/2010,1807.4,Transfer Payments,Supporting People,"Housing, Culture & Capital",Housing Strategy
Brighton Housing Trust,CS01508696,03/11/2010,1342.46,Transfer Payments,Supporting People,"Housing, Culture & Capital",Housing Strategy
Brighton Housing Trust,CS01508697,03/11/2010,1342.46,Transfer Payments,Supporting People,"Housing, Culture & Capital",Housing Strategy
Brighton Housing Trust,CS01508698,03/11/2010,1342.46,Transfer Payments,Supporting People,"Housing, Culture & Capital",Housing Strategy
Brighton Housing Trust,CS01508699,03/11/2010,1342.46,Transfer Payments,Supporting People,"Housing, Culture & Capital",Housing Strategy
Brighton Housing Trust,CS01508700,03/11/2010,1984.99,Transfer Payments,Supporting People,"Housing, Culture & Capital",Housing Strategy
Brighton Housing Trust,CS01508701,03/11/2010,1984.99,Transfer Payments,Supporting People,"Housing, Culture & Capital",Housing Strategy
Brighton Housing Trust,CS01508702,03/11/2010,1984.99,Transfer Payments,Supporting People,"Housing, Culture & Capital",Housing Strategy
Brighton Housing Trust,CS01508703,03/11/2010,1984.99,Transfer Payments,Supporting People,"Housing, Culture & Capital",Housing Strategy
Brighton Housing Trust,CS01508704,03/11/2010,10162.88,Transfer Payments,Supporting People,"Housing, Culture & Capital",Housing Strategy
Brighton Housing Trust,CS01508705,03/11/2010,10162.88,Transfer Payments,Supporting People,"Housing, Culture & Capital",Housing Strategy
Brighton Housing Trust,CS01508706,03/11/2010,10162.88,Transfer Payments,Supporting People,"Housing, Culture & Capital",Housing Strategy
Brighton Housing Trust,CS01508707,03/11/2010,10162.88,Transfer Payments,Supporting People,"Housing, Culture & Capital",Housing Strategy
Brighton Housing Trust,CS01508708,03/11/2010,8821.89,Transfer Payments,Supporting People,"Housing, Culture & Capital",Housing Strategy
Brighton Housing Trust,CS01508709,03/11/2010,8821.89,Transfer Payments,Supporting People,"Housing, Culture & Capital",Housing Strategy
Brighton Housing Trust,CS01508710,03/11/2010,8821.89,Transfer Payments,Supporting People,"Housing, Culture & Capital",Housing Strategy
Brighton Housing Trust,CS01508711,03/11/2010,8821.89,Transfer Payments,Supporting People,"Housing, Culture & Capital",Housing Strategy
Brighton & Hove Bus & Coach Co Ltd,4161563,03/11/2010,784,Transport Related,Contract Hire and Operating Leas,Environment,Waste
Brighton & Hove Bus & Coach Co Ltd,4165064,03/11/2010,784,Transport Related,Contract Hire and Operating Leas,Environment,Waste
Brighton & Hove Bus & Coach Co Ltd,4165556,03/11/2010,784,Transport Related,Contract Hire and Operating Leas,Environment,Waste
Brighton & Hove Bus & Coach Co Ltd,4167114,05/11/2010,1980,Transfer Payments,Other Transfer Payments,Chilren & Young People's Trust,Area Integrated Working
Brighton & Hove Bus & Coach Co Ltd,4190327,12/11/2010,722.25,Third Party Payments,Other Establishments,Chilren & Young People's Trust,Area Integrated Working
Brighton & Hove Bus & Coach Co Ltd,4190754,12/11/2010,7960,Third Party Payments,Private Contractors,Finance & Resources,Strategic Finance Procurement
Brighton & Hove Bus & Coach Co Ltd,4193104,12/11/2010,1120,Third Party Payments,Private Contractors,Environment,Sustainable Transport&Planning
Brighton & Hove Bus & Coach Co Ltd,4193117,12/11/2010,1400,Third Party Payments,Private Contractors,Environment,Sustainable Transport&Planning
Brighton & Hove Bus & Coach Co Ltd,4193120,12/11/2010,560,Third Party Payments,Private Contractors,Environment,Sustainable Transport&Planning
Brighton & Hove Bus & Coach Co Ltd,4198109,17/11/2010,536.4,Transport Related,Public Transport,Chilren & Young People's Trust,Area Integrated Working
Brighton & Hove Bus & Coach Co Ltd,4199946,17/11/2010,784,Transport Related,Contract Hire and Operating Leas,Environment,Waste
Brighton & Hove Bus & Coach Co Ltd,4213932,24/11/2010,4060.2,Transport Related,Public Transport,Adult Social Care,Housing Management
Brighton & Hove Bus & Coach Co Ltd,4220394,24/11/2010,798,Transfer Payments,Other Transfer Payments,Chilren & Young People's Trust,Area Integrated Working
Brighton & Hove Bus & Coach Co Ltd,4223171,24/11/2010,536.4,Transport Related,Public Transport,Chilren & Young People's Trust,Area Integrated Working
Brighton & Hove Bus & Coach Co Ltd,4230931,26/11/2010,784,Transport Related,Contract Hire and Operating Leas,Environment,Waste
Brighton & Hove Federation of Disabled People ,4167046,03/11/2010,4102,Third Party Payments,Other Establishments,Adult Social Care,Adult Social Care
Brighton & Hove Federation of Disabled People ,4170457,10/11/2010,680,Supplies and Services,Miscellaneous Expenses,"Housing, Culture & Capital",Culture & Economy
Brighton & Hove Federation of Disabled People ,4184045,10/11/2010,40875.75,Third Party Payments,Other Establishments,Adult Social Care,Adult Social Care
Brighton & Hove Federation of Disabled People ,4212959,19/11/2010,3045.79,Third Party Payments,Other Establishments,Adult Social Care,Adult Social Care
Brighton & Hove Food Partnership,4225784,26/11/2010,1000,Supplies and Services,Services,Environment,Leisure
Brighton & Hove High School- Junior Dept,UL01504992,03/11/2010,3416,Supplies and Services,Grants and Subscriptions,Chilren & Young People's Trust,Area Integrated Working
Brighton & Hove High School- Junior Dept,UL01512677,10/11/2010,2648,Third Party Payments,Other Establishments,Chilren & Young People's Trust,Learning Schools & Skills
Brighton & Hove Impetus,4171003,03/11/2010,7175,Third Party Payments,Voluntary Associations,Adult Social Care,Adult Social Care
Brighton & Hove Inclusion Project,4188083,12/11/2010,5841.5,Third Party Payments,Other Establishments,Chilren & Young People's Trust,Learning Schools & Skills
Brighton & Hove Inclusion Project,4223414,24/11/2010,7400,Supplies and Services,Contributions to Provisions,Chilren & Young People's Trust,Area Integrated Working
Brighton & Hove Mencap,CS01508052,03/11/2010,3613.96,Transfer Payments,Supporting People,"Housing, Culture & Capital",Housing Strategy
Brighton & Hove Mencap,CS01508053,03/11/2010,3613.96,Transfer Payments,Supporting People,"Housing, Culture & Capital",Housing Strategy
Brighton & Hove Mencap,CS01508054,03/11/2010,3613.96,Transfer Payments,Supporting People,"Housing, Culture & Capital",Housing Strategy
Brighton & Hove Mencap,CS01508055,03/11/2010,3613.96,Transfer Payments,Supporting People,"Housing, Culture & Capital",Housing Strategy
Brighton & Hove Montessori School,UL01504978,03/11/2010,4161,Supplies and Services,Grants and Subscriptions,Chilren & Young People's Trust,Area Integrated Working
Brighton & Hove Montessori School,UL01512663,10/11/2010,3948,Third Party Payments,Other Establishments,Chilren & Young People's Trust,Learning Schools & Skills
Brighton & Hove Radio Cabs Ltd,4191902,12/11/2010,9364,Transport Related,Other Transport Costs,Chilren & Young People's Trust,Learning Schools & Skills
Brighton & Hove Radio Cabs Ltd,4192752,12/11/2010,7635.4,Transport Related,Other Transport Costs,Chilren & Young People's Trust,Learning Schools & Skills
Brighton & Hove Radio Cabs Ltd,4203832,17/11/2010,1348.2,Transport Related,Other Transport Costs,Chilren & Young People's Trust,Learning Schools & Skills
Brighton & Hove Radio Cabs Ltd,4225234,26/11/2010,1572.1,Transport Related,Other Transport Costs,Chilren & Young People's Trust,Learning Schools & Skills
Brighton & Hove Streamline Taxis Ltd,4185798,10/11/2010,3727.9,Transport Related,Other Transport Costs,Chilren & Young People's Trust,Learning Schools & Skills
Brighton & Hove Streamline Taxis Ltd,4200796,17/11/2010,980.76,Transport Related,Public Transport,Adult Social Care,Housing Management
Brighton & Hove Streamline Taxis Ltd,4203065,17/11/2010,1374,Transport Related,Public Transport,Finance & Resources,Corporate Management
Brighton & Hove Streamline Taxis Ltd,4208646,19/11/2010,3964.45,Transport Related,Other Transport Costs,Chilren & Young People's Trust,Learning Schools & Skills
Brighton & Hove Streamline Taxis Ltd,4215367,24/11/2010,7372.68,Transport Related,Other Transport Costs,Chilren & Young People's Trust,Learning Schools & Skills
Brighton & Hove Streamline Taxis Ltd,4215370,24/11/2010,4256.1,Transport Related,Other Transport Costs,Chilren & Young People's Trust,Learning Schools & Skills
Brighton & Hove Working Together Project,4177159,05/11/2010,10000,Third Party Payments,Other Establishments,Chilren & Young People's Trust,Learning Schools & Skills
Brighton & Hove Working Together Project,4215820,24/11/2010,1000,Indirect Employees,Training,Strategy & Governance,Communities & Equality
Brighton Oasis Project,4181873,10/11/2010,5568.5,Supplies and Services,Grants and Subscriptions,Environment,Public Safety
Brighton Photo Fringe,4177117,05/11/2010,2900,Supplies and Services,Miscellaneous Expenses,"Housing, Culture & Capital",Culture & Economy
Brighton Steiner School Ltd,UL01505029,03/11/2010,4451,Supplies and Services,Grants and Subscriptions,Chilren & Young People's Trust,Area Integrated Working
Brighton Steiner School Ltd,UL01512713,10/11/2010,3136,Third Party Payments,Other Establishments,Chilren & Young People's Trust,Learning Schools & Skills
Brighton & Sussex University Hospitals NHS Trust,4143426,05/11/2010,1450,Third Party Payments,Private Contractors,Environment,Sustainable Transport&Planning
Brighton & Sussex University Hospitals NHS Trust,4159766,10/11/2010,3286.17,Third Party Payments,Other Establishments,Adult Social Care,Adult Social Care
Brighton & Sussex University Hospitals NHS Trust,4169374,19/11/2010,27250,Supplies and Services,Miscellaneous Expenses,"Housing, Culture & Capital",Culture & Economy
Brighton & Sussex University Hospitals NHS Trust,4218610,24/11/2010,1027.5,Supplies and Services,Equipment Furniture and Materials,Finance & Resources,Customer Services
Brighton & Sussex University Hospitals NHS Trust,UL01504933,03/11/2010,2177,Supplies and Services,Grants and Subscriptions,Chilren & Young People's Trust,Area Integrated Working
Brighton & Sussex University Hospitals NHS Trust,UL01512618,10/11/2010,1556,Third Party Payments,Other Establishments,Chilren & Young People's Trust,Learning Schools & Skills
Brighton Trade Windows Ltd,4162025,03/11/2010,1710,Capital Grants,,"Housing, Culture & Capital",Housing Strategy
Brighton Women`s Centre Ltd/BWC Toybox,4170952,03/11/2010,700,Supplies and Services,Miscellaneous Expenses,Environment,Public Safety
Brighton Women`s Centre Ltd/BWC Toybox,4170978,03/11/2010,1100,Supplies and Services,Miscellaneous Expenses,Environment,Public Safety
Brighton Women`s Centre Ltd/BWC Toybox,4177777,05/11/2010,800,Supplies and Services,Miscellaneous Expenses,Environment,Public Safety
Brighton YMCA,CS01508560,03/11/2010,584.71,Transfer Payments,Supporting People,"Housing, Culture & Capital",Housing Strategy
Brighton YMCA,CS01508561,03/11/2010,584.71,Transfer Payments,Supporting People,"Housing, Culture & Capital",Housing Strategy
Brighton YMCA,CS01508562,03/11/2010,584.71,Transfer Payments,Supporting People,"Housing, Culture & Capital",Housing Strategy
Brighton YMCA,CS01508563,03/11/2010,584.71,Transfer Payments,Supporting People,"Housing, Culture & Capital",Housing Strategy
Brighton YMCA,CS01508564,03/11/2010,1176.28,Transfer Payments,Supporting People,"Housing, Culture & Capital",Housing Strategy
Brighton YMCA,CS01508565,03/11/2010,1176.28,Transfer Payments,Supporting People,"Housing, Culture & Capital",Housing Strategy
Brighton YMCA,CS01508566,03/11/2010,1176.28,Transfer Payments,Supporting People,"Housing, Culture & Capital",Housing Strategy
Brighton YMCA,CS01508567,03/11/2010,1176.28,Transfer Payments,Supporting People,"Housing, Culture & Capital",Housing Strategy
Brighton YMCA,CS01508568,03/11/2010,1932.35,Transfer Payments,Supporting People,"Housing, Culture & Capital",Housing Strategy
Brighton YMCA,CS01508569,03/11/2010,1932.35,Transfer Payments,Supporting People,"Housing, Culture & Capital",Housing Strategy
Brighton YMCA,CS01508570,03/11/2010,1932.35,Transfer Payments,Supporting People,"Housing, Culture & Capital",Housing Strategy
Brighton YMCA,CS01508571,03/11/2010,1932.35,Transfer Payments,Supporting People,"Housing, Culture & Capital",Housing Strategy
Brighton YMCA,CS01508572,03/11/2010,1066.03,Transfer Payments,Supporting People,"Housing, Culture & Capital",Housing Strategy
Brighton YMCA,CS01508573,03/11/2010,1066.03,Transfer Payments,Supporting People,"Housing, Culture & Capital",Housing Strategy
Brighton YMCA,CS01508574,03/11/2010,1066.03,Transfer Payments,Supporting People,"Housing, Culture & Capital",Housing Strategy
Brighton YMCA,CS01508575,03/11/2010,1066.03,Transfer Payments,Supporting People,"Housing, Culture & Capital",Housing Strategy
Brighton YMCA,CS01508576,03/11/2010,1139.53,Transfer Payments,Supporting People,"Housing, Culture & Capital",Housing Strategy
Brighton YMCA,CS01508577,03/11/2010,1139.53,Transfer Payments,Supporting People,"Housing, Culture & Capital",Housing Strategy
Brighton YMCA,CS01508578,03/11/2010,1139.53,Transfer Payments,Supporting People,"Housing, Culture & Capital",Housing Strategy
Brighton YMCA,CS01508579,03/11/2010,1139.53,Transfer Payments,Supporting People,"Housing, Culture & Capital",Housing Strategy
Brighton YMCA,CS01508580,03/11/2010,5462.03,Transfer Payments,Supporting People,"Housing, Culture & Capital",Housing Strategy
Brighton YMCA,CS01508581,03/11/2010,5462.03,Transfer Payments,Supporting People,"Housing, Culture & Capital",Housing Strategy
Brighton YMCA,CS01508582,03/11/2010,5462.03,Transfer Payments,Supporting People,"Housing, Culture & Capital",Housing Strategy
Brighton YMCA,CS01508583,03/11/2010,5462.03,Transfer Payments,Supporting People,"Housing, Culture & Capital",Housing Strategy
Brighton YMCA,CS01508584,03/11/2010,1932.35,Transfer Payments,Supporting People,"Housing, Culture & Capital",Housing Strategy
Brighton YMCA,CS01508585,03/11/2010,1932.35,Transfer Payments,Supporting People,"Housing, Culture & Capital",Housing Strategy
Brighton YMCA,CS01508586,03/11/2010,1932.35,Transfer Payments,Supporting People,"Housing, Culture & Capital",Housing Strategy
Brighton YMCA,CS01508587,03/11/2010,1932.35,Transfer Payments,Supporting People,"Housing, Culture & Capital",Housing Strategy
Brighton YMCA,CS01508588,03/11/2010,514.57,Transfer Payments,Supporting People,"Housing, Culture & Capital",Housing Strategy
Brighton YMCA,CS01508589,03/11/2010,514.57,Transfer Payments,Supporting People,"Housing, Culture & Capital",Housing Strategy
Brighton YMCA,CS01508590,03/11/2010,514.57,Transfer Payments,Supporting People,"Housing, Culture & Capital",Housing Strategy
Brighton YMCA,CS01508591,03/11/2010,514.57,Transfer Payments,Supporting People,"Housing, Culture & Capital",Housing Strategy
Brightstone Consulting Ltd,4179348,10/11/2010,6839.37,Supplies and Services,Services,"Housing, Culture & Capital",Libraries & Information Servic
Brightstone Consulting Ltd,4230999,26/11/2010,1875,Indirect Employees,Training,Strategy & Governance,Human Resources
Brightstone Consulting Ltd,4231037,26/11/2010,1500,Indirect Employees,Training,Strategy & Governance,Human Resources
British Gas Business,4165116,03/11/2010,1817.41,Premises Related,Energy Costs,Environment,Sustainable Transport&Planning
British Gas Business,4165174,03/11/2010,2906.99,Premises Related,Energy Costs,Environment,Sustainable Transport&Planning
British Gas Business,4230216,26/11/2010,3168.81,Premises Related,Energy Costs,Environment,Sustainable Transport&Planning
British Gas Business,4230229,26/11/2010,1932.72,Premises Related,Energy Costs,Environment,Sustainable Transport&Planning
British Sky Broadcasting Ltd,4162009,03/11/2010,725,Supplies and Services,Services,Finance & Resources,Audit and Business Risk
British Standards Institution,4222949,24/11/2010,1395,Supplies and Services,Grants and Subscriptions,Environment,City Planning
British Telecommunications Plc,4164573,03/11/2010,1043.75,Supplies and Services,Communications and Computing,Adult Social Care,Housing Management
British Telecommunications Plc,4186784,10/11/2010,1769.83,Supplies and Services,Communications and Computing,Adult Social Care,Adult Social Care
British Telecommunications Plc,4203696,17/11/2010,19168.08,Supplies and Services,Communications and Computing,Finance & Resources,ICT
Payment to Individual,41618,12/11/2010,575,Premises Related,Rents Payable,"Housing, Culture & Capital",Housing Strategy
BSI Management Systems,4183635,24/11/2010,1478,Supplies and Services,Services,Environment,Public Safety
BTR Brakes (Sussex) Ltd,4197537,17/11/2010,620.08,Transport Related,Direct Transport Costs,Environment,Waste
Built Offsite Ltd,4227575,26/11/2010,18457.05,New Construction and Conversion,,Chilren & Young People's Trust,Director Childrens Services
Bupa Care Homes,CF01527711,24/11/2010,-110.3,Customer and Client Receipts,Fees and Charges,Adult Social Care,Adult Social Care
Bupa Care Homes,CF01527711,24/11/2010,674.53,Third Party Payments,Other Establishments,Adult Social Care,Adult Social Care
Bupa Care Homes,CF01527712,24/11/2010,-110.3,Customer and Client Receipts,Fees and Charges,Adult Social Care,Adult Social Care
Bupa Care Homes,CF01527712,24/11/2010,674.53,Third Party Payments,Other Establishments,Adult Social Care,Adult Social Care
Bupa Care Homes,CF01527713,24/11/2010,-110.3,Customer and Client Receipts,Fees and Charges,Adult Social Care,Adult Social Care
Bupa Care Homes,CF01527713,24/11/2010,674.53,Third Party Payments,Other Establishments,Adult Social Care,Adult Social Care
Bupa Care Homes,CF01527714,24/11/2010,-110.3,Customer and Client Receipts,Fees and Charges,Adult Social Care,Adult Social Care
Bupa Care Homes,CF01527714,24/11/2010,674.53,Third Party Payments,Other Establishments,Adult Social Care,Adult Social Care
Bupa Care Services,CF01528155,26/11/2010,722.86,Third Party Payments,Other Establishments,Section 75 Sussex Partnership,Contrib to S31 Partnership
BUPA Care Services,CF01522750,19/11/2010,824.4,Third Party Payments,Other Establishments,Adult Social Care,Adult Social Care
BUPA Care Services,CF01522751,19/11/2010,824.4,Third Party Payments,Other Establishments,Adult Social Care,Adult Social Care
BUPA Care Services,CF01522752,19/11/2010,824.4,Third Party Payments,Other Establishments,Adult Social Care,Adult Social Care
BUPA Care Services,CF01522753,19/11/2010,824.4,Third Party Payments,Other Establishments,Adult Social Care,Adult Social Care
BUPA Care Services,CF01522778,19/11/2010,-266.96,Customer and Client Receipts,Fees and Charges,Adult Social Care,Adult Social Care
BUPA Care Services,CF01522778,19/11/2010,800,Third Party Payments,Other Establishments,Adult Social Care,Adult Social Care
BUPA Care Services,CF01522779,19/11/2010,-178.46,Customer and Client Receipts,Fees and Charges,Adult Social Care,Adult Social Care
BUPA Care Services,CF01522779,19/11/2010,800,Third Party Payments,Other Establishments,Adult Social Care,Adult Social Care
BUPA Care Services,CF01522780,19/11/2010,-178.46,Customer and Client Receipts,Fees and Charges,Adult Social Care,Adult Social Care
BUPA Care Services,CF01522780,19/11/2010,800,Third Party Payments,Other Establishments,Adult Social Care,Adult Social Care
BUPA Care Services,CF01522781,19/11/2010,-178.46,Customer and Client Receipts,Fees and Charges,Adult Social Care,Adult Social Care
BUPA Care Services,CF01522781,19/11/2010,800,Third Party Payments,Other Establishments,Adult Social Care,Adult Social Care
BUPA Care Services,CF01522782,19/11/2010,-178.46,Customer and Client Receipts,Fees and Charges,Adult Social Care,Adult Social Care
BUPA Care Services,CF01522782,19/11/2010,800,Third Party Payments,Other Establishments,Adult Social Care,Adult Social Care
BUPA Care Services,CF01522783,19/11/2010,-178.46,Customer and Client Receipts,Fees and Charges,Adult Social Care,Adult Social Care
BUPA Care Services,CF01522783,19/11/2010,800,Third Party Payments,Other Establishments,Adult Social Care,Adult Social Care
BUPA Care Services,CF01522784,19/11/2010,-178.46,Customer and Client Receipts,Fees and Charges,Adult Social Care,Adult Social Care
BUPA Care Services,CF01522784,19/11/2010,800,Third Party Payments,Other Establishments,Adult Social Care,Adult Social Care
BUPA Care Services,CF01522785,19/11/2010,-178.46,Customer and Client Receipts,Fees and Charges,Adult Social Care,Adult Social Care
BUPA Care Services,CF01522785,19/11/2010,800,Third Party Payments,Other Establishments,Adult Social Care,Adult Social Care
Business Community Partnership,CS01508652,03/11/2010,1916.81,Transfer Payments,Supporting People,"Housing, Culture & Capital",Housing Strategy
Business Community Partnership,CS01508653,03/11/2010,1916.81,Transfer Payments,Supporting People,"Housing, Culture & Capital",Housing Strategy
Business Community Partnership,CS01508654,03/11/2010,1916.81,Transfer Payments,Supporting People,"Housing, Culture & Capital",Housing Strategy
Business Community Partnership,CS01508655,03/11/2010,1916.81,Transfer Payments,Supporting People,"Housing, Culture & Capital",Housing Strategy
Butterfly Bay Ltd t/a The Play Station ,UL01504994,03/11/2010,2002,Supplies and Services,Grants and Subscriptions,Chilren & Young People's Trust,Area Integrated Working
Butterfly Bay Ltd t/a The Play Station ,UL01512679,10/11/2010,1444,Third Party Payments,Other Establishments,Chilren & Young People's Trust,Learning Schools & Skills
Butterfly Nursery - USE SO429000,UL01505014,03/11/2010,2106,Supplies and Services,Grants and Subscriptions,Chilren & Young People's Trust,Area Integrated Working
Butterfly Nursery - USE SO429000,UL01512699,10/11/2010,1820,Third Party Payments,Other Establishments,Chilren & Young People's Trust,Learning Schools & Skills
C3 Productions Ltd,4186690,10/11/2010,591.25,Supplies and Services,Miscellaneous Expenses,"Housing, Culture & Capital",Culture & Economy
Caburn Support Services,4219907,24/11/2010,835.66,Transfer Payments,Other Transfer Payments,Chilren & Young People's Trust,Area Integrated Working
Caburn Support Services,4220019,24/11/2010,899.33,Transfer Payments,Other Transfer Payments,Chilren & Young People's Trust,Area Integrated Working
Caburn Support Services,4220022,24/11/2010,785,Transfer Payments,Other Transfer Payments,Chilren & Young People's Trust,Area Integrated Working
Caburn Support Services,4220035,24/11/2010,785,Transfer Payments,Other Transfer Payments,Chilren & Young People's Trust,Area Integrated Working
Caburn Support Services,4220048,24/11/2010,875.35,Transfer Payments,Other Transfer Payments,Chilren & Young People's Trust,Area Integrated Working
Caburn Support Services,4220064,24/11/2010,838.97,Transfer Payments,Other Transfer Payments,Chilren & Young People's Trust,Area Integrated Working
Caburn Support Services,4220077,24/11/2010,848.57,Transfer Payments,Other Transfer Payments,Chilren & Young People's Trust,Area Integrated Working
Caburn Support Services,4220080,24/11/2010,785,Transfer Payments,Other Transfer Payments,Chilren & Young People's Trust,Area Integrated Working
Caburn Support Services,4220116,24/11/2010,785,Transfer Payments,Other Transfer Payments,Chilren & Young People's Trust,Area Integrated Working
C A Goodwin Limited,4162559,03/11/2010,533.5,Premises Related,Repair Maintenance and Alterations,"Housing, Culture & Capital",Tourism & Venues
C A Goodwin Limited,4179199,10/11/2010,1217.24,Premises Related,Repair Maintenance and Alterations,Finance & Resources,Property & Design
C A Goodwin Limited,4179461,10/11/2010,578.1,Premises Related,Repair Maintenance and Alterations,Finance & Resources,Property & Design
C A Goodwin Limited,4197443,17/11/2010,526,Premises Related,Repair Maintenance and Alterations,Finance & Resources,Property & Design
C A Goodwin Limited,4197469,17/11/2010,3221.68,Premises Related,Repair Maintenance and Alterations,Finance & Resources,Property & Design
C A Goodwin Limited,4202723,17/11/2010,1120.9,Premises Related,Repair Maintenance and Alterations,"Housing, Culture & Capital",Tourism & Venues
C A Goodwin Limited,4209438,19/11/2010,2661.6,Premises Related,Repair Maintenance and Alterations,Finance & Resources,Property & Design
C A Goodwin Limited,4221076,24/11/2010,31909.55,Premises Related,Repair Maintenance and Alterations,Finance & Resources,Property & Design
C A Goodwin Limited,4227850,26/11/2010,3592.17,Premises Related,Repair Maintenance and Alterations,Finance & Resources,Property & Design
C A Goodwin Limited,4227892,26/11/2010,3536.53,Premises Related,Repair Maintenance and Alterations,Finance & Resources,Property & Design
C A Goodwin Limited,4227944,26/11/2010,3276.57,Premises Related,Repair Maintenance and Alterations,Finance & Resources,Property & Design
Calcom Group Limited,4177528,05/11/2010,2000,Supplies and Services,Services,Environment,Waste
Calcom Group Limited,4177531,05/11/2010,1192.71,Supplies and Services,Services,Environment,Waste
Caldecott Foundation,CF01521065,17/11/2010,4570.5,Third Party Payments,Other Establishments,Chilren & Young People's Trust,Commissioning & Governance
Caldecott Foundation,CF01521066,17/11/2010,3587.5,Third Party Payments,Other Establishments,Chilren & Young People's Trust,Commissioning & Governance
Caldecott Foundation,CF01521067,17/11/2010,3587.5,Third Party Payments,Other Establishments,Chilren & Young People's Trust,Commissioning & Governance
Caldecott Foundation,CF01521068,17/11/2010,3587.5,Third Party Payments,Other Establishments,Chilren & Young People's Trust,Commissioning & Governance
Calor Gas Ltd,4161547,03/11/2010,2020.28,Premises Related,Energy Costs,Environment,Quality of Life & Green Spaces
CAM Central,4168430,10/11/2010,1687.42,Supplies and Services,Miscellaneous Expenses,"Housing, Culture & Capital",Culture & Economy
CAM Central,4214478,19/11/2010,1687.42,Supplies and Services,Miscellaneous Expenses,Finance & Resources,Financial Services
Camelot Property Management Ltd,4199878,17/11/2010,506.62,Supplies and Services,Services,Finance & Resources,Property & Design
Canterbury Oast Trust Ltd,CF01507352,03/11/2010,-71.15,Customer and Client Receipts,Fees and Charges,Section 75 Adult Social Care,Contrib to S31 Partnership
Canterbury Oast Trust Ltd,CF01507352,03/11/2010,1590.75,Third Party Payments,Other Establishments,Section 75 Adult Social Care,Contrib to S31 Partnership
Canterbury Oast Trust Ltd,CF01507353,03/11/2010,-71.15,Customer and Client Receipts,Fees and Charges,Section 75 Adult Social Care,Contrib to S31 Partnership
Canterbury Oast Trust Ltd,CF01507353,03/11/2010,1590.75,Third Party Payments,Other Establishments,Section 75 Adult Social Care,Contrib to S31 Partnership
Canterbury Oast Trust Ltd,CF01507354,03/11/2010,-71.15,Customer and Client Receipts,Fees and Charges,Section 75 Adult Social Care,Contrib to S31 Partnership
Canterbury Oast Trust Ltd,CF01507354,03/11/2010,1590.75,Third Party Payments,Other Establishments,Section 75 Adult Social Care,Contrib to S31 Partnership
Canterbury Oast Trust Ltd,CF01507355,03/11/2010,-71.15,Customer and Client Receipts,Fees and Charges,Section 75 Adult Social Care,Contrib to S31 Partnership
Canterbury Oast Trust Ltd,CF01507355,03/11/2010,1590.75,Third Party Payments,Other Establishments,Section 75 Adult Social Care,Contrib to S31 Partnership
Capital Hygiene/Capital Cleaning,4206871,17/11/2010,516.4,Premises Related,Cleaning and Domestic Supps,"Housing, Culture & Capital",Housing Strategy
Capita Symonds Ltd,4205335,26/11/2010,1000,Direct Employees,Salaries,Environment,Sustainable Transport&Planning
Capita Symonds Ltd,4205377,26/11/2010,4190,Direct Employees,Salaries,Environment,Sustainable Transport&Planning
Care Co-operatives Ltd,CS01508040,03/11/2010,1367.1,Transfer Payments,Supporting People,"Housing, Culture & Capital",Housing Strategy
Care Co-operatives Ltd,CS01508041,03/11/2010,1367.1,Transfer Payments,Supporting People,"Housing, Culture & Capital",Housing Strategy
Care Co-operatives Ltd,CS01508042,03/11/2010,1367.1,Transfer Payments,Supporting People,"Housing, Culture & Capital",Housing Strategy
Care Co-operatives Ltd,CS01508043,03/11/2010,1367.1,Transfer Payments,Supporting People,"Housing, Culture & Capital",Housing Strategy
Careers Enterprise Limited,4180706,10/11/2010,7385.67,Supplies and Services,Contributions to Provisions,Chilren & Young People's Trust,Learning Schools & Skills
Carers Centre for Brighton & Hove Ltd,4204158,17/11/2010,634.5,Third Party Payments,Other Establishments,Adult Social Care,Adult Social Care
Carers Centre for Brighton & Hove Ltd,4211235,19/11/2010,33654.25,Third Party Payments,Other Establishments,Adult Social Care,Adult Social Care
Care UK Children`s Services,CF01500496,05/11/2010,772.21,Third Party Payments,Other Establishments,Chilren & Young People's Trust,Commissioning & Governance
Care UK Children`s Services,CF01500497,05/11/2010,772.21,Third Party Payments,Other Establishments,Chilren & Young People's Trust,Commissioning & Governance
Care UK Children`s Services,CF01500498,05/11/2010,772.21,Third Party Payments,Other Establishments,Chilren & Young People's Trust,Commissioning & Governance
Care UK Children`s Services,CF01500499,05/11/2010,772.21,Third Party Payments,Other Establishments,Chilren & Young People's Trust,Commissioning & Governance
Care UK Children`s Services,CF01500500,05/11/2010,772.21,Third Party Payments,Other Establishments,Chilren & Young People's Trust,Commissioning & Governance
Care UK Community Partnerships Ltd,CF01521706,19/11/2010,786.4,Third Party Payments,Other Establishments,Section 75 Sussex Partnership,Contrib to S31 Partnership
Care UK Community Partnerships Ltd,CF01521707,19/11/2010,786.4,Third Party Payments,Other Establishments,Section 75 Sussex Partnership,Contrib to S31 Partnership
Care UK Community Partnerships Ltd,CF01521708,19/11/2010,786.4,Third Party Payments,Other Establishments,Section 75 Sussex Partnership,Contrib to S31 Partnership
Care UK Community Partnerships Ltd,CF01521709,19/11/2010,786.4,Third Party Payments,Other Establishments,Section 75 Sussex Partnership,Contrib to S31 Partnership
Care UK Community Partnerships Ltd,CF01521711,19/11/2010,915,Third Party Payments,Other Establishments,Section 75 Sussex Partnership,Contrib to S31 Partnership
Care UK Community Partnerships Ltd,CF01521712,19/11/2010,915,Third Party Payments,Other Establishments,Section 75 Sussex Partnership,Contrib to S31 Partnership
Care UK Community Partnerships Ltd,CF01521713,19/11/2010,915,Third Party Payments,Other Establishments,Section 75 Sussex Partnership,Contrib to S31 Partnership
Care UK Community Partnerships Ltd,CF01521714,19/11/2010,915,Third Party Payments,Other Establishments,Section 75 Sussex Partnership,Contrib to S31 Partnership
Care UK Community Partnerships Ltd,CF01521715,19/11/2010,915,Third Party Payments,Other Establishments,Section 75 Sussex Partnership,Contrib to S31 Partnership
Carlisle Staffing Plc,UL01486464,05/11/2010,16501.73,Direct Employees,Salaries,Adult Social Care,Adult Social Care
Carlisle Staffing Plc,UL01486464,05/11/2010,11782.52,Direct Employees,Salaries,Adult Social Care,Housing Management
Carlisle Staffing Plc,UL01486464,05/11/2010,18180.31,Direct Employees,Salaries,Chilren & Young People's Trust,Area Integrated Working
Carlisle Staffing Plc,UL01486464,05/11/2010,13.44,Direct Employees,Salaries,Chilren & Young People's Trust,Commissioning & Governance
Carlisle Staffing Plc,UL01486464,05/11/2010,527.82,Direct Employees,Salaries,Chilren & Young People's Trust,Director Childrens Services
Carlisle Staffing Plc,UL01486464,05/11/2010,4443.24,Direct Employees,Salaries,Chilren & Young People's Trust,Learning Schools & Skills
Carlisle Staffing Plc,UL01486464,05/11/2010,410.83,Direct Employees,Salaries,Environment,City Planning
Carlisle Staffing Plc,UL01486464,05/11/2010,9.19,Direct Employees,Salaries,Environment,Director of Environment
Carlisle Staffing Plc,UL01486464,05/11/2010,2024.68,Direct Employees,Salaries,Environment,Public Safety
Carlisle Staffing Plc,UL01486464,05/11/2010,1766.97,Direct Employees,Salaries,Environment,Quality of Life & Green Spaces
Carlisle Staffing Plc,UL01486464,05/11/2010,10321.61,Direct Employees,Salaries,Environment,Sustainable Transport&Planning
Carlisle Staffing Plc,UL01486464,05/11/2010,3619.83,Direct Employees,Salaries,Environment,Waste
Carlisle Staffing Plc,UL01486464,05/11/2010,410.25,Direct Employees,Salaries,Finance & Resources,Audit and Business Risk
Carlisle Staffing Plc,UL01486464,05/11/2010,1791.35,Direct Employees,Salaries,Finance & Resources,Customer Services
Carlisle Staffing Plc,UL01486464,05/11/2010,1602.72,Direct Employees,Salaries,Finance & Resources,Financial Services
Carlisle Staffing Plc,UL01486464,05/11/2010,832.62,Direct Employees,Salaries,Finance & Resources,ICT
Carlisle Staffing Plc,UL01486464,05/11/2010,4512.31,Direct Employees,Salaries,Finance & Resources,Property & Design
Carlisle Staffing Plc,UL01486464,05/11/2010,1467.6,Direct Employees,Salaries,Finance & Resources,Strategic Finance Procurement
Carlisle Staffing Plc,UL01486464,05/11/2010,204.43,Direct Employees,Salaries,"Housing, Culture & Capital",Cul & Ent Directors Office
Carlisle Staffing Plc,UL01486464,05/11/2010,317.28,Direct Employees,Salaries,"Housing, Culture & Capital",Culture & Economy
Carlisle Staffing Plc,UL01486464,05/11/2010,5868.89,Direct Employees,Salaries,"Housing, Culture & Capital",Housing Strategy
Carlisle Staffing Plc,UL01486464,05/11/2010,21.13,Direct Employees,Salaries,"Housing, Culture & Capital",Royal Pavilion & Museums
Carlisle Staffing Plc,UL01486464,05/11/2010,1972.17,Direct Employees,Salaries,Section 75 Adult Social Care,Contrib to S31 Partnership
Carlisle Staffing Plc,UL01486464,05/11/2010,1039.9,Direct Employees,Salaries,Section 75 South Downs Health,Contrib to S31 Partnership
Carlisle Staffing Plc,UL01486464,05/11/2010,2954.46,Direct Employees,Salaries,Section 75 Sussex Partnership,Contrib to S31 Partnership
Carlisle Staffing Plc,UL01486464,05/11/2010,824.37,Direct Employees,Salaries,Strategy & Governance,Communications
Carlisle Staffing Plc,UL01486464,05/11/2010,2707.82,Direct Employees,Salaries,Strategy & Governance,Human Resources
Carlisle Staffing Plc,UL01486464,05/11/2010,1406.8,Direct Employees,Salaries,Strategy & Governance,Legal and Democratic Services
Carlisle Staffing Plc,UL01486464,05/11/2010,371.21,Direct Employees,Salaries,Strategy & Governance,Performance & Analysis
Carlisle Staffing Plc,UL01486464,05/11/2010,540.33,Direct Employees,Salaries,Strategy & Governance,Strategy & Governance
Carlisle Staffing Plc,UL01486464,05/11/2010,3.88,Direct Employees,Wages,"Housing, Culture & Capital",Royal Pavilion & Museums
Carlisle Staffing Plc,UL01486464,05/11/2010,139.81,Direct Employees,Wages,"Housing, Culture & Capital",Tourism & Venues
Carlisle Staffing Plc,UL01486464,05/11/2010,466.57,New Construction and Conversion,,"Housing, Culture & Capital",Housing Strategy
Carlisle Staffing Plc,UL01499758,12/11/2010,7204.14,Direct Employees,Salaries,Adult Social Care,Adult Social Care
Carlisle Staffing Plc,UL01499758,12/11/2010,11774.35,Direct Employees,Salaries,Adult Social Care,Housing Management
Carlisle Staffing Plc,UL01499758,12/11/2010,24096.98,Direct Employees,Salaries,Chilren & Young People's Trust,Area Integrated Working
Carlisle Staffing Plc,UL01499758,12/11/2010,9848.26,Direct Employees,Salaries,Chilren & Young People's Trust,Commissioning & Governance
Carlisle Staffing Plc,UL01499758,12/11/2010,545.18,Direct Employees,Salaries,Chilren & Young People's Trust,Director Childrens Services
Carlisle Staffing Plc,UL01499758,12/11/2010,4759.85,Direct Employees,Salaries,Chilren & Young People's Trust,Learning Schools & Skills
Carlisle Staffing Plc,UL01499758,12/11/2010,408.08,Direct Employees,Salaries,Environment,City Planning
Carlisle Staffing Plc,UL01499758,12/11/2010,7167.68,Direct Employees,Salaries,Environment,Public Safety
Carlisle Staffing Plc,UL01499758,12/11/2010,1298.21,Direct Employees,Salaries,Environment,Quality of Life & Green Spaces
Carlisle Staffing Plc,UL01499758,12/11/2010,2015.16,Direct Employees,Salaries,Environment,Sustainable Transport&Planning
Carlisle Staffing Plc,UL01499758,12/11/2010,3824.71,Direct Employees,Salaries,Environment,Waste
Carlisle Staffing Plc,UL01499758,12/11/2010,159.94,Direct Employees,Salaries,Finance & Resources,Audit and Business Risk
Carlisle Staffing Plc,UL01499758,12/11/2010,3099.22,Direct Employees,Salaries,Finance & Resources,Customer Services
Carlisle Staffing Plc,UL01499758,12/11/2010,1300.39,Direct Employees,Salaries,Finance & Resources,Financial Services
Carlisle Staffing Plc,UL01499758,12/11/2010,2556.05,Direct Employees,Salaries,Finance & Resources,ICT
Carlisle Staffing Plc,UL01499758,12/11/2010,3736.76,Direct Employees,Salaries,Finance & Resources,Property & Design
Carlisle Staffing Plc,UL01499758,12/11/2010,3646.5,Direct Employees,Salaries,Finance & Resources,Strategic Finance Procurement
Carlisle Staffing Plc,UL01499758,12/11/2010,176.8,Direct Employees,Salaries,"Housing, Culture & Capital",Cul & Ent Directors Office
Carlisle Staffing Plc,UL01499758,12/11/2010,317.28,Direct Employees,Salaries,"Housing, Culture & Capital",Culture & Economy
Carlisle Staffing Plc,UL01499758,12/11/2010,5829.58,Direct Employees,Salaries,"Housing, Culture & Capital",Housing Strategy
Carlisle Staffing Plc,UL01499758,12/11/2010,770.75,Direct Employees,Salaries,"Housing, Culture & Capital",Royal Pavilion & Museums
Carlisle Staffing Plc,UL01499758,12/11/2010,2904.06,Direct Employees,Salaries,Section 75 Adult Social Care,Contrib to S31 Partnership
Carlisle Staffing Plc,UL01499758,12/11/2010,217.48,Direct Employees,Salaries,Section 75 South Downs Health,Contrib to S31 Partnership
Carlisle Staffing Plc,UL01499758,12/11/2010,6214.38,Direct Employees,Salaries,Section 75 Sussex Partnership,Contrib to S31 Partnership
Carlisle Staffing Plc,UL01499758,12/11/2010,834.8,Direct Employees,Salaries,Strategy & Governance,Communications
Carlisle Staffing Plc,UL01499758,12/11/2010,2661.05,Direct Employees,Salaries,Strategy & Governance,Human Resources
Carlisle Staffing Plc,UL01499758,12/11/2010,1010.16,Direct Employees,Salaries,Strategy & Governance,Legal and Democratic Services
Carlisle Staffing Plc,UL01499758,12/11/2010,376.29,Direct Employees,Salaries,Strategy & Governance,Performance & Analysis
Carlisle Staffing Plc,UL01499758,12/11/2010,429.66,Direct Employees,Salaries,Strategy & Governance,Strategy & Governance
Carlisle Staffing Plc,UL01499758,12/11/2010,572.94,Direct Employees,Wages,"Housing, Culture & Capital",Housing Strategy
Carlisle Staffing Plc,UL01499758,12/11/2010,463.42,New Construction and Conversion,,"Housing, Culture & Capital",Housing Strategy
Carlisle Staffing Plc,UL01501668,19/11/2010,7024.6,Direct Employees,Salaries,Adult Social Care,Adult Social Care
Carlisle Staffing Plc,UL01501668,19/11/2010,10964.29,Direct Employees,Salaries,Adult Social Care,Housing Management
Carlisle Staffing Plc,UL01501668,19/11/2010,21103.68,Direct Employees,Salaries,Chilren & Young People's Trust,Area Integrated Working
Carlisle Staffing Plc,UL01501668,19/11/2010,2357.01,Direct Employees,Salaries,Chilren & Young People's Trust,Commissioning & Governance
Carlisle Staffing Plc,UL01501668,19/11/2010,527.82,Direct Employees,Salaries,Chilren & Young People's Trust,Director Childrens Services
Carlisle Staffing Plc,UL01501668,19/11/2010,4658.89,Direct Employees,Salaries,Chilren & Young People's Trust,Learning Schools & Skills
Carlisle Staffing Plc,UL01501668,19/11/2010,401.45,Direct Employees,Salaries,Environment,City Planning
Carlisle Staffing Plc,UL01501668,19/11/2010,9.5,Direct Employees,Salaries,Environment,Director of Environment
Carlisle Staffing Plc,UL01501668,19/11/2010,3494.85,Direct Employees,Salaries,Environment,Public Safety
Carlisle Staffing Plc,UL01501668,19/11/2010,1500.36,Direct Employees,Salaries,Environment,Quality of Life & Green Spaces
Carlisle Staffing Plc,UL01501668,19/11/2010,2330.54,Direct Employees,Salaries,Environment,Sustainable Transport&Planning
Carlisle Staffing Plc,UL01501668,19/11/2010,2604.1,Direct Employees,Salaries,Environment,Waste
Carlisle Staffing Plc,UL01501668,19/11/2010,4,Direct Employees,Salaries,Finance & Resources,Audit and Business Risk
Carlisle Staffing Plc,UL01501668,19/11/2010,2491.35,Direct Employees,Salaries,Finance & Resources,Customer Services
Carlisle Staffing Plc,UL01501668,19/11/2010,1615.84,Direct Employees,Salaries,Finance & Resources,Financial Services
Carlisle Staffing Plc,UL01501668,19/11/2010,3109.96,Direct Employees,Salaries,Finance & Resources,ICT
Carlisle Staffing Plc,UL01501668,19/11/2010,3193.75,Direct Employees,Salaries,Finance & Resources,Property & Design
Carlisle Staffing Plc,UL01501668,19/11/2010,5458.5,Direct Employees,Salaries,Finance & Resources,Strategic Finance Procurement
Carlisle Staffing Plc,UL01501668,19/11/2010,204.43,Direct Employees,Salaries,"Housing, Culture & Capital",Cul & Ent Directors Office
Carlisle Staffing Plc,UL01501668,19/11/2010,317.28,Direct Employees,Salaries,"Housing, Culture & Capital",Culture & Economy
Carlisle Staffing Plc,UL01501668,19/11/2010,6366.19,Direct Employees,Salaries,"Housing, Culture & Capital",Housing Strategy
Carlisle Staffing Plc,UL01501668,19/11/2010,473.99,Direct Employees,Salaries,"Housing, Culture & Capital",Royal Pavilion & Museums
Carlisle Staffing Plc,UL01501668,19/11/2010,3935.03,Direct Employees,Salaries,Section 75 Adult Social Care,Contrib to S31 Partnership
Carlisle Staffing Plc,UL01501668,19/11/2010,574.66,Direct Employees,Salaries,Section 75 South Downs Health,Contrib to S31 Partnership
Carlisle Staffing Plc,UL01501668,19/11/2010,4479,Direct Employees,Salaries,Section 75 Sussex Partnership,Contrib to S31 Partnership
Carlisle Staffing Plc,UL01501668,19/11/2010,834.8,Direct Employees,Salaries,Strategy & Governance,Communications
Carlisle Staffing Plc,UL01501668,19/11/2010,3191.56,Direct Employees,Salaries,Strategy & Governance,Human Resources
Carlisle Staffing Plc,UL01501668,19/11/2010,1405.05,Direct Employees,Salaries,Strategy & Governance,Legal and Democratic Services
Carlisle Staffing Plc,UL01501668,19/11/2010,381.38,Direct Employees,Salaries,Strategy & Governance,Performance & Analysis
Carlisle Staffing Plc,UL01501668,19/11/2010,507.78,Direct Employees,Salaries,Strategy & Governance,Strategy & Governance
Carlisle Staffing Plc,UL01501668,19/11/2010,318.3,Direct Employees,Wages,"Housing, Culture & Capital",Housing Strategy
Carlisle Staffing Plc,UL01501668,19/11/2010,7.63,Direct Employees,Wages,"Housing, Culture & Capital",Royal Pavilion & Museums
Carlisle Staffing Plc,UL01501668,19/11/2010,472.88,New Construction and Conversion,,"Housing, Culture & Capital",Housing Strategy
Carlisle Staffing Plc,UL01519582,26/11/2010,6910.02,Direct Employees,Salaries,Adult Social Care,Adult Social Care
Carlisle Staffing Plc,UL01519582,26/11/2010,10723.2,Direct Employees,Salaries,Adult Social Care,Housing Management
Carlisle Staffing Plc,UL01519582,26/11/2010,18789.56,Direct Employees,Salaries,Chilren & Young People's Trust,Area Integrated Working
Carlisle Staffing Plc,UL01519582,26/11/2010,2351.31,Direct Employees,Salaries,Chilren & Young People's Trust,Commissioning & Governance
Carlisle Staffing Plc,UL01519582,26/11/2010,388.92,Direct Employees,Salaries,Chilren & Young People's Trust,Director Childrens Services
Carlisle Staffing Plc,UL01519582,26/11/2010,4613.47,Direct Employees,Salaries,Chilren & Young People's Trust,Learning Schools & Skills
Carlisle Staffing Plc,UL01519582,26/11/2010,4.25,Direct Employees,Salaries,Environment,Director of Environment
Carlisle Staffing Plc,UL01519582,26/11/2010,3282.2,Direct Employees,Salaries,Environment,Public Safety
Carlisle Staffing Plc,UL01519582,26/11/2010,1299.34,Direct Employees,Salaries,Environment,Quality of Life & Green Spaces
Carlisle Staffing Plc,UL01519582,26/11/2010,1719.07,Direct Employees,Salaries,Environment,Sustainable Transport&Planning
Carlisle Staffing Plc,UL01519582,26/11/2010,2430.43,Direct Employees,Salaries,Environment,Waste
Carlisle Staffing Plc,UL01519582,26/11/2010,428.94,Direct Employees,Salaries,Finance & Resources,Audit and Business Risk
Carlisle Staffing Plc,UL01519582,26/11/2010,1858.28,Direct Employees,Salaries,Finance & Resources,Customer Services
Carlisle Staffing Plc,UL01519582,26/11/2010,1861.84,Direct Employees,Salaries,Finance & Resources,Financial Services
Carlisle Staffing Plc,UL01519582,26/11/2010,1843.99,Direct Employees,Salaries,Finance & Resources,ICT
Carlisle Staffing Plc,UL01519582,26/11/2010,4228.31,Direct Employees,Salaries,Finance & Resources,Property & Design
Carlisle Staffing Plc,UL01519582,26/11/2010,3096.15,Direct Employees,Salaries,Finance & Resources,Strategic Finance Procurement
Carlisle Staffing Plc,UL01519582,26/11/2010,204.43,Direct Employees,Salaries,"Housing, Culture & Capital",Cul & Ent Directors Office
Carlisle Staffing Plc,UL01519582,26/11/2010,317.28,Direct Employees,Salaries,"Housing, Culture & Capital",Culture & Economy
Carlisle Staffing Plc,UL01519582,26/11/2010,7102.22,Direct Employees,Salaries,"Housing, Culture & Capital",Housing Strategy
Carlisle Staffing Plc,UL01519582,26/11/2010,315.08,Direct Employees,Salaries,"Housing, Culture & Capital",Royal Pavilion & Museums
Carlisle Staffing Plc,UL01519582,26/11/2010,2745.37,Direct Employees,Salaries,Section 75 Adult Social Care,Contrib to S31 Partnership
Carlisle Staffing Plc,UL01519582,26/11/2010,782.55,Direct Employees,Salaries,Section 75 South Downs Health,Contrib to S31 Partnership
Carlisle Staffing Plc,UL01519582,26/11/2010,7241.86,Direct Employees,Salaries,Section 75 Sussex Partnership,Contrib to S31 Partnership
Carlisle Staffing Plc,UL01519582,26/11/2010,871.32,Direct Employees,Salaries,Strategy & Governance,Communications
Carlisle Staffing Plc,UL01519582,26/11/2010,3057.76,Direct Employees,Salaries,Strategy & Governance,Human Resources
Carlisle Staffing Plc,UL01519582,26/11/2010,1406.87,Direct Employees,Salaries,Strategy & Governance,Legal and Democratic Services
Carlisle Staffing Plc,UL01519582,26/11/2010,381.38,Direct Employees,Salaries,Strategy & Governance,Performance & Analysis
Carlisle Staffing Plc,UL01519582,26/11/2010,524.06,Direct Employees,Salaries,Strategy & Governance,Strategy & Governance
Carlisle Staffing Plc,UL01519582,26/11/2010,318.3,Direct Employees,Wages,"Housing, Culture & Capital",Housing Strategy
Carlisle Staffing Plc,UL01519582,26/11/2010,134.26,Direct Employees,Wages,"Housing, Culture & Capital",Tourism & Venues
Carlisle Staffing Plc,UL01519582,26/11/2010,472.88,New Construction and Conversion,,"Housing, Culture & Capital",Housing Strategy
Carlisle Staffing Plc,UL01519582,26/11/2010,430.81,Transfer Payments,Other Transfer Payments,Chilren & Young People's Trust,Learning Schools & Skills
Payment to Individual,CF01515263,12/11/2010,778,Third Party Payments,Other Establishments,Adult Social Care,Adult Social Care
Payment to Individual,CF01515264,12/11/2010,778,Third Party Payments,Other Establishments,Adult Social Care,Adult Social Care
Payment to Individual,CF01515265,12/11/2010,778,Third Party Payments,Other Establishments,Adult Social Care,Adult Social Care
Payment to Individual,CF01515266,12/11/2010,778,Third Party Payments,Other Establishments,Adult Social Care,Adult Social Care
Art-techniques,4175449,05/11/2010,645,Supplies and Services,Services,Chilren & Young People's Trust,Area Integrated Working
Art-techniques,4199797,17/11/2010,735,Supplies and Services,Services,Chilren & Young People's Trust,Area Integrated Working
Carousel Ltd,4221115,24/11/2010,653,Supplies and Services,Miscellaneous Expenses,"Housing, Culture & Capital",Culture & Economy
Castlebeck Care (Teesdale) Ltd,CF01508826,05/11/2010,-71.15,Customer and Client Receipts,Fees and Charges,Section 75 Adult Social Care,Contrib to S31 Partnership
Castlebeck Care (Teesdale) Ltd,CF01508826,05/11/2010,2034.09,Third Party Payments,Other Establishments,Section 75 Adult Social Care,Contrib to S31 Partnership
Castlebeck Care (Teesdale) Ltd,CF01508827,05/11/2010,-71.15,Customer and Client Receipts,Fees and Charges,Section 75 Adult Social Care,Contrib to S31 Partnership
Castlebeck Care (Teesdale) Ltd,CF01508827,05/11/2010,2034.09,Third Party Payments,Other Establishments,Section 75 Adult Social Care,Contrib to S31 Partnership
Castlebeck Care (Teesdale) Ltd,CF01508828,05/11/2010,-71.15,Customer and Client Receipts,Fees and Charges,Section 75 Adult Social Care,Contrib to S31 Partnership
Castlebeck Care (Teesdale) Ltd,CF01508828,05/11/2010,2034.09,Third Party Payments,Other Establishments,Section 75 Adult Social Care,Contrib to S31 Partnership
Catercraft Supplies Ltd,4191148,12/11/2010,507.88,Premises Related,Repair Maintenance and Alterations,Finance & Resources,Property & Design
Payment to Individual,4170619,03/11/2010,1400,Transfer Payments,Other Transfer Payments,Chilren & Young People's Trust,Area Integrated Working
Payment to Individual,42015,26/11/2010,765,Premises Related,Rents Payable,"Housing, Culture & Capital",Housing Strategy
Payment to Individual,42035,26/11/2010,800,Premises Related,Rents Payable,"Housing, Culture & Capital",Housing Strategy
CATTS,4185125,10/11/2010,1000,Supplies and Services,Services,Chilren & Young People's Trust,Area Integrated Working
Cbabiesafe,UL01505011,03/11/2010,5718,Supplies and Services,Grants and Subscriptions,Chilren & Young People's Trust,Area Integrated Working
Cbabiesafe,UL01512696,10/11/2010,2520,Third Party Payments,Other Establishments,Chilren & Young People's Trust,Learning Schools & Skills
CB Richard Ellis Limited,4194271,17/11/2010,7213.1,New Construction and Conversion,,"Housing, Culture & Capital",Major Projects & Regeneration
C. B. Winter & Sons Ltd,4224921,24/11/2010,800,Supplies and Services,Equipment Furniture and Materials,Environment,Quality of Life & Green Spaces
Ceetex (Leisure) Ltd,4188737,12/11/2010,732,Supplies and Services,Equipment Furniture and Materials,Chilren & Young People's Trust,Area Integrated Working
Central Sussex College,4221173,24/11/2010,2856,Supplies and Services,Miscellaneous Expenses,"Housing, Culture & Capital",Culture & Economy
JACE,4210511,19/11/2010,1150,Supplies and Services,Grants and Subscriptions,Chilren & Young People's Trust,Area Integrated Working
Cerrig Camu Ltd,CF01517465,17/11/2010,-71.15,Customer and Client Receipts,Fees and Charges,Section 75 Adult Social Care,Contrib to S31 Partnership
Cerrig Camu Ltd,CF01517465,17/11/2010,1267.86,Third Party Payments,Other Establishments,Section 75 Adult Social Care,Contrib to S31 Partnership
Cerrig Camu Ltd,CF01517466,17/11/2010,-71.15,Customer and Client Receipts,Fees and Charges,Section 75 Adult Social Care,Contrib to S31 Partnership
Cerrig Camu Ltd,CF01517466,17/11/2010,1267.86,Third Party Payments,Other Establishments,Section 75 Adult Social Care,Contrib to S31 Partnership
Cerrig Camu Ltd,CF01517467,17/11/2010,-71.15,Customer and Client Receipts,Fees and Charges,Section 75 Adult Social Care,Contrib to S31 Partnership
Cerrig Camu Ltd,CF01517467,17/11/2010,1267.86,Third Party Payments,Other Establishments,Section 75 Adult Social Care,Contrib to S31 Partnership
Cerrig Camu Ltd,CF01517468,17/11/2010,-71.15,Customer and Client Receipts,Fees and Charges,Section 75 Adult Social Care,Contrib to S31 Partnership
Cerrig Camu Ltd,CF01517468,17/11/2010,1267.86,Third Party Payments,Other Establishments,Section 75 Adult Social Care,Contrib to S31 Partnership
Chailey Heritage School,4191041,12/11/2010,1716.35,Third Party Payments,Other Agencies,Chilren & Young People's Trust,Learning Schools & Skills
Chailey Heritage School,CF01526675,24/11/2010,542,Third Party Payments,Other Establishments,Chilren & Young People's Trust,Learning Schools & Skills
Chailey Heritage School,CF01526676,24/11/2010,542,Third Party Payments,Other Establishments,Chilren & Young People's Trust,Learning Schools & Skills
Chailey Heritage School,CF01526677,24/11/2010,813,Third Party Payments,Other Establishments,Chilren & Young People's Trust,Learning Schools & Skills
Chailey Heritage School,CF01526678,24/11/2010,542,Third Party Payments,Other Establishments,Chilren & Young People's Trust,Learning Schools & Skills
Payment to Individual,41504,10/11/2010,750,Premises Related,Rents Payable,"Housing, Culture & Capital",Housing Strategy
Channels & Choices,CF01517830,17/11/2010,6042.9,Third Party Payments,Other Establishments,Chilren & Young People's Trust,Commissioning & Governance
Channels & Choices,CF01517831,17/11/2010,4700,Third Party Payments,Other Establishments,Chilren & Young People's Trust,Commissioning & Governance
Channels & Choices,CF01517832,17/11/2010,4700,Third Party Payments,Other Establishments,Chilren & Young People's Trust,Commissioning & Governance
Channels & Choices,CF01517833,17/11/2010,4700,Third Party Payments,Other Establishments,Chilren & Young People's Trust,Commissioning & Governance
Payment to Individual,42036,26/11/2010,775,Premises Related,Rents Payable,"Housing, Culture & Capital",Housing Strategy
Payment to Individual,CF01515468,12/11/2010,712.34,Third Party Payments,Other Establishments,Adult Social Care,Adult Social Care
Payment to Individual,CF01515469,12/11/2010,712.34,Third Party Payments,Other Establishments,Adult Social Care,Adult Social Care
Payment to Individual,CF01515470,12/11/2010,712.34,Third Party Payments,Other Establishments,Adult Social Care,Adult Social Care
Payment to Individual,CF01515471,12/11/2010,712.34,Third Party Payments,Other Establishments,Adult Social Care,Adult Social Care
Chartered Management Institute Ltd,4180764,10/11/2010,998,Indirect Employees,Training,"Housing, Culture & Capital",Housing Strategy
Chelfham Priory,4221034,24/11/2010,78117.77,Third Party Payments,Other Agencies,Chilren & Young People's Trust,Learning Schools & Skills
Cherry Security Company Ltd,4224565,24/11/2010,2041,Premises Related,Rents Payable,Finance & Resources,Property & Design
Cherry Security Company Ltd,4224581,24/11/2010,2093,Premises Related,Rents Payable,Finance & Resources,Property & Design
Cherry Security Company Ltd,4224594,24/11/2010,1836,Premises Related,Rents Payable,Finance & Resources,Property & Design
Cherry Security Company Ltd,4224604,24/11/2010,1624,Premises Related,Rents Payable,Finance & Resources,Property & Design
Cherry Security Company Ltd,4224620,24/11/2010,2041,Premises Related,Rents Payable,Finance & Resources,Property & Design
Cherry Security Company Ltd,4224646,24/11/2010,2041,Premises Related,Rents Payable,Finance & Resources,Property & Design
Chichester College,4225629,25/11/2010,4459,Third Party Payments,Other Establishments,Environment,Public Safety
Ch Inst of Library &Info Professionals,4180421,10/11/2010,650,Supplies and Services,Grants and Subscriptions,"Housing, Culture & Capital",Libraries & Information Servic
Payment to Individual,4191601,12/11/2010,500,Direct Employees,Wages,"Housing, Culture & Capital",Royal Pavilion & Museums
Payment to Individual,41900,24/11/2010,750,Premises Related,Rents Payable,"Housing, Culture & Capital",Housing Strategy
Payment to Individual,41986,26/11/2010,875,Premises Related,Rents Payable,"Housing, Culture & Capital",Housing Strategy
Payment to Individual,41379,05/11/2010,775,Premises Related,Rents Payable,"Housing, Culture & Capital",Housing Strategy
Payment to Individual,41248,03/11/2010,900,Premises Related,Rents Payable,"Housing, Culture & Capital",Housing Strategy
Payment to Individual,4183156,04/11/2010,873.86,Premises Related,Rents Payable,"Housing, Culture & Capital",Housing Strategy
Chubb Electronic Security Ltd,4176273,12/11/2010,1394,Premises Related,Repair Maintenance and Alterations,Finance & Resources,Property & Design
Church Hill Playgroup,UL01505005,03/11/2010,1768,Supplies and Services,Grants and Subscriptions,Chilren & Young People's Trust,Area Integrated Working
Church Hill Playgroup,UL01512691,10/11/2010,924,Third Party Payments,Other Establishments,Chilren & Young People's Trust,Learning Schools & Skills
Cinecity The Brighton Film Festival,4224251,24/11/2010,887,Supplies and Services,Miscellaneous Expenses,"Housing, Culture & Capital",Culture & Economy
CIPFA Business Ltd,4165446,03/11/2010,640,Supplies and Services,Miscellaneous Expenses,Strategy & Governance,Legal and Democratic Services
CIPFA Business Ltd,4226741,26/11/2010,650,Indirect Employees,Training,Finance & Resources,Financial Services
Circus Pre-School,4223553,24/11/2010,781,Third Party Payments,Other Establishments,Chilren & Young People's Trust,Area Integrated Working
Circus Pre-School,UL01504969,03/11/2010,2402,Supplies and Services,Grants and Subscriptions,Chilren & Young People's Trust,Area Integrated Working
Circus Pre-School,UL01512654,10/11/2010,2100,Third Party Payments,Other Establishments,Chilren & Young People's Trust,Learning Schools & Skills
Cirrus Communications Systems Ltd,4172303,05/11/2010,1397.8,Supplies and Services,Equipment Furniture and Materials,Adult Social Care,Housing Management
City Car Club,4201119,17/11/2010,799.53,Transport Related,Other Transport Costs,Environment,City Planning
City College Brighton and Hove,4158495,05/11/2010,14000,Supplies and Services,Miscellaneous Expenses,"Housing, Culture & Capital",Culture & Economy
City College Brighton and Hove,4178284,17/11/2010,9433.74,Third Party Payments,Other Establishments,Chilren & Young People's Trust,Learning Schools & Skills
City College Brighton and Hove,4208264,26/11/2010,652.5,Indirect Employees,Training,Strategy & Governance,Human Resources
City College Brighton and Hove,4211345,26/11/2010,1100,Supplies and Services,Grants and Subscriptions,Chilren & Young People's Trust,Area Integrated Working
City College Brighton and Hove,4224235,24/11/2010,7772,Supplies and Services,Miscellaneous Expenses,"Housing, Culture & Capital",Culture & Economy
City College Brighton and Hove,4226372,26/11/2010,1000,Indirect Employees,Training,Finance & Resources,Financial Services
City College Brighton and Hove,4229078,26/11/2010,50400,Government Grants,Specific Grants,Chilren & Young People's Trust,Learning Schools & Skills
City College Brighton and Hove,4230601,26/11/2010,800,Indirect Employees,Training,Chilren & Young People's Trust,Area Integrated Working
City Pest Control,4208167,19/11/2010,600,Premises Related,Repair Maintenance and Alterations,Adult Social Care,Housing Management
City Pest Control,4208222,19/11/2010,540,Premises Related,Repair Maintenance and Alterations,Adult Social Care,Housing Management
Civica UK Ltd,4202529,26/11/2010,13057.94,Supplies and Services,Communications and Computing,"Housing, Culture & Capital",Libraries & Information Servic
Payment to Individual,41519,10/11/2010,750,Premises Related,Rents Payable,"Housing, Culture & Capital",Housing Strategy
Payment to Individual,41924,24/11/2010,1100,Premises Related,Rents Payable,"Housing, Culture & Capital",Housing Strategy
Clark Cranes and Access UK Ltd,4199959,17/11/2010,1700,Premises Related,Repair Maintenance and Alterations,Finance & Resources,Property & Design
Class Of Their Own Ltd,4194938,17/11/2010,1607,Supplies and Services,Contributions to Provisions,Chilren & Young People's Trust,Area Integrated Working
Class Of Their Own Ltd,4194941,17/11/2010,5820,Supplies and Services,Grants and Subscriptions,Chilren & Young People's Trust,Area Integrated Working
Claydon House Ltd,CF01528040,26/11/2010,535.1,Third Party Payments,Other Establishments,Adult Social Care,Adult Social Care
Claydon House Ltd,CF01528041,26/11/2010,535.1,Third Party Payments,Other Establishments,Adult Social Care,Adult Social Care
Claydon House Ltd,CF01528042,26/11/2010,535.1,Third Party Payments,Other Establishments,Adult Social Care,Adult Social Care
Clearwell Mobility Ltd,4162452,03/11/2010,1111.5,Supplies and Services,Equipment Furniture and Materials,Section 75 South Downs Health,Contrib to S31 Partnership
Clearwell Mobility Ltd,4222897,24/11/2010,1528.72,Supplies and Services,Equipment Furniture and Materials,Section 75 South Downs Health,Contrib to S31 Partnership
Clearwell Mobility Ltd,4222910,24/11/2010,1524.22,Supplies and Services,Equipment Furniture and Materials,Section 75 South Downs Health,Contrib to S31 Partnership
Clearwell Mobility Ltd,4222923,24/11/2010,695,Supplies and Services,Equipment Furniture and Materials,Section 75 South Downs Health,Contrib to S31 Partnership
Clearwell Mobility Ltd,4226013,26/11/2010,1581.22,Supplies and Services,Equipment Furniture and Materials,Section 75 South Downs Health,Contrib to S31 Partnership
Cliffords Catering Limited,4177379,05/11/2010,2299.36,Supplies and Services,Catering,Chilren & Young People's Trust,Learning Schools & Skills
Cliffords Catering Limited,4193926,12/11/2010,609.76,Supplies and Services,Catering,Chilren & Young People's Trust,Learning Schools & Skills
Cliffords Catering Limited,4201258,17/11/2010,2597.02,Supplies and Services,Catering,Chilren & Young People's Trust,Learning Schools & Skills
Cliffords Catering Limited,4220103,24/11/2010,3354.5,Supplies and Services,Catering,Chilren & Young People's Trust,Learning Schools & Skills
Climate Energy Ltd,4164049,03/11/2010,4108.02,Capital Grants,,"Housing, Culture & Capital",Housing Strategy
Climate Energy Ltd,4164065,03/11/2010,4431,Capital Grants,,"Housing, Culture & Capital",Housing Strategy
Climate Energy Ltd,4164120,03/11/2010,4449.9,Capital Grants,,"Housing, Culture & Capital",Housing Strategy
Climate Energy Ltd,4164201,03/11/2010,3814.65,Capital Grants,,"Housing, Culture & Capital",Housing Strategy
Climate Energy Ltd,4164269,03/11/2010,4610.13,Capital Grants,,"Housing, Culture & Capital",Housing Strategy
Climate Energy Ltd,4164311,03/11/2010,3942,Capital Grants,,"Housing, Culture & Capital",Housing Strategy
Climate Energy Ltd,4167376,03/11/2010,4261.32,Capital Grants,,"Housing, Culture & Capital",Housing Strategy
Climate Energy Ltd,4167402,03/11/2010,1500,Capital Grants,,"Housing, Culture & Capital",Housing Strategy
Climate Energy Ltd,4167431,03/11/2010,585.15,Capital Grants,,"Housing, Culture & Capital",Housing Strategy
Climate Energy Ltd,4167509,03/11/2010,600,Capital Grants,,"Housing, Culture & Capital",Housing Strategy
Climate Energy Ltd,4167554,03/11/2010,587.5,Capital Grants,,"Housing, Culture & Capital",Housing Strategy
Climate Energy Ltd,4167570,03/11/2010,600,Capital Grants,,"Housing, Culture & Capital",Housing Strategy
Climate Energy Ltd,4167622,03/11/2010,528.75,Capital Grants,,"Housing, Culture & Capital",Housing Strategy
Climate Energy Ltd,4167648,03/11/2010,500,Capital Grants,,"Housing, Culture & Capital",Housing Strategy
Climate Energy Ltd,4167664,03/11/2010,7091.36,Capital Grants,,"Housing, Culture & Capital",Housing Strategy
Climate Energy Ltd,4182063,10/11/2010,825.3,New Construction and Conversion,,"Housing, Culture & Capital",Housing Management
Climate Energy Ltd,4199687,17/11/2010,3242.4,Capital Grants,,"Housing, Culture & Capital",Housing Strategy
Climate Energy Ltd,4199700,17/11/2010,3500,Capital Grants,,"Housing, Culture & Capital",Housing Strategy
Climate Energy Ltd,4199739,17/11/2010,3500,Capital Grants,,"Housing, Culture & Capital",Housing Strategy
Climate Energy Ltd,4203764,17/11/2010,4660.97,Capital Grants,,"Housing, Culture & Capital",Housing Strategy
Climate Energy Ltd,4203900,17/11/2010,800,Capital Grants,,"Housing, Culture & Capital",Housing Strategy
Climate Energy Ltd,4203939,17/11/2010,4638.69,Capital Grants,,"Housing, Culture & Capital",Housing Strategy
Climate Energy Ltd,4203984,17/11/2010,4387.95,Capital Grants,,"Housing, Culture & Capital",Housing Strategy
Climate Energy Ltd,4204022,17/11/2010,3922.8,Capital Grants,,"Housing, Culture & Capital",Housing Strategy
Climate Energy Ltd,4204077,17/11/2010,4725,Capital Grants,,"Housing, Culture & Capital",Housing Strategy
Cluttons,4203735,17/11/2010,15719.27,Third Party Payments,Independent Units of Council,Finance & Resources,Property & Design
Cluttons,4219033,24/11/2010,720,Premises Related,Departmental Administration,Finance & Resources,To Be Advised
Cluttons LLP (Service Charges/Rent/Imprests),4163231,03/11/2010,2741.23,Premises Related,Rents Payable,Finance & Resources,Property & Design
Cluttons LLP (Service Charges/Rent/Imprests),4163244,03/11/2010,2970.02,Premises Related,Rents Payable,Finance & Resources,Property & Design
Cluttons LLP (Service Charges/Rent/Imprests),4231260,26/11/2010,-1126.18,Customer and Client Receipts,Fees and Charges,Finance & Resources,Property & Design
Cluttons LLP (Service Charges/Rent/Imprests),4231260,26/11/2010,238.54,Premises Related,Energy Costs,Finance & Resources,Property & Design
Cluttons LLP (Service Charges/Rent/Imprests),4231260,26/11/2010,106.34,Premises Related,Water Services,Finance & Resources,Property & Design
Cluttons LLP (Service Charges/Rent/Imprests),4231260,26/11/2010,7978,Supplies and Services,Services,Finance & Resources,Property & Design
Cluttons LLP (Service Charges/Rent/Imprests),4231260,26/11/2010,6720.76,Third Party Payments,Private Contractors,Finance & Resources,Property & Design
CMG Limited,CF01506385,03/11/2010,1725,Third Party Payments,Other Establishments,Section 75 Adult Social Care,Contrib to S31 Partnership
CMG Limited,CF01506394,03/11/2010,1725,Third Party Payments,Other Establishments,Section 75 Adult Social Care,Contrib to S31 Partnership
CMG Limited,CF01506395,03/11/2010,1725,Third Party Payments,Other Establishments,Section 75 Adult Social Care,Contrib to S31 Partnership
CMG Limited,CF01506396,03/11/2010,1725,Third Party Payments,Other Establishments,Section 75 Adult Social Care,Contrib to S31 Partnership
CMG Limited,CF01506397,03/11/2010,1725,Third Party Payments,Other Establishments,Section 75 Adult Social Care,Contrib to S31 Partnership
CMG Limited,CF01506398,03/11/2010,1725,Third Party Payments,Other Establishments,Section 75 Adult Social Care,Contrib to S31 Partnership
CMG Limited,CF01506399,03/11/2010,1725,Third Party Payments,Other Establishments,Section 75 Adult Social Care,Contrib to S31 Partnership
CMG Limited,CF01506400,03/11/2010,1725,Third Party Payments,Other Establishments,Section 75 Adult Social Care,Contrib to S31 Partnership
CMG Limited,CF01506401,03/11/2010,1725,Third Party Payments,Other Establishments,Section 75 Adult Social Care,Contrib to S31 Partnership
CMG Limited,CF01506402,03/11/2010,1725,Third Party Payments,Other Establishments,Section 75 Adult Social Care,Contrib to S31 Partnership
CMG Limited,CF01506403,03/11/2010,1725,Third Party Payments,Other Establishments,Section 75 Adult Social Care,Contrib to S31 Partnership
CMG Limited,CF01506404,03/11/2010,1725,Third Party Payments,Other Establishments,Section 75 Adult Social Care,Contrib to S31 Partnership
CMG Limited,CF01506413,03/11/2010,1725,Third Party Payments,Other Establishments,Section 75 Adult Social Care,Contrib to S31 Partnership
CMG Limited,CF01506414,03/11/2010,1725,Third Party Payments,Other Establishments,Section 75 Adult Social Care,Contrib to S31 Partnership
CMG Limited,CF01506415,03/11/2010,1725,Third Party Payments,Other Establishments,Section 75 Adult Social Care,Contrib to S31 Partnership
CMG Limited,CF01506416,03/11/2010,1725,Third Party Payments,Other Establishments,Section 75 Adult Social Care,Contrib to S31 Partnership
CMG Limited,CF01507502,03/11/2010,1100,Third Party Payments,Other Establishments,Section 75 Adult Social Care,Contrib to S31 Partnership
CMG Limited,CF01507503,03/11/2010,1100,Third Party Payments,Other Establishments,Section 75 Adult Social Care,Contrib to S31 Partnership
CMG Limited,CF01512772,10/11/2010,2065.25,Third Party Payments,Other Establishments,Section 75 Adult Social Care,Contrib to S31 Partnership
CMG Limited,CF01512773,10/11/2010,2065.25,Third Party Payments,Other Establishments,Section 75 Adult Social Care,Contrib to S31 Partnership
CMG Limited,CF01512921,10/11/2010,-71.15,Customer and Client Receipts,Fees and Charges,Section 75 Adult Social Care,Contrib to S31 Partnership
CMG Limited,CF01512921,10/11/2010,1470.84,Third Party Payments,Other Establishments,Section 75 Adult Social Care,Contrib to S31 Partnership
CMG Limited,CF01512922,10/11/2010,-71.15,Customer and Client Receipts,Fees and Charges,Section 75 Adult Social Care,Contrib to S31 Partnership
CMG Limited,CF01512922,10/11/2010,1470.84,Third Party Payments,Other Establishments,Section 75 Adult Social Care,Contrib to S31 Partnership
CMG Limited,CF01512923,10/11/2010,-71.15,Customer and Client Receipts,Fees and Charges,Section 75 Adult Social Care,Contrib to S31 Partnership
CMG Limited,CF01512923,10/11/2010,1470.84,Third Party Payments,Other Establishments,Section 75 Adult Social Care,Contrib to S31 Partnership
CMG Limited,CF01512924,10/11/2010,-71.15,Customer and Client Receipts,Fees and Charges,Section 75 Adult Social Care,Contrib to S31 Partnership
CMG Limited,CF01512924,10/11/2010,1470.84,Third Party Payments,Other Establishments,Section 75 Adult Social Care,Contrib to S31 Partnership
CMG Limited,CF01512925,10/11/2010,-71.15,Customer and Client Receipts,Fees and Charges,Section 75 Adult Social Care,Contrib to S31 Partnership
CMG Limited,CF01512925,10/11/2010,1305.6,Third Party Payments,Other Establishments,Section 75 Adult Social Care,Contrib to S31 Partnership
CMG Limited,CF01512926,10/11/2010,-71.15,Customer and Client Receipts,Fees and Charges,Section 75 Adult Social Care,Contrib to S31 Partnership
CMG Limited,CF01512926,10/11/2010,1305.6,Third Party Payments,Other Establishments,Section 75 Adult Social Care,Contrib to S31 Partnership
CMG Limited,CF01512927,10/11/2010,-71.15,Customer and Client Receipts,Fees and Charges,Section 75 Adult Social Care,Contrib to S31 Partnership
CMG Limited,CF01512927,10/11/2010,1305.6,Third Party Payments,Other Establishments,Section 75 Adult Social Care,Contrib to S31 Partnership
CMG Limited,CF01512928,10/11/2010,-71.15,Customer and Client Receipts,Fees and Charges,Section 75 Adult Social Care,Contrib to S31 Partnership
CMG Limited,CF01512928,10/11/2010,1305.6,Third Party Payments,Other Establishments,Section 75 Adult Social Care,Contrib to S31 Partnership
CMG Limited,CF01512929,10/11/2010,-71.15,Customer and Client Receipts,Fees and Charges,Section 75 Adult Social Care,Contrib to S31 Partnership
CMG Limited,CF01512929,10/11/2010,1535.94,Third Party Payments,Other Establishments,Section 75 Adult Social Care,Contrib to S31 Partnership
CMG Limited,CF01512930,10/11/2010,-71.15,Customer and Client Receipts,Fees and Charges,Section 75 Adult Social Care,Contrib to S31 Partnership
CMG Limited,CF01512930,10/11/2010,1535.94,Third Party Payments,Other Establishments,Section 75 Adult Social Care,Contrib to S31 Partnership
CMG Limited,CF01512931,10/11/2010,-71.15,Customer and Client Receipts,Fees and Charges,Section 75 Adult Social Care,Contrib to S31 Partnership
CMG Limited,CF01512931,10/11/2010,1535.94,Third Party Payments,Other Establishments,Section 75 Adult Social Care,Contrib to S31 Partnership
CMG Limited,CF01512932,10/11/2010,-71.15,Customer and Client Receipts,Fees and Charges,Section 75 Adult Social Care,Contrib to S31 Partnership
CMG Limited,CF01512932,10/11/2010,1535.94,Third Party Payments,Other Establishments,Section 75 Adult Social Care,Contrib to S31 Partnership
CMG Limited,CF01512933,10/11/2010,-71.15,Customer and Client Receipts,Fees and Charges,Section 75 Adult Social Care,Contrib to S31 Partnership
CMG Limited,CF01512933,10/11/2010,1578.96,Third Party Payments,Other Establishments,Section 75 Adult Social Care,Contrib to S31 Partnership
CMG Limited,CF01512934,10/11/2010,-71.15,Customer and Client Receipts,Fees and Charges,Section 75 Adult Social Care,Contrib to S31 Partnership
CMG Limited,CF01512934,10/11/2010,1578.96,Third Party Payments,Other Establishments,Section 75 Adult Social Care,Contrib to S31 Partnership
CMG Limited,CF01512935,10/11/2010,-71.15,Customer and Client Receipts,Fees and Charges,Section 75 Adult Social Care,Contrib to S31 Partnership
CMG Limited,CF01512935,10/11/2010,1578.96,Third Party Payments,Other Establishments,Section 75 Adult Social Care,Contrib to S31 Partnership
CMG Limited,CF01512936,10/11/2010,-71.15,Customer and Client Receipts,Fees and Charges,Section 75 Adult Social Care,Contrib to S31 Partnership
CMG Limited,CF01512936,10/11/2010,1578.96,Third Party Payments,Other Establishments,Section 75 Adult Social Care,Contrib to S31 Partnership
CMG Limited,CF01512937,10/11/2010,-84.1,Customer and Client Receipts,Fees and Charges,Section 75 Adult Social Care,Contrib to S31 Partnership
CMG Limited,CF01512937,10/11/2010,1149.54,Third Party Payments,Other Establishments,Section 75 Adult Social Care,Contrib to S31 Partnership
CMG Limited,CF01512938,10/11/2010,-84.1,Customer and Client Receipts,Fees and Charges,Section 75 Adult Social Care,Contrib to S31 Partnership
CMG Limited,CF01512938,10/11/2010,1149.54,Third Party Payments,Other Establishments,Section 75 Adult Social Care,Contrib to S31 Partnership
CMG Limited,CF01512939,10/11/2010,-84.1,Customer and Client Receipts,Fees and Charges,Section 75 Adult Social Care,Contrib to S31 Partnership
CMG Limited,CF01512939,10/11/2010,1149.54,Third Party Payments,Other Establishments,Section 75 Adult Social Care,Contrib to S31 Partnership
CMG Limited,CF01512940,10/11/2010,-84.1,Customer and Client Receipts,Fees and Charges,Section 75 Adult Social Care,Contrib to S31 Partnership
CMG Limited,CF01512940,10/11/2010,1149.54,Third Party Payments,Other Establishments,Section 75 Adult Social Care,Contrib to S31 Partnership
CMG Limited,CF01512941,10/11/2010,-71.15,Customer and Client Receipts,Fees and Charges,Section 75 Adult Social Care,Contrib to S31 Partnership
CMG Limited,CF01512941,10/11/2010,1958.89,Third Party Payments,Other Establishments,Section 75 Adult Social Care,Contrib to S31 Partnership
CMG Limited,CF01512942,10/11/2010,-71.15,Customer and Client Receipts,Fees and Charges,Section 75 Adult Social Care,Contrib to S31 Partnership
CMG Limited,CF01512942,10/11/2010,1958.89,Third Party Payments,Other Establishments,Section 75 Adult Social Care,Contrib to S31 Partnership
CMG Limited,CF01512943,10/11/2010,-71.15,Customer and Client Receipts,Fees and Charges,Section 75 Adult Social Care,Contrib to S31 Partnership
CMG Limited,CF01512943,10/11/2010,1958.89,Third Party Payments,Other Establishments,Section 75 Adult Social Care,Contrib to S31 Partnership
CMG Limited,CF01512944,10/11/2010,-71.15,Customer and Client Receipts,Fees and Charges,Section 75 Adult Social Care,Contrib to S31 Partnership
CMG Limited,CF01512944,10/11/2010,1958.89,Third Party Payments,Other Establishments,Section 75 Adult Social Care,Contrib to S31 Partnership
CMG Limited,CF01512945,10/11/2010,-71.15,Customer and Client Receipts,Fees and Charges,Section 75 Adult Social Care,Contrib to S31 Partnership
CMG Limited,CF01512945,10/11/2010,1958.26,Third Party Payments,Other Establishments,Section 75 Adult Social Care,Contrib to S31 Partnership
CMG Limited,CF01512946,10/11/2010,-71.15,Customer and Client Receipts,Fees and Charges,Section 75 Adult Social Care,Contrib to S31 Partnership
CMG Limited,CF01512946,10/11/2010,1958.26,Third Party Payments,Other Establishments,Section 75 Adult Social Care,Contrib to S31 Partnership
CMG Limited,CF01512947,10/11/2010,-71.15,Customer and Client Receipts,Fees and Charges,Section 75 Adult Social Care,Contrib to S31 Partnership
CMG Limited,CF01512947,10/11/2010,1958.26,Third Party Payments,Other Establishments,Section 75 Adult Social Care,Contrib to S31 Partnership
CMG Limited,CF01512948,10/11/2010,-71.15,Customer and Client Receipts,Fees and Charges,Section 75 Adult Social Care,Contrib to S31 Partnership
CMG Limited,CF01512948,10/11/2010,1958.26,Third Party Payments,Other Establishments,Section 75 Adult Social Care,Contrib to S31 Partnership
CMG Limited,CF01512949,10/11/2010,-71.15,Customer and Client Receipts,Fees and Charges,Section 75 Adult Social Care,Contrib to S31 Partnership
CMG Limited,CF01512949,10/11/2010,1805.88,Third Party Payments,Other Establishments,Section 75 Adult Social Care,Contrib to S31 Partnership
CMG Limited,CF01512950,10/11/2010,-71.15,Customer and Client Receipts,Fees and Charges,Section 75 Adult Social Care,Contrib to S31 Partnership
CMG Limited,CF01512950,10/11/2010,1805.88,Third Party Payments,Other Establishments,Section 75 Adult Social Care,Contrib to S31 Partnership
CMG Limited,CF01512951,10/11/2010,-71.15,Customer and Client Receipts,Fees and Charges,Section 75 Adult Social Care,Contrib to S31 Partnership
CMG Limited,CF01512951,10/11/2010,1805.88,Third Party Payments,Other Establishments,Section 75 Adult Social Care,Contrib to S31 Partnership
CMG Limited,CF01512952,10/11/2010,-71.15,Customer and Client Receipts,Fees and Charges,Section 75 Adult Social Care,Contrib to S31 Partnership
CMG Limited,CF01512952,10/11/2010,1805.88,Third Party Payments,Other Establishments,Section 75 Adult Social Care,Contrib to S31 Partnership
CMG Limited,CF01512961,10/11/2010,-71.15,Customer and Client Receipts,Fees and Charges,Section 75 Adult Social Care,Contrib to S31 Partnership
CMG Limited,CF01512961,10/11/2010,1800.3,Third Party Payments,Other Establishments,Section 75 Adult Social Care,Contrib to S31 Partnership
CMG Limited,CF01512962,10/11/2010,-71.15,Customer and Client Receipts,Fees and Charges,Section 75 Adult Social Care,Contrib to S31 Partnership
CMG Limited,CF01512962,10/11/2010,1800.3,Third Party Payments,Other Establishments,Section 75 Adult Social Care,Contrib to S31 Partnership
CMG Limited,CF01512963,10/11/2010,-71.15,Customer and Client Receipts,Fees and Charges,Section 75 Adult Social Care,Contrib to S31 Partnership
CMG Limited,CF01512963,10/11/2010,1800.3,Third Party Payments,Other Establishments,Section 75 Adult Social Care,Contrib to S31 Partnership
CMG Limited,CF01512964,10/11/2010,-71.15,Customer and Client Receipts,Fees and Charges,Section 75 Adult Social Care,Contrib to S31 Partnership
CMG Limited,CF01512964,10/11/2010,1800.3,Third Party Payments,Other Establishments,Section 75 Adult Social Care,Contrib to S31 Partnership
CMG Limited,CF01512969,10/11/2010,-110.3,Customer and Client Receipts,Fees and Charges,Section 75 Adult Social Care,Contrib to S31 Partnership
CMG Limited,CF01512969,10/11/2010,1451.86,Third Party Payments,Other Establishments,Section 75 Adult Social Care,Contrib to S31 Partnership
CMG Limited,CF01512970,10/11/2010,-110.3,Customer and Client Receipts,Fees and Charges,Section 75 Adult Social Care,Contrib to S31 Partnership
CMG Limited,CF01512970,10/11/2010,1451.86,Third Party Payments,Other Establishments,Section 75 Adult Social Care,Contrib to S31 Partnership
CMG Limited,CF01512971,10/11/2010,-110.3,Customer and Client Receipts,Fees and Charges,Section 75 Adult Social Care,Contrib to S31 Partnership
CMG Limited,CF01512971,10/11/2010,1451.86,Third Party Payments,Other Establishments,Section 75 Adult Social Care,Contrib to S31 Partnership
CMG Limited,CF01512972,10/11/2010,-110.3,Customer and Client Receipts,Fees and Charges,Section 75 Adult Social Care,Contrib to S31 Partnership
CMG Limited,CF01512972,10/11/2010,1451.86,Third Party Payments,Other Establishments,Section 75 Adult Social Care,Contrib to S31 Partnership
CMG Limited,CF01512973,10/11/2010,-71.15,Customer and Client Receipts,Fees and Charges,Section 75 Adult Social Care,Contrib to S31 Partnership
CMG Limited,CF01512973,10/11/2010,1820,Third Party Payments,Other Establishments,Section 75 Adult Social Care,Contrib to S31 Partnership
CMG Limited,CF01512974,10/11/2010,-71.15,Customer and Client Receipts,Fees and Charges,Section 75 Adult Social Care,Contrib to S31 Partnership
CMG Limited,CF01512974,10/11/2010,1820,Third Party Payments,Other Establishments,Section 75 Adult Social Care,Contrib to S31 Partnership
CMG Limited,CF01512975,10/11/2010,-71.15,Customer and Client Receipts,Fees and Charges,Section 75 Adult Social Care,Contrib to S31 Partnership
CMG Limited,CF01512975,10/11/2010,1820,Third Party Payments,Other Establishments,Section 75 Adult Social Care,Contrib to S31 Partnership
CMG Limited,CF01512976,10/11/2010,-71.15,Customer and Client Receipts,Fees and Charges,Section 75 Adult Social Care,Contrib to S31 Partnership
CMG Limited,CF01512976,10/11/2010,1820,Third Party Payments,Other Establishments,Section 75 Adult Social Care,Contrib to S31 Partnership
CMG Limited,CF01512977,10/11/2010,-71.15,Customer and Client Receipts,Fees and Charges,Section 75 Adult Social Care,Contrib to S31 Partnership
CMG Limited,CF01512977,10/11/2010,1395,Third Party Payments,Other Establishments,Section 75 Adult Social Care,Contrib to S31 Partnership
CMG Limited,CF01512978,10/11/2010,-71.15,Customer and Client Receipts,Fees and Charges,Section 75 Adult Social Care,Contrib to S31 Partnership
CMG Limited,CF01512978,10/11/2010,1395,Third Party Payments,Other Establishments,Section 75 Adult Social Care,Contrib to S31 Partnership
CMG Limited,CF01512979,10/11/2010,-71.15,Customer and Client Receipts,Fees and Charges,Section 75 Adult Social Care,Contrib to S31 Partnership
CMG Limited,CF01512979,10/11/2010,1395,Third Party Payments,Other Establishments,Section 75 Adult Social Care,Contrib to S31 Partnership
CMG Limited,CF01512980,10/11/2010,-71.15,Customer and Client Receipts,Fees and Charges,Section 75 Adult Social Care,Contrib to S31 Partnership
CMG Limited,CF01512980,10/11/2010,1395,Third Party Payments,Other Establishments,Section 75 Adult Social Care,Contrib to S31 Partnership
CMG Limited,CF01512981,10/11/2010,-71.15,Customer and Client Receipts,Fees and Charges,Section 75 Adult Social Care,Contrib to S31 Partnership
CMG Limited,CF01512981,10/11/2010,1507.56,Third Party Payments,Other Establishments,Section 75 Adult Social Care,Contrib to S31 Partnership
CMG Limited,CF01512982,10/11/2010,-71.15,Customer and Client Receipts,Fees and Charges,Section 75 Adult Social Care,Contrib to S31 Partnership
CMG Limited,CF01512982,10/11/2010,1507.56,Third Party Payments,Other Establishments,Section 75 Adult Social Care,Contrib to S31 Partnership
CMG Limited,CF01512983,10/11/2010,-71.15,Customer and Client Receipts,Fees and Charges,Section 75 Adult Social Care,Contrib to S31 Partnership
CMG Limited,CF01512983,10/11/2010,1507.56,Third Party Payments,Other Establishments,Section 75 Adult Social Care,Contrib to S31 Partnership
CMG Limited,CF01512984,10/11/2010,-71.15,Customer and Client Receipts,Fees and Charges,Section 75 Adult Social Care,Contrib to S31 Partnership
CMG Limited,CF01512984,10/11/2010,1507.56,Third Party Payments,Other Establishments,Section 75 Adult Social Care,Contrib to S31 Partnership
CMG Limited,CF01512985,10/11/2010,-84.1,Customer and Client Receipts,Fees and Charges,Section 75 Adult Social Care,Contrib to S31 Partnership
CMG Limited,CF01512985,10/11/2010,1318.86,Third Party Payments,Other Establishments,Section 75 Adult Social Care,Contrib to S31 Partnership
CMG Limited,CF01512986,10/11/2010,-84.1,Customer and Client Receipts,Fees and Charges,Section 75 Adult Social Care,Contrib to S31 Partnership
CMG Limited,CF01512986,10/11/2010,1318.86,Third Party Payments,Other Establishments,Section 75 Adult Social Care,Contrib to S31 Partnership
CMG Limited,CF01512987,10/11/2010,-84.1,Customer and Client Receipts,Fees and Charges,Section 75 Adult Social Care,Contrib to S31 Partnership
CMG Limited,CF01512987,10/11/2010,1318.86,Third Party Payments,Other Establishments,Section 75 Adult Social Care,Contrib to S31 Partnership
CMG Limited,CF01512988,10/11/2010,-84.1,Customer and Client Receipts,Fees and Charges,Section 75 Adult Social Care,Contrib to S31 Partnership
CMG Limited,CF01512988,10/11/2010,1318.86,Third Party Payments,Other Establishments,Section 75 Adult Social Care,Contrib to S31 Partnership
CMG Limited,CF01512991,10/11/2010,-110.3,Customer and Client Receipts,Fees and Charges,Section 75 Adult Social Care,Contrib to S31 Partnership
CMG Limited,CF01512991,10/11/2010,1060.8,Third Party Payments,Other Establishments,Section 75 Adult Social Care,Contrib to S31 Partnership
CMG Limited,CF01512992,10/11/2010,-110.3,Customer and Client Receipts,Fees and Charges,Section 75 Adult Social Care,Contrib to S31 Partnership
CMG Limited,CF01512992,10/11/2010,1060.8,Third Party Payments,Other Establishments,Section 75 Adult Social Care,Contrib to S31 Partnership
CMG Limited,CF01512993,10/11/2010,-110.3,Customer and Client Receipts,Fees and Charges,Section 75 Adult Social Care,Contrib to S31 Partnership
CMG Limited,CF01512993,10/11/2010,1060.8,Third Party Payments,Other Establishments,Section 75 Adult Social Care,Contrib to S31 Partnership
CMG Limited,CF01512994,10/11/2010,-110.3,Customer and Client Receipts,Fees and Charges,Section 75 Adult Social Care,Contrib to S31 Partnership
CMG Limited,CF01512994,10/11/2010,1060.8,Third Party Payments,Other Establishments,Section 75 Adult Social Care,Contrib to S31 Partnership
CMG Limited,CF01512995,10/11/2010,-71.15,Customer and Client Receipts,Fees and Charges,Section 75 Adult Social Care,Contrib to S31 Partnership
CMG Limited,CF01512995,10/11/2010,1060.8,Third Party Payments,Other Establishments,Section 75 Adult Social Care,Contrib to S31 Partnership
CMG Limited,CF01512996,10/11/2010,-71.15,Customer and Client Receipts,Fees and Charges,Section 75 Adult Social Care,Contrib to S31 Partnership
CMG Limited,CF01512996,10/11/2010,1060.8,Third Party Payments,Other Establishments,Section 75 Adult Social Care,Contrib to S31 Partnership
CMG Limited,CF01512997,10/11/2010,-71.15,Customer and Client Receipts,Fees and Charges,Section 75 Adult Social Care,Contrib to S31 Partnership
CMG Limited,CF01512997,10/11/2010,1060.8,Third Party Payments,Other Establishments,Section 75 Adult Social Care,Contrib to S31 Partnership
CMG Limited,CF01512998,10/11/2010,-71.15,Customer and Client Receipts,Fees and Charges,Section 75 Adult Social Care,Contrib to S31 Partnership
CMG Limited,CF01512998,10/11/2010,1060.8,Third Party Payments,Other Establishments,Section 75 Adult Social Care,Contrib to S31 Partnership
CMG Limited,CF01513096,10/11/2010,1725,Third Party Payments,Other Establishments,Section 75 Adult Social Care,Contrib to S31 Partnership
CMG Limited,CF01513097,10/11/2010,1725,Third Party Payments,Other Establishments,Section 75 Adult Social Care,Contrib to S31 Partnership
CMG Limited,CF01513098,10/11/2010,1725,Third Party Payments,Other Establishments,Section 75 Adult Social Care,Contrib to S31 Partnership
CMG Limited,CF01513099,10/11/2010,1725,Third Party Payments,Other Establishments,Section 75 Adult Social Care,Contrib to S31 Partnership
CMG Limited,CF01513119,10/11/2010,941,Third Party Payments,Other Establishments,Section 75 Adult Social Care,Contrib to S31 Partnership
CMG Limited,CF01513120,10/11/2010,941,Third Party Payments,Other Establishments,Section 75 Adult Social Care,Contrib to S31 Partnership
CMG Limited,CF01513121,10/11/2010,941,Third Party Payments,Other Establishments,Section 75 Adult Social Care,Contrib to S31 Partnership
CMG Limited,CF01513122,10/11/2010,941,Third Party Payments,Other Establishments,Section 75 Adult Social Care,Contrib to S31 Partnership
CMG Limited,CF01513130,10/11/2010,1383.94,Third Party Payments,Other Establishments,Section 75 Adult Social Care,Contrib to S31 Partnership
CMG Limited,CF01513131,10/11/2010,1383.94,Third Party Payments,Other Establishments,Section 75 Adult Social Care,Contrib to S31 Partnership
CMG Limited,CF01513132,10/11/2010,1383.94,Third Party Payments,Other Establishments,Section 75 Adult Social Care,Contrib to S31 Partnership
CMG Limited,CF01513133,10/11/2010,1383.94,Third Party Payments,Other Establishments,Section 75 Adult Social Care,Contrib to S31 Partnership
CMG Limited,CF01513138,10/11/2010,1266.43,Third Party Payments,Other Establishments,Section 75 Adult Social Care,Contrib to S31 Partnership
CMG Limited,CF01513139,10/11/2010,1266.43,Third Party Payments,Other Establishments,Section 75 Adult Social Care,Contrib to S31 Partnership
CMG Limited,CF01513140,10/11/2010,1266.43,Third Party Payments,Other Establishments,Section 75 Adult Social Care,Contrib to S31 Partnership
CMG Limited,CF01513141,10/11/2010,1266.43,Third Party Payments,Other Establishments,Section 75 Adult Social Care,Contrib to S31 Partnership
CMG Limited,CF01513142,10/11/2010,1035,Third Party Payments,Other Establishments,Section 75 Adult Social Care,Contrib to S31 Partnership
CMG Limited,CF01513143,10/11/2010,1035,Third Party Payments,Other Establishments,Section 75 Adult Social Care,Contrib to S31 Partnership
CMG Limited,CF01513144,10/11/2010,1035,Third Party Payments,Other Establishments,Section 75 Adult Social Care,Contrib to S31 Partnership
CMG Limited,CF01513145,10/11/2010,1035,Third Party Payments,Other Establishments,Section 75 Adult Social Care,Contrib to S31 Partnership
CMG Limited,CF01513147,10/11/2010,969.23,Third Party Payments,Other Establishments,Section 75 Adult Social Care,Contrib to S31 Partnership
CMG Limited,CF01513148,10/11/2010,969.23,Third Party Payments,Other Establishments,Section 75 Adult Social Care,Contrib to S31 Partnership
CMG Limited,CF01513149,10/11/2010,969.23,Third Party Payments,Other Establishments,Section 75 Adult Social Care,Contrib to S31 Partnership
CMG Limited,CF01513150,10/11/2010,969.23,Third Party Payments,Other Establishments,Section 75 Adult Social Care,Contrib to S31 Partnership
CMG Limited,CF01513153,10/11/2010,-10,Customer and Client Receipts,Fees and Charges,Section 75 Adult Social Care,Contrib to S31 Partnership
CMG Limited,CF01513153,10/11/2010,993,Third Party Payments,Other Establishments,Section 75 Adult Social Care,Contrib to S31 Partnership
CMG Limited,CF01513154,10/11/2010,-10,Customer and Client Receipts,Fees and Charges,Section 75 Adult Social Care,Contrib to S31 Partnership
CMG Limited,CF01513154,10/11/2010,993,Third Party Payments,Other Establishments,Section 75 Adult Social Care,Contrib to S31 Partnership
CMG Limited,CF01513155,10/11/2010,-10,Customer and Client Receipts,Fees and Charges,Section 75 Adult Social Care,Contrib to S31 Partnership
CMG Limited,CF01513155,10/11/2010,993,Third Party Payments,Other Establishments,Section 75 Adult Social Care,Contrib to S31 Partnership
CMG Limited,CF01513156,10/11/2010,-10,Customer and Client Receipts,Fees and Charges,Section 75 Adult Social Care,Contrib to S31 Partnership
CMG Limited,CF01513156,10/11/2010,993,Third Party Payments,Other Establishments,Section 75 Adult Social Care,Contrib to S31 Partnership
CMG Limited,CF01513157,10/11/2010,-24,Customer and Client Receipts,Fees and Charges,Section 75 Adult Social Care,Contrib to S31 Partnership
CMG Limited,CF01513157,10/11/2010,1072.68,Third Party Payments,Other Establishments,Section 75 Adult Social Care,Contrib to S31 Partnership
CMG Limited,CF01513158,10/11/2010,-24,Customer and Client Receipts,Fees and Charges,Section 75 Adult Social Care,Contrib to S31 Partnership
CMG Limited,CF01513158,10/11/2010,1073.08,Third Party Payments,Other Establishments,Section 75 Adult Social Care,Contrib to S31 Partnership
CMG Limited,CF01513159,10/11/2010,-24,Customer and Client Receipts,Fees and Charges,Section 75 Adult Social Care,Contrib to S31 Partnership
CMG Limited,CF01513159,10/11/2010,1073.08,Third Party Payments,Other Establishments,Section 75 Adult Social Care,Contrib to S31 Partnership
CMG Limited,CF01513160,10/11/2010,-24,Customer and Client Receipts,Fees and Charges,Section 75 Adult Social Care,Contrib to S31 Partnership
CMG Limited,CF01513160,10/11/2010,1073.08,Third Party Payments,Other Establishments,Section 75 Adult Social Care,Contrib to S31 Partnership
CMG Limited,CF01513163,10/11/2010,984.07,Third Party Payments,Other Establishments,Section 75 Adult Social Care,Contrib to S31 Partnership
CMG Limited,CF01513164,10/11/2010,983.83,Third Party Payments,Other Establishments,Section 75 Adult Social Care,Contrib to S31 Partnership
CMG Limited,CF01513165,10/11/2010,983.83,Third Party Payments,Other Establishments,Section 75 Adult Social Care,Contrib to S31 Partnership
CMG Limited,CF01513166,10/11/2010,983.83,Third Party Payments,Other Establishments,Section 75 Adult Social Care,Contrib to S31 Partnership
CMG Limited,CF01513167,10/11/2010,-36,Customer and Client Receipts,Fees and Charges,Section 75 Adult Social Care,Contrib to S31 Partnership
CMG Limited,CF01513167,10/11/2010,1006.27,Third Party Payments,Other Establishments,Section 75 Adult Social Care,Contrib to S31 Partnership
CMG Limited,CF01513168,10/11/2010,-36,Customer and Client Receipts,Fees and Charges,Section 75 Adult Social Care,Contrib to S31 Partnership
CMG Limited,CF01513168,10/11/2010,1006.27,Third Party Payments,Other Establishments,Section 75 Adult Social Care,Contrib to S31 Partnership
CMG Limited,CF01513169,10/11/2010,-36,Customer and Client Receipts,Fees and Charges,Section 75 Adult Social Care,Contrib to S31 Partnership
CMG Limited,CF01513169,10/11/2010,1006.27,Third Party Payments,Other Establishments,Section 75 Adult Social Care,Contrib to S31 Partnership
CMG Limited,CF01513170,10/11/2010,-36,Customer and Client Receipts,Fees and Charges,Section 75 Adult Social Care,Contrib to S31 Partnership
CMG Limited,CF01513170,10/11/2010,1006.27,Third Party Payments,Other Establishments,Section 75 Adult Social Care,Contrib to S31 Partnership
CMG Limited,CF01513172,10/11/2010,1001.33,Third Party Payments,Other Establishments,Section 75 Adult Social Care,Contrib to S31 Partnership
CMG Limited,CF01513173,10/11/2010,1001.09,Third Party Payments,Other Establishments,Section 75 Adult Social Care,Contrib to S31 Partnership
CMG Limited,CF01513174,10/11/2010,1001.09,Third Party Payments,Other Establishments,Section 75 Adult Social Care,Contrib to S31 Partnership
CMG Limited,CF01513175,10/11/2010,1001.09,Third Party Payments,Other Establishments,Section 75 Adult Social Care,Contrib to S31 Partnership
CMG Limited,CF01513176,10/11/2010,650,Third Party Payments,Other Establishments,Section 75 Adult Social Care,Contrib to S31 Partnership
CMG Limited,CF01513177,10/11/2010,650,Third Party Payments,Other Establishments,Section 75 Adult Social Care,Contrib to S31 Partnership
CMG Limited,CF01513178,10/11/2010,650,Third Party Payments,Other Establishments,Section 75 Adult Social Care,Contrib to S31 Partnership
CMG Limited,CF01513179,10/11/2010,650,Third Party Payments,Other Establishments,Section 75 Adult Social Care,Contrib to S31 Partnership
CMG Limited,CF01513181,10/11/2010,-19,Customer and Client Receipts,Fees and Charges,Section 75 Adult Social Care,Contrib to S31 Partnership
CMG Limited,CF01513181,10/11/2010,995.5,Third Party Payments,Other Establishments,Section 75 Adult Social Care,Contrib to S31 Partnership
CMG Limited,CF01513182,10/11/2010,-19,Customer and Client Receipts,Fees and Charges,Section 75 Adult Social Care,Contrib to S31 Partnership
CMG Limited,CF01513182,10/11/2010,995.54,Third Party Payments,Other Establishments,Section 75 Adult Social Care,Contrib to S31 Partnership
CMG Limited,CF01513183,10/11/2010,-19,Customer and Client Receipts,Fees and Charges,Section 75 Adult Social Care,Contrib to S31 Partnership
CMG Limited,CF01513183,10/11/2010,995.54,Third Party Payments,Other Establishments,Section 75 Adult Social Care,Contrib to S31 Partnership
CMG Limited,CF01513184,10/11/2010,-19,Customer and Client Receipts,Fees and Charges,Section 75 Adult Social Care,Contrib to S31 Partnership
CMG Limited,CF01513184,10/11/2010,995.54,Third Party Payments,Other Establishments,Section 75 Adult Social Care,Contrib to S31 Partnership
CMG Limited,CF01513185,10/11/2010,1083,Third Party Payments,Other Establishments,Section 75 Adult Social Care,Contrib to S31 Partnership
CMG Limited,CF01513186,10/11/2010,1083,Third Party Payments,Other Establishments,Section 75 Adult Social Care,Contrib to S31 Partnership
CMG Limited,CF01513187,10/11/2010,1083,Third Party Payments,Other Establishments,Section 75 Adult Social Care,Contrib to S31 Partnership
CMG Limited,CF01513188,10/11/2010,1083,Third Party Payments,Other Establishments,Section 75 Adult Social Care,Contrib to S31 Partnership
CMG Limited,CF01513192,10/11/2010,-10,Customer and Client Receipts,Fees and Charges,Section 75 Adult Social Care,Contrib to S31 Partnership
CMG Limited,CF01513192,10/11/2010,1035.85,Third Party Payments,Other Establishments,Section 75 Adult Social Care,Contrib to S31 Partnership
CMG Limited,CF01513193,10/11/2010,-10,Customer and Client Receipts,Fees and Charges,Section 75 Adult Social Care,Contrib to S31 Partnership
CMG Limited,CF01513193,10/11/2010,1035.61,Third Party Payments,Other Establishments,Section 75 Adult Social Care,Contrib to S31 Partnership
CMG Limited,CF01513194,10/11/2010,-10,Customer and Client Receipts,Fees and Charges,Section 75 Adult Social Care,Contrib to S31 Partnership
CMG Limited,CF01513194,10/11/2010,1035.61,Third Party Payments,Other Establishments,Section 75 Adult Social Care,Contrib to S31 Partnership
CMG Limited,CF01513195,10/11/2010,-10,Customer and Client Receipts,Fees and Charges,Section 75 Adult Social Care,Contrib to S31 Partnership
CMG Limited,CF01513195,10/11/2010,1035.61,Third Party Payments,Other Establishments,Section 75 Adult Social Care,Contrib to S31 Partnership
CMG Limited,CF01529683,26/11/2010,705.14,Third Party Payments,Other Establishments,Section 75 Adult Social Care,Contrib to S31 Partnership
CMG Limited,CF01529684,26/11/2010,1234,Third Party Payments,Other Establishments,Section 75 Adult Social Care,Contrib to S31 Partnership
CMG Limited,CF01529685,26/11/2010,1234,Third Party Payments,Other Establishments,Section 75 Adult Social Care,Contrib to S31 Partnership
CMG Limited,CF01529686,26/11/2010,1234,Third Party Payments,Other Establishments,Section 75 Adult Social Care,Contrib to S31 Partnership
CMG Limited,CF01529687,26/11/2010,1234,Third Party Payments,Other Establishments,Section 75 Adult Social Care,Contrib to S31 Partnership
CMG Limited,CF01529688,26/11/2010,1234,Third Party Payments,Other Establishments,Section 75 Adult Social Care,Contrib to S31 Partnership
CMG Limited,CF01529689,26/11/2010,1234,Third Party Payments,Other Establishments,Section 75 Adult Social Care,Contrib to S31 Partnership
CMG Limited,CF01529690,26/11/2010,1234,Third Party Payments,Other Establishments,Section 75 Adult Social Care,Contrib to S31 Partnership
CMG Limited,CF01529691,26/11/2010,1234,Third Party Payments,Other Establishments,Section 75 Adult Social Care,Contrib to S31 Partnership
CMG Limited,CF01529692,26/11/2010,1234,Third Party Payments,Other Establishments,Section 75 Adult Social Care,Contrib to S31 Partnership
CMG Limited,CF01529693,26/11/2010,1234,Third Party Payments,Other Establishments,Section 75 Adult Social Care,Contrib to S31 Partnership
CMG Limited,CF01530025,26/11/2010,779.32,Third Party Payments,Other Establishments,Section 75 Adult Social Care,Contrib to S31 Partnership
CMG Limited,CF01530026,26/11/2010,1363.81,Third Party Payments,Other Establishments,Section 75 Adult Social Care,Contrib to S31 Partnership
CMG Limited,CF01530027,26/11/2010,1363.81,Third Party Payments,Other Establishments,Section 75 Adult Social Care,Contrib to S31 Partnership
CMG Limited,CF01530028,26/11/2010,1363.81,Third Party Payments,Other Establishments,Section 75 Adult Social Care,Contrib to S31 Partnership
CMG Limited,CF01530029,26/11/2010,1363.81,Third Party Payments,Other Establishments,Section 75 Adult Social Care,Contrib to S31 Partnership
CMG Limited,CF01530030,26/11/2010,1363.81,Third Party Payments,Other Establishments,Section 75 Adult Social Care,Contrib to S31 Partnership
